Dept/Family,Entity,Expense Type,Expense Area,Supplier,Payment Date, Amount ,SME,UNSPCC Code,UNSPCC Description
"Ministry of Housing, Communities and Local Government",Homes England,LEGAL FEES (ADMIN ONLY),Finance & Corporate Services,HM LAND REGISTRY,02/10/2019,263,G,80131500,Lease and rental of property or building
"Ministry of Housing, Communities and Local Government",Homes England,LEGAL FEES (ADMIN ONLY),Finance & Corporate Services,HM LAND REGISTRY,02/10/2019,306,G,80131500,Lease and rental of property or building
"Ministry of Housing, Communities and Local Government",Homes England,LEGAL FEES (ADMIN ONLY),Finance & Corporate Services,HM LAND REGISTRY,07/10/2019,330,G,80131500,Lease and rental of property or building
"Ministry of Housing, Communities and Local Government",Homes England,CAPITAL GRANTS TO LOCAL AUTHORITIES,North West,BURY METROPOLIAN BOROUGH COUNCIL,01/11/2019,21000,G,,Grants
"Ministry of Housing, Communities and Local Government",Homes England,CAPITAL GRANTS TO LOCAL AUTHORITIES,"North East, Yorkshire & the Humber",BARNSLEY METROPOLITAN BOROUGH COUNCIL,43753,18750,G,,Grants
"Ministry of Housing, Communities and Local Government",Homes England,CAPITAL GRANTS TO LOCAL AUTHORITIES,"North East, Yorkshire & the Humber",BARNSLEY METROPOLITAN BOROUGH COUNCIL,43754,6250,G,,Grants
"Ministry of Housing, Communities and Local Government",Homes England,CAPITAL GRANTS TO LOCAL AUTHORITIES,"North East, Yorkshire & the Humber",SHEFFIELD CITY COUNCIL,,1053000,G,,Grants
"Ministry of Housing, Communities and Local Government",Homes England,CAPITAL GRANTS TO LOCAL AUTHORITIES,"North East, Yorkshire & the Humber",NORTH TYNESIDE COUNCIL,43761,8039,G,,Grants
"Ministry of Housing, Communities and Local Government",Homes England,CAPITAL GRANTS TO LOCAL AUTHORITIES,"North East, Yorkshire & the Humber",HARTLEPOOL BOROUGH COUNCIL,43770,9250,G,,Grants
"Ministry of Housing, Communities and Local Government",Homes England,CAPITAL GRANTS TO LOCAL AUTHORITIES,"North East, Yorkshire & the Humber",NORTHUMBERLAND COUNTY COUNCIL,43749,2376,G,,Grants
"Ministry of Housing, Communities and Local Government",Homes England,CAPITAL GRANTS TO LOCAL AUTHORITIES,North West,CHESHIRE WEST AND CHESTER COUNCIL,43746,17040,G,,Grants
"Ministry of Housing, Communities and Local Government",Homes England,CAPITAL GRANTS TO LOCAL AUTHORITIES,North West,CHESHIRE WEST AND CHESTER COUNCIL,08/10/2019,11534,G,,Grants
"Ministry of Housing, Communities and Local Government",Homes England,CAPITAL GRANTS TO LOCAL AUTHORITIES,North West,CHESHIRE WEST AND CHESTER COUNCIL,43746,2562,G,,Grants
"Ministry of Housing, Communities and Local Government",Homes England,CAPITAL GRANTS TO LOCAL AUTHORITIES,North West,BLACKPOOL COUNCIL,43762,2043750,G,,Grants
"Ministry of Housing, Communities and Local Government",Homes England,CAPITAL GRANTS TO LOCAL AUTHORITIES,"North East, Yorkshire & the Humber",KINGSTON UPON HULL CITY COUNCIL,43767,234000,G,,Grants
"Ministry of Housing, Communities and Local Government",Homes England,CAPITAL GRANTS TO LOCAL AUTHORITIES,"North East, Yorkshire & the Humber",EAST RIDING OF YORKSHIRE COUNCIL,,10500,G,,Grants
"Ministry of Housing, Communities and Local Government",Homes England,CAPITAL GRANTS TO LOCAL AUTHORITIES,"North East, Yorkshire & the Humber",EAST RIDING OF YORKSHIRE COUNCIL,,10500,G,,Grants
"Ministry of Housing, Communities and Local Government",Homes England,CAPITAL GRANTS TO LOCAL AUTHORITIES,"North East, Yorkshire & the Humber",EAST RIDING OF YORKSHIRE COUNCIL,,12250,G,,Grants
"Ministry of Housing, Communities and Local Government",Homes England,CAPITAL GRANTS TO LOCAL AUTHORITIES,"North East, Yorkshire & the Humber",EAST RIDING OF YORKSHIRE COUNCIL,,12250,G,,Grants
"Ministry of Housing, Communities and Local Government",Homes England,CAPITAL GRANTS TO LOCAL AUTHORITIES,"North East, Yorkshire & the Humber",EAST RIDING OF YORKSHIRE COUNCIL,,12250,G,,Grants
"Ministry of Housing, Communities and Local Government",Homes England,CAPITAL GRANTS TO LOCAL AUTHORITIES,"North East, Yorkshire & the Humber",EAST RIDING OF YORKSHIRE COUNCIL,,10500,G,,Grants
"Ministry of Housing, Communities and Local Government",Homes England,CAPITAL GRANTS TO LOCAL AUTHORITIES,"North East, Yorkshire & the Humber",EAST RIDING OF YORKSHIRE COUNCIL,,12250,G,,Grants
"Ministry of Housing, Communities and Local Government",Homes England,CAPITAL GRANTS TO LOCAL AUTHORITIES,"North East, Yorkshire & the Humber",EAST RIDING OF YORKSHIRE COUNCIL,,12250,G,,Grants
"Ministry of Housing, Communities and Local Government",Homes England,CAPITAL GRANTS TO LOCAL AUTHORITIES,"North East, Yorkshire & the Humber",EAST RIDING OF YORKSHIRE COUNCIL,,26250,G,,Grants
"Ministry of Housing, Communities and Local Government",Homes England,CAPITAL GRANTS TO LOCAL AUTHORITIES,"North East, Yorkshire & the Humber",EAST RIDING OF YORKSHIRE COUNCIL,,12250,G,,Grants
"Ministry of Housing, Communities and Local Government",Homes England,CAPITAL GRANTS TO LOCAL AUTHORITIES,"North East, Yorkshire & the Humber",EAST RIDING OF YORKSHIRE COUNCIL,,10500,G,,Grants
"Ministry of Housing, Communities and Local Government",Homes England,CAPITAL GRANTS TO LOCAL AUTHORITIES,"North East, Yorkshire & the Humber",EAST RIDING OF YORKSHIRE COUNCIL,,10500,G,,Grants
"Ministry of Housing, Communities and Local Government",Homes England,CAPITAL GRANTS TO LOCAL AUTHORITIES,"North East, Yorkshire & the Humber",EAST RIDING OF YORKSHIRE COUNCIL,,10500,G,,Grants
"Ministry of Housing, Communities and Local Government",Homes England,CAPITAL GRANTS TO LOCAL AUTHORITIES,"North East, Yorkshire & the Humber",EAST RIDING OF YORKSHIRE COUNCIL,,12250,G,,Grants
"Ministry of Housing, Communities and Local Government",Homes England,CAPITAL GRANTS TO LOCAL AUTHORITIES,"North East, Yorkshire & the Humber",EAST RIDING OF YORKSHIRE COUNCIL,,12250,G,,Grants
"Ministry of Housing, Communities and Local Government",Homes England,CAPITAL GRANTS TO LOCAL AUTHORITIES,"North East, Yorkshire & the Humber",EAST RIDING OF YORKSHIRE COUNCIL,,12250,G,,Grants
"Ministry of Housing, Communities and Local Government",Homes England,CAPITAL GRANTS TO LOCAL AUTHORITIES,"North East, Yorkshire & the Humber",CITY OF YORK COUNCIL,14/10/2019,17000,G,,Grants
"Ministry of Housing, Communities and Local Government",Homes England,CAPITAL GRANTS TO LOCAL AUTHORITIES,"North East, Yorkshire & the Humber",CITY OF YORK COUNCIL,43770,17000,G,,Grants
"Ministry of Housing, Communities and Local Government",Homes England,CAPITAL GRANTS TO LOCAL AUTHORITIES,"North East, Yorkshire & the Humber",CITY OF YORK COUNCIL,,14875,G,,Grants
"Ministry of Housing, Communities and Local Government",Homes England,CAPITAL GRANTS TO LOCAL AUTHORITIES,"North East, Yorkshire & the Humber",CITY OF YORK COUNCIL,,17000,G,,Grants
"Ministry of Housing, Communities and Local Government",Homes England,CAPITAL GRANTS TO LOCAL AUTHORITIES,"North East, Yorkshire & the Humber",CITY OF YORK COUNCIL,,14875,G,,Grants
"Ministry of Housing, Communities and Local Government",Homes England,CAPITAL GRANTS TO LOCAL AUTHORITIES,"North East, Yorkshire & the Humber",CITY OF YORK COUNCIL,,10625,G,,Grants
"Ministry of Housing, Communities and Local Government",Homes England,CAPITAL GRANTS TO LOCAL AUTHORITIES,"North East, Yorkshire & the Humber",CITY OF YORK COUNCIL,,14875,G,,Grants
"Ministry of Housing, Communities and Local Government",Homes England,CAPITAL GRANTS TO LOCAL AUTHORITIES,Midlands,DERBY CITY COUNCIL,11/10/2019,18844,G,,Grants
"Ministry of Housing, Communities and Local Government",Homes England,PLANNING APPLICATIONS,North West,SOUTH RIBBLE BOROUGH COUNCIL,21/10/2019,26805.68,G,80131500,Lease and rental of property or building
"Ministry of Housing, Communities and Local Government",Homes England,CAPITAL GRANTS TO LOCAL AUTHORITIES,Programmes,WELWYN HATFIELD COUNCIL,14/10/2019,428992.13,G,,Grants
"Ministry of Housing, Communities and Local Government",Homes England,CAPITAL GRANTS TO LOCAL AUTHORITIES,Programmes,WELWYN HATFIELD COUNCIL,14/10/2019,252500.75,G,,Grants
"Ministry of Housing, Communities and Local Government",Homes England,SERVICE CHARGE,Programmes,ASDA STORES LTD,17/10/2019,679.48,L,80131500,Lease and rental of property or building
"Ministry of Housing, Communities and Local Government",Homes England,SERVICE CHARGE,Programmes,ASDA STORES LTD,17/10/2019,1336.84,L,80131500,Lease and rental of property or building
"Ministry of Housing, Communities and Local Government",Homes England,SERVICE CHARGES,Finance & Corporate Services,COVENTRY CITY COUNCIL,21/10/2019,15971.76,G,90101600,Banquet and catering services
"Ministry of Housing, Communities and Local Government",Homes England,ESTATE GENERAL MAINTENANCE,East And South East,R D LANDSCAPES LTD,01/10/2019,3500,S,72101500,Building maintenance and repair services
"Ministry of Housing, Communities and Local Government",Homes England,ESTATE GENERAL MAINTENANCE,East And South East,R D LANDSCAPES LTD,03/10/2019,890,S,72101500,Building maintenance and repair services
"Ministry of Housing, Communities and Local Government",Homes England,ESTATE GENERAL MAINTENANCE,East And South East,R D LANDSCAPES LTD,09/10/2019,1450,S,72101500,Building maintenance and repair services
"Ministry of Housing, Communities and Local Government",Homes England,FENCE MAINTENANCE,East And South East,R D LANDSCAPES LTD,25/10/2019,450,S,72101500,Building maintenance and repair services
"Ministry of Housing, Communities and Local Government",Homes England,FENCE MAINTENANCE,East And South East,R D LANDSCAPES LTD,25/10/2019,680,S,72101500,Building maintenance and repair services
"Ministry of Housing, Communities and Local Government",Homes England,ST Fund Loans Additions,Economic Assets Hub,CHRISTIAN GRANT PROPERTIES,15/10/2019,270801,,,Loans
"Ministry of Housing, Communities and Local Government",Homes England,CONTRACT WORKS,North East And Yorkshire,NORTHUMBRIAN WATER,08/10/2019,43874,L,77101500,Environmental auditing
"Ministry of Housing, Communities and Local Government",Homes England,BRANDING & REPORTS,Executive Office,OFFICE TEAM LIMITED,01/10/2019,394,L,44120000,Office supplies
"Ministry of Housing, Communities and Local Government",Homes England,FURNITURE & EQUIPMENT-PURCHASE,Finance & Corporate Services,OFFICE TEAM LIMITED,15/10/2019,1062.5,L,44120000,Office supplies
"Ministry of Housing, Communities and Local Government",Homes England,ESTATE GENERAL MAINTENANCE,Programmes,IDVERDE LIMITED,11/10/2019,878.39,L,72101500,Building maintenance and repair services
"Ministry of Housing, Communities and Local Government",Homes England,ESTATE GENERAL MAINTENANCE,Programmes,IDVERDE LIMITED,16/10/2019,455.21,L,72101500,Building maintenance and repair services
"Ministry of Housing, Communities and Local Government",Homes England,SIGNS & NOTICEBOARDS,North West,IDVERDE LIMITED,31/10/2019,290,L,72101500,Building maintenance and repair services
"Ministry of Housing, Communities and Local Government",Homes England,ESTATE GENERAL MAINTENANCE,Programmes,LOWTHER FORESTRY GROUP,08/10/2019,813.78,S,72101500,Building maintenance and repair services
"Ministry of Housing, Communities and Local Government",Homes England,ESTATE GENERAL MAINTENANCE,North West,LOWTHER FORESTRY GROUP,18/10/2019,685,S,72101500,Building maintenance and repair services
"Ministry of Housing, Communities and Local Government",Homes England,ESTATE GENERAL MAINTENANCE,North West,LOWTHER FORESTRY GROUP,24/10/2019,467.56,S,72101500,Building maintenance and repair services
"Ministry of Housing, Communities and Local Government",Homes England,PROPERTY MAINTENANCE,Midlands,KONE PLC,24/10/2019,2082.53,M,72102900,Facility maintenance and repair services
"Ministry of Housing, Communities and Local Government",Homes England,IRON-MOUNTAIN ARCHIVE STORAGE ,Finance & Corporate Services,IRON MOUNTAIN (UK) LTD,08/10/2019,5847.3,L,78131800,Specialized warehousing and storage
"Ministry of Housing, Communities and Local Government",Homes England,POSTAGE/COURIERS,Finance & Corporate Services,MK LONDON LINK,02/10/2019,5341.7,S,78102200,Postal and small parcel and courier services
"Ministry of Housing, Communities and Local Government",Homes England,INSURANCES,Finance & Corporate Services,CRAWLEY BOROUGH COUNCIL,15/10/2019,4981.76,G,80131500,Lease and rental of property or building
"Ministry of Housing, Communities and Local Government",Homes England,RENT,Finance & Corporate Services,CRAWLEY BOROUGH COUNCIL,16/10/2019,1651.02,G,80131500,Lease and rental of property or building
"Ministry of Housing, Communities and Local Government",Homes England,MISC PROFESSIONAL FEES,Programmes,ESRI (UK) LTD,04/10/2019,3942,M,81112300,Computer hardware maintenance and support
"Ministry of Housing, Communities and Local Government",Homes England,CONTRACT WORKS,Midlands,CONTRAX,22/10/2019,5575.12,S,72102900,Facility maintenance and repair services
"Ministry of Housing, Communities and Local Government",Homes England,CAPITAL GRANTS TO LOCAL AUTHORITIES,"North East, Yorkshire & the Humber",HARROGATE BOROUGH COUNCIL,11/10/2019,12500,G,,Grants
"Ministry of Housing, Communities and Local Government",Homes England,CAPITAL GRANTS TO LOCAL AUTHORITIES,"North East, Yorkshire & the Humber",HARROGATE BOROUGH COUNCIL,21/10/2019,37500,G,,Grants
"Ministry of Housing, Communities and Local Government",Homes England,CAPITAL GRANTS TO LOCAL AUTHORITIES,"North East, Yorkshire & the Humber",SELBY DISTRICT COUNCIL,,29250,G,,Grants
"Ministry of Housing, Communities and Local Government",Homes England,CAPITAL GRANTS TO LOCAL AUTHORITIES,"North East, Yorkshire & the Humber",BASSETLAW DISTRICT COUCIL,,90000,G,,Grants
"Ministry of Housing, Communities and Local Government",Homes England,CAPITAL GRANTS TO LOCAL AUTHORITIES,Midlands,NEWARK AND SHERWOOD DISTRICT COUNCIL,,1560000,G,,Grants
"Ministry of Housing, Communities and Local Government",Homes England,REVENUE GRANTS TO LOCAL AUTHORITIES,Programmes,LEICESTERSHIRE COUNTY COUNCIL,29/10/2019,309000,G,,Grants
"Ministry of Housing, Communities and Local Government",Homes England,CONTRACT WORKS,South West,HAMPSHIRE COUNTY COUNCIL,17/10/2019,1084.4,G,80131500,Lease and rental of property or building
"Ministry of Housing, Communities and Local Government",Homes England,CAPITAL GRANTS TO LOCAL AUTHORITIES,Midlands,RUGBY BOROUGH COUNCIL,22/10/2019,274667,G,,Grants
"Ministry of Housing, Communities and Local Government",Homes England,CAPITAL GRANTS TO RPs (NOT LA),North West,FIRST CHOICE HOMES OLDHAM LIMITED,25/10/2019,9000,,,Grants
"Ministry of Housing, Communities and Local Government",Homes England,CAPITAL GRANTS TO RPs (NOT LA),North West,FIRST CHOICE HOMES OLDHAM LIMITED,25/10/2019,9000,,,Grants
"Ministry of Housing, Communities and Local Government",Homes England,CAPITAL GRANTS TO RPs (NOT LA),North West,FIRST CHOICE HOMES OLDHAM LIMITED,,41250,,,Grants
"Ministry of Housing, Communities and Local Government",Homes England,CAPITAL GRANTS TO RPs (NOT LA),North West,FIRST CHOICE HOMES OLDHAM LIMITED,,173250,,,Grants
"Ministry of Housing, Communities and Local Government",Homes England,CAPITAL GRANTS TO RPs (NOT LA),South West,GLOUCESTER CITY HOMES,18/10/2019,39600,,,Grants
"Ministry of Housing, Communities and Local Government",Homes England,CAPITAL GRANTS TO RPs (NOT LA),South West,GLOUCESTER CITY HOMES,18/10/2019,56000,,,Grants
"Ministry of Housing, Communities and Local Government",Homes England,CAPITAL GRANTS TO RPs (NOT LA),South West,GLOUCESTER CITY HOMES,,49000,,,Grants
"Ministry of Housing, Communities and Local Government",Homes England,CAPITAL GRANTS TO RPs (NOT LA),South West,GLOUCESTER CITY HOMES,,34650,,,Grants
"Ministry of Housing, Communities and Local Government",Homes England,CAPITAL GRANTS TO RPs (NOT LA),South West,GLOUCESTER CITY HOMES,,22500,,,Grants
"Ministry of Housing, Communities and Local Government",Homes England,CAPITAL GRANTS TO RPs (NOT LA),South West,GLOUCESTER CITY HOMES,,85500,,,Grants
"Ministry of Housing, Communities and Local Government",Homes England,CAPITAL GRANTS TO RPs (NOT LA),South West,GLOUCESTER CITY HOMES,,114000,,,Grants
"Ministry of Housing, Communities and Local Government",Homes England,CAPITAL GRANTS TO RPs (NOT LA),South West,GLOUCESTER CITY HOMES,,114000,,,Grants
"Ministry of Housing, Communities and Local Government",Homes England,CAPITAL GRANTS TO RPs (NOT LA),North West,SALIX HOMES LTD,,70747,,,Grants
"Ministry of Housing, Communities and Local Government",Homes England,CAPITAL GRANTS TO RPs (NOT LA),North West,GOLDEN GATES HOUSING TRUST,,9000,,,Grants
"Ministry of Housing, Communities and Local Government",Homes England,CAPITAL GRANTS TO RPs (NOT LA),North West,GOLDEN GATES HOUSING TRUST,,9000,,,Grants
"Ministry of Housing, Communities and Local Government",Homes England,CAPITAL GRANTS TO RPs (NOT LA),North West,GOLDEN GATES HOUSING TRUST,,9000,,,Grants
"Ministry of Housing, Communities and Local Government",Homes England,CAPITAL GRANTS TO RPs (NOT LA),North West,GOLDEN GATES HOUSING TRUST,,9000,,,Grants
"Ministry of Housing, Communities and Local Government",Homes England,CAPITAL GRANTS TO RPs (NOT LA),North West,GOLDEN GATES HOUSING TRUST,,9000,,,Grants
"Ministry of Housing, Communities and Local Government",Homes England,CAPITAL GRANTS TO RPs (NOT LA),North West,GOLDEN GATES HOUSING TRUST,,9000,,,Grants
"Ministry of Housing, Communities and Local Government",Homes England,CAPITAL GRANTS TO RPs (NOT LA),North West,GOLDEN GATES HOUSING TRUST,,9000,,,Grants
"Ministry of Housing, Communities and Local Government",Homes England,CAPITAL GRANTS TO RPs (NOT LA),East & South East,YMCA DOWNSLINK GROUP,16/10/2019,25860,,,Grants
"Ministry of Housing, Communities and Local Government",Homes England,CAPITAL GRANTS TO RPs (NOT LA),East & South East,YMCA DOWNSLINK GROUP,43763,8620,,,Grants
"Ministry of Housing, Communities and Local Government",Homes England,CAPITAL GRANTS TO RPs (NOT LA),East & South East,YMCA DOWNSLINK GROUP,25/10/2019,11250,,,Grants
"Ministry of Housing, Communities and Local Government",Homes England,CAPITAL GRANTS TO RPs (NOT LA),East & South East,YMCA DOWNSLINK GROUP,29/10/2019,63750,,,Grants
"Ministry of Housing, Communities and Local Government",Homes England,CAPITAL GRANTS TO RPs (NOT LA),"North East, Yorkshire & the Humber",KARBON HOMES LIMITED - ISOS HOUSING LIMITED,,61102,L,,Grants
"Ministry of Housing, Communities and Local Government",Homes England,CAPITAL GRANTS TO RPs (NOT LA),"North East, Yorkshire & the Humber",KARBON HOMES LIMITED - ISOS HOUSING LIMITED,,264000,L,,Grants
"Ministry of Housing, Communities and Local Government",Homes England,CAPITAL GRANTS TO RPs (NOT LA),"North East, Yorkshire & the Humber",KARBON HOMES LIMITED - ISOS HOUSING LIMITED,,61102,L,,Grants
"Ministry of Housing, Communities and Local Government",Homes England,CAPITAL GRANTS TO RPs (NOT LA),"North East, Yorkshire & the Humber",KARBON HOMES LIMITED - ISOS HOUSING LIMITED,,252000,L,,Grants
"Ministry of Housing, Communities and Local Government",Homes England,CAPITAL GRANTS TO RPs (NOT LA),"North East, Yorkshire & the Humber",KARBON HOMES LIMITED - ISOS HOUSING LIMITED,,122204,L,,Grants
"Ministry of Housing, Communities and Local Government",Homes England,CAPITAL GRANTS TO RPs (NOT LA),"North East, Yorkshire & the Humber",KARBON HOMES LIMITED - ISOS HOUSING LIMITED,,70000,L,,Grants
"Ministry of Housing, Communities and Local Government",Homes England,CAPITAL GRANTS TO RPs (NOT LA),"North East, Yorkshire & the Humber",KARBON HOMES LIMITED - ISOS HOUSING LIMITED,,66000,L,,Grants
"Ministry of Housing, Communities and Local Government",Homes England,CAPITAL GRANTS TO RPs (NOT LA),"North East, Yorkshire & the Humber",KARBON HOMES LIMITED - ISOS HOUSING LIMITED,,70000,L,,Grants
"Ministry of Housing, Communities and Local Government",Homes England,CAPITAL GRANTS TO RPs (NOT LA),East & South East,GENESIS HOUSING ASSOCIATION LIMITED,,361499,,,Grants
"Ministry of Housing, Communities and Local Government",Homes England,CAPITAL GRANTS TO RPs (NOT LA),"North East, Yorkshire & the Humber",ACTION HOUSING AND SUPPORT,,123750,,,Grants
"Ministry of Housing, Communities and Local Government",Homes England,CAPITAL GRANTS TO RPs (NOT LA),Midlands,BROMFORD HOME OWNERSHIP LTD,43747,124250,,,Grants
"Ministry of Housing, Communities and Local Government",Homes England,CAPITAL GRANTS TO RPs (NOT LA),Midlands,BROMFORD HOME OWNERSHIP LTD,43747,131250,,,Grants
"Ministry of Housing, Communities and Local Government",Homes England,REVENUE GRANTS TO RPs,Midlands,BROMFORD HOME OWNERSHIP LTD,,49730,,,Grants
"Ministry of Housing, Communities and Local Government",Homes England,REVENUE GRANTS TO RPs,Midlands,STONEWATER (5) LIMITED,43767,60115,,,Grants
"Ministry of Housing, Communities and Local Government",Homes England,CAPITAL GRANTS TO RPs (NOT LA),East & South East,THE GUINNESS PARTNERSHIP LIMITED,31/10/2019,97500,,,Grants
"Ministry of Housing, Communities and Local Government",Homes England,CAPITAL GRANTS TO RPs (NOT LA),East & South East,THE GUINNESS PARTNERSHIP LIMITED,31/10/2019,58500,,,Grants
"Ministry of Housing, Communities and Local Government",Homes England,CAPITAL GRANTS TO RPs (NOT LA),"North East, Yorkshire & the Humber",THE GUINNESS PARTNERSHIP LIMITED,,261195,,,Grants
"Ministry of Housing, Communities and Local Government",Homes England,CAPITAL GRANTS TO RPs (NOT LA),"North East, Yorkshire & the Humber",THE GUINNESS PARTNERSHIP LIMITED,,235076,,,Grants
"Ministry of Housing, Communities and Local Government",Homes England,CAPITAL GRANTS TO RPs (NOT LA),"North East, Yorkshire & the Humber",THE GUINNESS PARTNERSHIP LIMITED,,430973,,,Grants
"Ministry of Housing, Communities and Local Government",Homes England,CAPITAL GRANTS TO RPs (NOT LA),"North East, Yorkshire & the Humber",THE GUINNESS PARTNERSHIP LIMITED,,378734,,,Grants
"Ministry of Housing, Communities and Local Government",Homes England,CAPITAL GRANTS TO RPs (NOT LA),North West,J & M RESIDENTIAL LETTINGS LIMITED,10/10/2019,14400,,,Grants
"Ministry of Housing, Communities and Local Government",Homes England,CAPITAL GRANTS TO RPs (NOT LA),North West,J & M RESIDENTIAL LETTINGS LIMITED,15/10/2019,12600,,,Grants
"Ministry of Housing, Communities and Local Government",Homes England,CAPITAL GRANTS TO RPs (NOT LA),North West,J & M RESIDENTIAL LETTINGS LIMITED,,9000,,,Grants
"Ministry of Housing, Communities and Local Government",Homes England,CAPITAL GRANTS TO RPs (NOT LA),"North East, Yorkshire & the Humber",HELLENS RESIDENTIAL LTD,,119250,,,Grants
"Ministry of Housing, Communities and Local Government",Homes England,CAPITAL GRANTS TO RPs (NOT LA),"North East, Yorkshire & the Humber",HIGHSTONE HOUSING ASSOCIATION,01/11/2019,202500,,,Grants
"Ministry of Housing, Communities and Local Government",Homes England,CAPITAL GRANTS TO RPs (NOT LA),"North East, Yorkshire & the Humber",HIGHSTONE HOUSING ASSOCIATION,,88875,,,Grants
"Ministry of Housing, Communities and Local Government",Homes England,CAPITAL GRANTS TO RPs (NOT LA),"North East, Yorkshire & the Humber",SOUTH TYNESIDE HOUSING VENTURE TRUST LTD,01/11/2019,25000,,,Grants
"Ministry of Housing, Communities and Local Government",Homes England,CAPITAL GRANTS TO RPs (NOT LA),"North East, Yorkshire & the Humber",SOUTH TYNESIDE HOUSING VENTURE TRUST LTD,01/11/2019,25000,,,Grants
"Ministry of Housing, Communities and Local Government",Homes England,CAPITAL GRANTS TO RPs (NOT LA),Midlands,PLATFORM HOUSING GROUP LIMITED,,13000,,,Grants
"Ministry of Housing, Communities and Local Government",Homes England,CAPITAL GRANTS TO RPs (NOT LA),Midlands,PLATFORM HOUSING GROUP LIMITED,,21637,,,Grants
"Ministry of Housing, Communities and Local Government",Homes England,CAPITAL GRANTS TO RPs (NOT LA),South West,DEVON AND CORNWALL HOUSING LIMITED,43759,134400,L,,Grants
"Ministry of Housing, Communities and Local Government",Homes England,CAPITAL GRANTS TO RPs (NOT LA),South West,DEVON AND CORNWALL HOUSING LIMITED,43759,280000,L,,Grants
"Ministry of Housing, Communities and Local Government",Homes England,CAPITAL GRANTS TO RPs (NOT LA),South West,DEVON AND CORNWALL HOUSING LIMITED,43768,117600,L,,Grants
"Ministry of Housing, Communities and Local Government",Homes England,CAPITAL GRANTS TO RPs (NOT LA),South West,DEVON AND CORNWALL HOUSING LIMITED,30/10/2019,245000,L,,Grants
"Ministry of Housing, Communities and Local Government",Homes England,CAPITAL GRANTS TO RPs (NOT LA),South West,DEVON AND CORNWALL HOUSING LIMITED,31/10/2019,150000,L,,Grants
"Ministry of Housing, Communities and Local Government",Homes England,CAPITAL GRANTS TO RPs (NOT LA),South West,DEVON AND CORNWALL HOUSING LIMITED,01/11/2019,189000,L,,Grants
"Ministry of Housing, Communities and Local Government",Homes England,CAPITAL GRANTS TO RPs (NOT LA),South West,DEVON AND CORNWALL HOUSING LIMITED,01/11/2019,202280,L,,Grants
"Ministry of Housing, Communities and Local Government",Homes England,CAPITAL GRANTS TO RPs (NOT LA),South West,DEVON AND CORNWALL HOUSING LIMITED,,112000,L,,Grants
"Ministry of Housing, Communities and Local Government",Homes England,CAPITAL GRANTS TO RPs (NOT LA),South West,DEVON AND CORNWALL HOUSING LIMITED,,40000,L,,Grants
"Ministry of Housing, Communities and Local Government",Homes England,CAPITAL GRANTS TO RPs (NOT LA),South West,LODDON HOMES LIMITED,,90000,,,Grants
"Ministry of Housing, Communities and Local Government",Homes England,CAPITAL GRANTS TO RPs (NOT LA),South West,LODDON HOMES LIMITED,,180000,,,Grants
"Ministry of Housing, Communities and Local Government",Homes England,REVENUE GRANTS TO RPs,Midlands,FORTIS LIVING LIMITED,08/10/2019,65200,L,,Grants
"Ministry of Housing, Communities and Local Government",Homes England,REVENUE GRANTS TO RPs,Midlands,FORTIS LIVING LIMITED,08/10/2019,57800,L,,Grants
"Ministry of Housing, Communities and Local Government",Homes England,REVENUE GRANTS TO RPs,Midlands,FORTIS LIVING LIMITED,08/10/2019,69500,L,,Grants
"Ministry of Housing, Communities and Local Government",Homes England,REVENUE GRANTS TO RPs,Midlands,FORTIS LIVING LIMITED,08/10/2019,58000,L,,Grants
"Ministry of Housing, Communities and Local Government",Homes England,REVENUE GRANTS TO RPs,Midlands,FORTIS LIVING LIMITED,18/10/2019,59750,L,,Grants
"Ministry of Housing, Communities and Local Government",Homes England,REVENUE GRANTS TO RPs,Midlands,FORTIS LIVING LIMITED,18/10/2019,80200,L,,Grants
"Ministry of Housing, Communities and Local Government",Homes England,REVENUE GRANTS TO RPs,Midlands,FORTIS LIVING LIMITED,29/10/2019,75500,L,,Grants
"Ministry of Housing, Communities and Local Government",Homes England,REVENUE GRANTS TO RPs,Midlands,FORTIS LIVING LIMITED,29/10/2019,62680,L,,Grants
"Ministry of Housing, Communities and Local Government",Homes England,REVENUE GRANTS TO RPs,Midlands,FORTIS LIVING LIMITED,29/10/2019,75440,L,,Grants
"Ministry of Housing, Communities and Local Government",Homes England,REVENUE GRANTS TO RPs,Midlands,FORTIS LIVING LIMITED,29/10/2019,74850,L,,Grants
"Ministry of Housing, Communities and Local Government",Homes England,REVENUE GRANTS TO RPs,Midlands,FORTIS LIVING LIMITED,29/10/2019,82900,L,,Grants
"Ministry of Housing, Communities and Local Government",Homes England,REVENUE GRANTS TO RPs,Midlands,FORTIS LIVING LIMITED,30/10/2019,78050,L,,Grants
"Ministry of Housing, Communities and Local Government",Homes England,REVENUE GRANTS TO RPs,Midlands,FORTIS LIVING LIMITED,30/10/2019,74850,L,,Grants
"Ministry of Housing, Communities and Local Government",Homes England,REVENUE GRANTS TO RPs,Midlands,FORTIS LIVING LIMITED,30/10/2019,65550,L,,Grants
"Ministry of Housing, Communities and Local Government",Homes England,REVENUE GRANTS TO RPs,Midlands,FORTIS LIVING LIMITED,30/10/2019,72500,L,,Grants
"Ministry of Housing, Communities and Local Government",Homes England,REVENUE GRANTS TO RPs,Midlands,FORTIS LIVING LIMITED,30/10/2019,82900,L,,Grants
"Ministry of Housing, Communities and Local Government",Homes England,REVENUE GRANTS TO RPs,Midlands,FORTIS LIVING LIMITED,,76400,L,,Grants
"Ministry of Housing, Communities and Local Government",Homes England,REVENUE GRANTS TO RPs,Midlands,FORTIS LIVING LIMITED,,23000,L,,Grants
"Ministry of Housing, Communities and Local Government",Homes England,REVENUE GRANTS TO RPs,Midlands,FORTIS LIVING LIMITED,,82900,L,,Grants
"Ministry of Housing, Communities and Local Government",Homes England,REVENUE GRANTS TO RPs,Midlands,FORTIS LIVING LIMITED,,82900,L,,Grants
"Ministry of Housing, Communities and Local Government",Homes England,REVENUE GRANTS TO RPs,Midlands,OPTIVO,08/10/2019,82900,,,Grants
"Ministry of Housing, Communities and Local Government",Homes England,REVENUE GRANTS TO RPs,East & South East,OPTIVO,30/10/2019,82900,,,Grants
"Ministry of Housing, Communities and Local Government",Homes England,REVENUE GRANTS TO RPs,Midlands,OPTIVO,31/10/2019,74000,,,Grants
"Ministry of Housing, Communities and Local Government",Homes England,REVENUE GRANTS TO RPs,Midlands,OPTIVO,,75700,,,Grants
"Ministry of Housing, Communities and Local Government",Homes England,REVENUE GRANTS TO RPs,Midlands,CLARION HOUSING ASSOCIATION LIMITED,11/10/2019,82900,L,,Grants
"Ministry of Housing, Communities and Local Government",Homes England,REVENUE GRANTS TO RPs,Midlands,CLARION HOUSING ASSOCIATION LIMITED,11/10/2019,82900,L,,Grants
"Ministry of Housing, Communities and Local Government",Homes England,REVENUE GRANTS TO RPs,Midlands,CLARION HOUSING ASSOCIATION LIMITED,29/10/2019,82900,L,,Grants
"Ministry of Housing, Communities and Local Government",Homes England,REVENUE GRANTS TO RPs,Midlands,CLARION HOUSING ASSOCIATION LIMITED,29/10/2019,72300,L,,Grants
"Ministry of Housing, Communities and Local Government",Homes England,REVENUE GRANTS TO RPs,Midlands,CLARION HOUSING ASSOCIATION LIMITED,29/10/2019,68500,L,,Grants
"Ministry of Housing, Communities and Local Government",Homes England,REVENUE GRANTS TO RPs,Midlands,CLARION HOUSING ASSOCIATION LIMITED,29/10/2019,56000,L,,Grants
"Ministry of Housing, Communities and Local Government",Homes England,REVENUE GRANTS TO RPs,Midlands,CLARION HOUSING ASSOCIATION LIMITED,29/10/2019,57000,L,,Grants
"Ministry of Housing, Communities and Local Government",Homes England,REVENUE GRANTS TO RPs,Midlands,CLARION HOUSING ASSOCIATION LIMITED,30/10/2019,82900,L,,Grants
"Ministry of Housing, Communities and Local Government",Homes England,REVENUE GRANTS TO RPs,Midlands,CLARION HOUSING ASSOCIATION LIMITED,30/10/2019,61450,L,,Grants
"Ministry of Housing, Communities and Local Government",Homes England,REVENUE GRANTS TO RPs,Midlands,CLARION HOUSING ASSOCIATION LIMITED,30/10/2019,41200,L,,Grants
"Ministry of Housing, Communities and Local Government",Homes England,REVENUE GRANTS TO RPs,Midlands,CLARION HOUSING ASSOCIATION LIMITED,31/10/2019,69850,L,,Grants
"Ministry of Housing, Communities and Local Government",Homes England,REVENUE GRANTS TO RPs,Midlands,CLARION HOUSING ASSOCIATION LIMITED,31/10/2019,64100,L,,Grants
"Ministry of Housing, Communities and Local Government",Homes England,REVENUE GRANTS TO RPs,Midlands,CLARION HOUSING ASSOCIATION LIMITED,31/10/2019,50980,L,,Grants
"Ministry of Housing, Communities and Local Government",Homes England,REVENUE GRANTS TO RPs,Midlands,CLARION HOUSING ASSOCIATION LIMITED,31/10/2019,64700,L,,Grants
"Ministry of Housing, Communities and Local Government",Homes England,CAPITAL GRANTS TO RPs (NOT LA),"North East, Yorkshire & the Humber",BERNICIA GROUP,29/10/2019,9000,,,Grants
"Ministry of Housing, Communities and Local Government",Homes England,CAPITAL GRANTS TO RPs (NOT LA),"North East, Yorkshire & the Humber",BERNICIA GROUP,29/10/2019,9000,,,Grants
"Ministry of Housing, Communities and Local Government",Homes England,ECONOMIC APPRAISAL,Programmes,AMION CONSULTING LTD,31/10/2019,2000,S,81121500,Economic analysis
"Ministry of Housing, Communities and Local Government",Homes England,OTHER PROFESSIONAL FEES,North West,ATKINS LTD,09/10/2019,2310,L,80131800,Real estate management services
"Ministry of Housing, Communities and Local Government",Homes England,MISC PROFESSIONAL FEES,Programmes,ATKINS LTD,24/10/2019,78405,L,80131800,Real estate management services
"Ministry of Housing, Communities and Local Government",Homes England,OTHER PROFESSIONAL FEES,North West,ATKINS LTD,28/10/2019,10000,L,80131800,Real estate management services
"Ministry of Housing, Communities and Local Government",Homes England,OTHER PROFESSIONAL FEES,North West,ATKINS LTD,29/10/2019,4910,L,80131800,Real estate management services
"Ministry of Housing, Communities and Local Government",Homes England,ST Fund Loans Additions,Economic Assets Hub,ABALONE ESTATES (WARRINGTON) LIMITED,07/10/2019,144000,,,Loans
"Ministry of Housing, Communities and Local Government",Homes England,CONTRACT WORKS,Midlands,WESTERN POWER DISTRIBUTION,16/10/2019,2251.66,L,72101500,Building maintenance and repair services
"Ministry of Housing, Communities and Local Government",Homes England,CONTRACT WORKS,Midlands,WESTERN POWER DISTRIBUTION,16/10/2019,1192.57,L,72101500,Building maintenance and repair services
"Ministry of Housing, Communities and Local Government",Homes England,PROPERTY MAINTENANCE,Midlands,ALPHA HEATING (CHESTERFIELD) LTD,29/10/2019,2551.49,S,72101500,Building maintenance and repair services
"Ministry of Housing, Communities and Local Government",Homes England,CAR LEASING - HIRE CHARGES,North West,LEASEPLAN UK LIMITED,18/10/2019,1714.46,L,25101500,Passenger motor vehicles
"Ministry of Housing, Communities and Local Government",Homes England,CAR LEASING - HIRE CHARGES,North West,LEASEPLAN UK LIMITED,18/10/2019,2303.95,L,25101500,Passenger motor vehicles
"Ministry of Housing, Communities and Local Government",Homes England,FENCE MAINTENANCE,South West,AEWC LIMITED,10/10/2019,10875,S,77101500,Environmental auditing
"Ministry of Housing, Communities and Local Government",Homes England,MISC PROFESSIONAL FEES,Midlands,ELIZABETH AINGE,04/10/2019,250,S,81112103,World wide web WWW site design services�
"Ministry of Housing, Communities and Local Government",Homes England,CAR LEASING - HIRE CHARGES,North East And Yorkshire,ARVAL UK LIMITED,04/10/2019,1404.22,L,25101500,Passenger motor vehicles
"Ministry of Housing, Communities and Local Government",Homes England,CAR LEASING - HIRE CHARGES,North East And Yorkshire,ARVAL UK LIMITED,04/10/2019,1979.13,L,25101500,Passenger motor vehicles
"Ministry of Housing, Communities and Local Government",Homes England,CAR LEASING - HIRE CHARGES,Executive Office,ARVAL UK LIMITED,04/10/2019,1350.83,L,25101500,Passenger motor vehicles
"Ministry of Housing, Communities and Local Government",Homes England,CAR LEASING - HIRE CHARGES,Executive Office,ARVAL UK LIMITED,04/10/2019,1902.71,L,25101500,Passenger motor vehicles
"Ministry of Housing, Communities and Local Government",Homes England,ST Fund Loans Additions,Economic Assets Hub,ALPS DEVELOPMENTS MIDLANDS LIMITED,02/10/2019,36864.87,,,Loans
"Ministry of Housing, Communities and Local Government",Homes England,ST Fund Loans Additions,Economic Assets Hub,ACROM HOLDINGS LTD & ACROM CONSTRUCTION,29/10/2019,72884,,,Loans
"Ministry of Housing, Communities and Local Government",Homes England,MISC PROFESSIONAL FEES,Programmes,ACS CONVEYANCING SEARCHES,24/10/2019,1301.7,S,80131800,Real estate management services
"Ministry of Housing, Communities and Local Government",Homes England,MISC PROFESSIONAL FEES,Programmes,ACS CONVEYANCING SEARCHES,25/10/2019,1536.82,S,80131800,Real estate management services
"Ministry of Housing, Communities and Local Government",Homes England,ESTATE GENERAL MAINTENANCE,North West,ALBEN LANDSCAPES LIMITED,16/10/2019,533.03,S,72101500,Building maintenance and repair services
"Ministry of Housing, Communities and Local Government",Homes England,ESTATE GENERAL MAINTENANCE,Programmes,ALBEN LANDSCAPES LIMITED,17/10/2019,1423.28,S,72101500,Building maintenance and repair services
"Ministry of Housing, Communities and Local Government",Homes England,ROADS & CAR PARKS,Programmes,ALBEN LANDSCAPES LIMITED,18/10/2019,740,S,72101500,Building maintenance and repair services
"Ministry of Housing, Communities and Local Government",Homes England,ST Fund Loans Additions,Economic Assets Hub,AMETHYST HOMES LIMITED,29/10/2019,162672,,,Loans
"Ministry of Housing, Communities and Local Government",Homes England,MANAGEMENT DEVELOPMENT,Finance & Corporate Services,HUNTER ADAMS LIMITED,04/10/2019,6004.8,M,86101800,In service training and manpower development
"Ministry of Housing, Communities and Local Government",Homes England,ESTATE GENERAL MAINTENANCE,North East And Yorkshire,AIREDALE FORESTRY,23/10/2019,413.13,S,72101500,Building maintenance and repair services
"Ministry of Housing, Communities and Local Government",Homes England,ESTATE GENERAL MAINTENANCE,Programmes,AIREDALE FORESTRY,28/10/2019,250,S,72101500,Building maintenance and repair services
"Ministry of Housing, Communities and Local Government",Homes England,ESTATE GENERAL MAINTENANCE,North East And Yorkshire,AIREDALE FORESTRY,28/10/2019,433.06,S,72101500,Building maintenance and repair services
"Ministry of Housing, Communities and Local Government",Homes England,ESTATE GENERAL MAINTENANCE,North East And Yorkshire,AIREDALE FORESTRY,28/10/2019,496.11,S,72101500,Building maintenance and repair services
"Ministry of Housing, Communities and Local Government",Homes England,ESTATE GENERAL MAINTENANCE,North East And Yorkshire,AIREDALE FORESTRY,28/10/2019,541.5,S,72101500,Building maintenance and repair services
"Ministry of Housing, Communities and Local Government",Homes England,ESTATE GENERAL MAINTENANCE,Programmes,AIREDALE FORESTRY,29/10/2019,300,S,72101500,Building maintenance and repair services
"Ministry of Housing, Communities and Local Government",Homes England,ESTATE GENERAL MAINTENANCE,North East And Yorkshire,AIREDALE FORESTRY,30/10/2019,590,S,72101500,Building maintenance and repair services
"Ministry of Housing, Communities and Local Government",Homes England,ESTATE GENERAL MAINTENANCE,North East And Yorkshire,AIREDALE FORESTRY,30/10/2019,400.79,S,72101500,Building maintenance and repair services
"Ministry of Housing, Communities and Local Government",Homes England,ESTATE GENERAL MAINTENANCE,Programmes,AIREDALE FORESTRY,30/10/2019,420.01,S,72101500,Building maintenance and repair services
"Ministry of Housing, Communities and Local Government",Homes England,ST Fund Loans Additions,Economic Assets Hub,ADDERLEY FOSTER DEVELOPMENTS LTD,08/10/2019,36097,,,Loans
"Ministry of Housing, Communities and Local Government",Homes England,DISPOSAL FEES - LEGAL,South West,ASHFORDS,04/10/2019,419,L,80121600,Business law services
"Ministry of Housing, Communities and Local Government",Homes England,LEGAL FEES,South West,ASHFORDS,08/10/2019,300,L,80121600,Business law services
"Ministry of Housing, Communities and Local Government",Homes England,DISPOSAL FEES - LEGAL,South West,ASHFORDS,14/10/2019,2458.54,L,80121600,Business law services
"Ministry of Housing, Communities and Local Government",Homes England,LEGAL FEES,South West,ASHFORDS,28/10/2019,500,L,80121600,Business law services
"Ministry of Housing, Communities and Local Government",Homes England,LEGAL FEES,South West,ASHFORDS,28/10/2019,3000,L,80121600,Business law services
"Ministry of Housing, Communities and Local Government",Homes England,DISPOSAL FEES - LEGAL,South West,ASHFORDS,29/10/2019,1304,L,80121600,Business law services
"Ministry of Housing, Communities and Local Government",Homes England,LEGAL FEES,South West,ASHFORDS,29/10/2019,351,L,80121600,Business law services
"Ministry of Housing, Communities and Local Government",Homes England,BUILDINGS-FIRE PREVENTION,Midlands,ADT FIRE AND SECURITY PLC,21/10/2019,1029.1,L,72102900,Facility maintenance and repair services
"Ministry of Housing, Communities and Local Government",Homes England,BUILDINGS-FIRE PREVENTION,Midlands,ADT FIRE AND SECURITY PLC,23/10/2019,1091.47,L,72102900,Facility maintenance and repair services
"Ministry of Housing, Communities and Local Government",Homes England,CAR LEASING - HIRE CHARGES,Midlands,ARNOLD CLARK FINANCE LIMITED,04/10/2019,1696.38,L,25101500,Passenger motor vehicles
"Ministry of Housing, Communities and Local Government",Homes England,CAR LEASING - HIRE CHARGES,Midlands,ARNOLD CLARK FINANCE LIMITED,04/10/2019,2009.46,L,25101500,Passenger motor vehicles
"Ministry of Housing, Communities and Local Government",Homes England,CAR LEASING - HIRE CHARGES,Programmes,ARNOLD CLARK FINANCE LIMITED,17/10/2019,1641.36,L,25101500,Passenger motor vehicles
"Ministry of Housing, Communities and Local Government",Homes England,CAR LEASING - HIRE CHARGES,Programmes,ARNOLD CLARK FINANCE LIMITED,17/10/2019,2048.16,L,25101500,Passenger motor vehicles
"Ministry of Housing, Communities and Local Government",Homes England,CAR LEASING - HIRE CHARGES,Programmes,ARNOLD CLARK FINANCE LIMITED,17/10/2019,1881.48,L,25101500,Passenger motor vehicles
"Ministry of Housing, Communities and Local Government",Homes England,CAR LEASING - HIRE CHARGES,Programmes,ARNOLD CLARK FINANCE LIMITED,17/10/2019,2419.44,L,25101500,Passenger motor vehicles
"Ministry of Housing, Communities and Local Government",Homes England,CAR LEASING - HIRE CHARGES,North East And Yorkshire,ARNOLD CLARK FINANCE LIMITED,17/10/2019,1850.22,L,25101500,Passenger motor vehicles
"Ministry of Housing, Communities and Local Government",Homes England,CAR LEASING - HIRE CHARGES,North East And Yorkshire,ARNOLD CLARK FINANCE LIMITED,17/10/2019,2802.06,L,25101500,Passenger motor vehicles
"Ministry of Housing, Communities and Local Government",Homes England,COURSES & CONFERENCES,Programmes,ACTORS IN INDUSTRY LTD,30/10/2019,2572.61,S,86101800,In service training and manpower development
"Ministry of Housing, Communities and Local Government",Homes England,LEGAL FEES,Economic Assets Hub,BERWIN LEIGHTON PAISNER,01/10/2019,15889.07,L,80121600,Business law services
"Ministry of Housing, Communities and Local Government",Homes England,LEGAL FEES,South West,BERWIN LEIGHTON PAISNER,02/10/2019,2214,L,80121600,Business law services
"Ministry of Housing, Communities and Local Government",Homes England,LEGAL FEES,East And South East,BERWIN LEIGHTON PAISNER,09/10/2019,3828.5,L,80121600,Business law services
"Ministry of Housing, Communities and Local Government",Homes England,LEGAL FEES (ADMIN ONLY),Finance & Corporate Services,BERWIN LEIGHTON PAISNER,09/10/2019,1221,L,80121600,Business law services
"Ministry of Housing, Communities and Local Government",Homes England,DISPOSAL FEES - LEGAL,East And South East,BERWIN LEIGHTON PAISNER,09/10/2019,7285.39,L,80121600,Business law services
"Ministry of Housing, Communities and Local Government",Homes England,DISPOSAL FEES - LEGAL,East And South East,BERWIN LEIGHTON PAISNER,09/10/2019,8778,L,80121600,Business law services
"Ministry of Housing, Communities and Local Government",Homes England,LEGAL FEES,Economic Assets Hub,BERWIN LEIGHTON PAISNER,10/10/2019,993,L,80121600,Business law services
"Ministry of Housing, Communities and Local Government",Homes England,LEGAL FEES,East And South East,BERWIN LEIGHTON PAISNER,10/10/2019,5000,L,80121600,Business law services
"Ministry of Housing, Communities and Local Government",Homes England,LEGAL FEES,Economic Assets Hub,BERWIN LEIGHTON PAISNER,22/10/2019,3000,L,80121600,Business law services
"Ministry of Housing, Communities and Local Government",Homes England,Other Professional Fees  (Non-asset & Non-land),Programmes,BERWIN LEIGHTON PAISNER,29/10/2019,19000,L,80121600,Business law services
"Ministry of Housing, Communities and Local Government",Homes England,LEGAL FEES,Economic Assets Hub,BERWIN LEIGHTON PAISNER,30/10/2019,1200,L,80121600,Business law services
"Ministry of Housing, Communities and Local Government",Homes England,LEGAL FEES,Economic Assets Hub,BERWIN LEIGHTON PAISNER,30/10/2019,1000,L,80121600,Business law services
"Ministry of Housing, Communities and Local Government",Homes England,LEGAL FEES,South West,BERWIN LEIGHTON PAISNER,30/10/2019,1000,L,80121600,Business law services
"Ministry of Housing, Communities and Local Government",Homes England,LEGAL FEES,South West,BROWNE JACOBSON LLP,01/10/2019,942,L,80121600,Business law services
"Ministry of Housing, Communities and Local Government",Homes England,LEGAL FEES,North West,BROWNE JACOBSON LLP,01/10/2019,2500,L,80121600,Business law services
"Ministry of Housing, Communities and Local Government",Homes England,LEGAL FEES,North West,BROWNE JACOBSON LLP,01/10/2019,3219,L,80121600,Business law services
"Ministry of Housing, Communities and Local Government",Homes England,DISPOSAL FEES - LEGAL,South West,BROWNE JACOBSON LLP,02/10/2019,7119.15,L,80121600,Business law services
"Ministry of Housing, Communities and Local Government",Homes England,LEGAL FEES,South West,BROWNE JACOBSON LLP,43740,1750,L,80121600,Business law services
"Ministry of Housing, Communities and Local Government",Homes England,LEGAL FEES,Programmes,BROWNE JACOBSON LLP,43740,6000,L,80121600,Business law services
"Ministry of Housing, Communities and Local Government",Homes England,LEGAL FEES,Economic Assets Hub,BROWNE JACOBSON LLP,43742,903.9,L,80121600,Business law services
"Ministry of Housing, Communities and Local Government",Homes England,DISPOSAL FEES - LEGAL,Midlands,BROWNE JACOBSON LLP,43745,3517,L,80121600,Business law services
"Ministry of Housing, Communities and Local Government",Homes England,Homebuy Agents Fees,Programmes,BROWNE JACOBSON LLP,07/10/2019,6875,L,80121600,Business law services
"Ministry of Housing, Communities and Local Government",Homes England,DISPOSAL FEES - LEGAL,Midlands,BROWNE JACOBSON LLP,09/10/2019,1950,L,80121600,Business law services
"Ministry of Housing, Communities and Local Government",Homes England,LEGAL FEES,Midlands,BROWNE JACOBSON LLP,10/10/2019,750,L,80121600,Business law services
"Ministry of Housing, Communities and Local Government",Homes England,LEGAL FEES,North West,BROWNE JACOBSON LLP,11/10/2019,5494.55,L,80121600,Business law services
"Ministry of Housing, Communities and Local Government",Homes England,DISPOSAL FEES - LEGAL,Programmes,BROWNE JACOBSON LLP,14/10/2019,2500,L,80121600,Business law services
"Ministry of Housing, Communities and Local Government",Homes England,LEGAL FEES,North West,BROWNE JACOBSON LLP,14/10/2019,310.5,L,80121600,Business law services
"Ministry of Housing, Communities and Local Government",Homes England,LEGAL FEES,South West,BROWNE JACOBSON LLP,14/10/2019,280,L,80121600,Business law services
"Ministry of Housing, Communities and Local Government",Homes England,LEGAL FEES,North East And Yorkshire,BROWNE JACOBSON LLP,14/10/2019,1115,L,80121600,Business law services
"Ministry of Housing, Communities and Local Government",Homes England,LEGAL FEES,Midlands,BROWNE JACOBSON LLP,15/10/2019,280,L,80121600,Business law services
"Ministry of Housing, Communities and Local Government",Homes England,LEGAL FEES,North West,BROWNE JACOBSON LLP,16/10/2019,2211,L,80121600,Business law services
"Ministry of Housing, Communities and Local Government",Homes England,LEGAL FEES,Programmes,BROWNE JACOBSON LLP,17/10/2019,1250,L,80121600,Business law services
"Ministry of Housing, Communities and Local Government",Homes England,DISPOSAL FEES - LEGAL,North West,BROWNE JACOBSON LLP,18/10/2019,5991.8,L,80121600,Business law services
"Ministry of Housing, Communities and Local Government",Homes England,LEGAL FEES,East And South East,BROWNE JACOBSON LLP,23/10/2019,2500,L,80121600,Business law services
"Ministry of Housing, Communities and Local Government",Homes England,DISPOSAL FEES - LEGAL,Midlands,BROWNE JACOBSON LLP,24/10/2019,3180,L,80121600,Business law services
"Ministry of Housing, Communities and Local Government",Homes England,LEGAL FEES,Midlands,BROWNE JACOBSON LLP,25/10/2019,3010,L,80121600,Business law services
"Ministry of Housing, Communities and Local Government",Homes England,DISPOSAL FEES - LEGAL,South West,BROWNE JACOBSON LLP,29/10/2019,1300,L,80121600,Business law services
"Ministry of Housing, Communities and Local Government",Homes England,Homebuy Agents Fees,Programmes,BROWNE JACOBSON LLP,29/10/2019,8635,L,80121600,Business law services
"Ministry of Housing, Communities and Local Government",Homes England,DISPOSAL FEES - LEGAL,Programmes,BROWNE JACOBSON LLP,30/10/2019,1103,L,80121600,Business law services
"Ministry of Housing, Communities and Local Government",Homes England,RI - MONITORING SURVEYOR FEES,Economic Assets Hub,BUILDING DESIGN PARTNERSHIP,04/10/2019,11500,L,80131800,Real estate management services
"Ministry of Housing, Communities and Local Government",Homes England,PLANNING APPLICATIONS,North West,BUILDING DESIGN PARTNERSHIP,11/10/2019,5381.25,L,80131800,Real estate management services
"Ministry of Housing, Communities and Local Government",Homes England,MISC PROFESSIONAL FEES,Programmes,BUILDING DESIGN PARTNERSHIP,16/10/2019,1925,L,80131800,Real estate management services
"Ministry of Housing, Communities and Local Government",Homes England,RI - MONITORING SURVEYOR FEES,Programmes,BUILDING DESIGN PARTNERSHIP,25/10/2019,3600,L,80131800,Real estate management services
"Ministry of Housing, Communities and Local Government",Homes England,RI - MONITORING SURVEYOR FEES,Economic Assets Hub,BUILDING DESIGN PARTNERSHIP,25/10/2019,2300,L,80131800,Real estate management services
"Ministry of Housing, Communities and Local Government",Homes England,MISC PROFESSIONAL FEES,Programmes,BUILDING DESIGN PARTNERSHIP,25/10/2019,5775,L,80131800,Real estate management services
"Ministry of Housing, Communities and Local Government",Homes England,RENT PAYABLE,Midlands,CANAL & RIVER TRUST,09/10/2019,333.75,L,80131500,Lease and rental of property or building
"Ministry of Housing, Communities and Local Government",Homes England,RENT PAYABLE,Midlands,CANAL & RIVER TRUST,09/10/2019,657.5,L,80131500,Lease and rental of property or building
"Ministry of Housing, Communities and Local Government",Homes England,RENT PAYABLE,Midlands,CANAL & RIVER TRUST,09/10/2019,333.75,L,80131500,Lease and rental of property or building
"Ministry of Housing, Communities and Local Government",Homes England,ESTATE GENERAL MAINTENANCE,East And South East,BARGE GROUP LTD,21/10/2019,288.84,S,72101500,Building maintenance and repair services
"Ministry of Housing, Communities and Local Government",Homes England,ENGINEERING CONSULTANTS,South West,PETER BRETT ASSOCIATES LLP,08/10/2019,13249,L,80131800,Real estate management services
"Ministry of Housing, Communities and Local Government",Homes England,Professional Fees Loans Capitalised,Economic Assets Hub,PETER BRETT ASSOCIATES LLP,10/10/2019,6600,L,80131800,Real estate management services
"Ministry of Housing, Communities and Local Government",Homes England,ENGINEERING CONSULTANTS,South West,PETER BRETT ASSOCIATES LLP,16/10/2019,14749,L,80131800,Real estate management services
"Ministry of Housing, Communities and Local Government",Homes England,MISC PROFESSIONAL FEES,North West,PETER BRETT ASSOCIATES LLP,21/10/2019,1011.22,L,80131800,Real estate management services
"Ministry of Housing, Communities and Local Government",Homes England,ENVIRONMENTAL IMPACT ASSESMENTS,East And South East,PETER BRETT ASSOCIATES LLP,23/10/2019,400,L,80131800,Real estate management services
"Ministry of Housing, Communities and Local Government",Homes England,MISC PROFESSIONAL FEES,North East And Yorkshire,PETER BRETT ASSOCIATES LLP,23/10/2019,2455,L,80131800,Real estate management services
"Ministry of Housing, Communities and Local Government",Homes England,MISC PROFESSIONAL FEES,North East And Yorkshire,PETER BRETT ASSOCIATES LLP,23/10/2019,1925,L,80131800,Real estate management services
"Ministry of Housing, Communities and Local Government",Homes England,MISC PROFESSIONAL FEES,North East And Yorkshire,PETER BRETT ASSOCIATES LLP,23/10/2019,1995,L,80131800,Real estate management services
"Ministry of Housing, Communities and Local Government",Homes England,MISC PROFESSIONAL FEES,North East And Yorkshire,PETER BRETT ASSOCIATES LLP,23/10/2019,2495,L,80131800,Real estate management services
"Ministry of Housing, Communities and Local Government",Homes England,MISC PROFESSIONAL FEES,North East And Yorkshire,PETER BRETT ASSOCIATES LLP,23/10/2019,2495,L,80131800,Real estate management services
"Ministry of Housing, Communities and Local Government",Homes England,LEGAL FEES,North East And Yorkshire,PETER BRETT ASSOCIATES LLP,23/10/2019,2495,L,80131800,Real estate management services
"Ministry of Housing, Communities and Local Government",Homes England,PLANNING FEES,South West,PETER BRETT ASSOCIATES LLP,30/10/2019,900,L,80131800,Real estate management services
"Ministry of Housing, Communities and Local Government",Homes England,MASTERPLANNING FEES,South West,PETER BRETT ASSOCIATES LLP,30/10/2019,1540,L,80131800,Real estate management services
"Ministry of Housing, Communities and Local Government",Homes England,PROPERTY SERVICES,South West,PETER BRETT ASSOCIATES LLP,30/10/2019,2030,L,80131800,Real estate management services
"Ministry of Housing, Communities and Local Government",Homes England,ENGINEERING FEES,South West,PETER BRETT ASSOCIATES LLP,30/10/2019,7493,L,80131800,Real estate management services
"Ministry of Housing, Communities and Local Government",Homes England,OTHER PROFESSIONAL FEES,East And South East,PETER BRETT ASSOCIATES LLP,30/10/2019,4570,L,80131800,Real estate management services
"Ministry of Housing, Communities and Local Government",Homes England,MASTERPLANNING FEES,East And South East,PETER BRETT ASSOCIATES LLP,30/10/2019,2000,L,80131800,Real estate management services
"Ministry of Housing, Communities and Local Government",Homes England,MASTERPLANNING FEES,East And South East,PETER BRETT ASSOCIATES LLP,30/10/2019,2200,L,80131800,Real estate management services
"Ministry of Housing, Communities and Local Government",Homes England,PROJECT SPECIFIC FEES & PRELIM EXPENDITURE,East And South East,PETER BRETT ASSOCIATES LLP,30/10/2019,4000,L,80131800,Real estate management services
"Ministry of Housing, Communities and Local Government",Homes England,PROJECT SPECIFIC FEES & PRELIM EXPENDITURE,East And South East,PETER BRETT ASSOCIATES LLP,30/10/2019,5400,L,80131800,Real estate management services
"Ministry of Housing, Communities and Local Government",Homes England,PROPERTY SERVICES,East And South East,PETER BRETT ASSOCIATES LLP,30/10/2019,4500,L,80131800,Real estate management services
"Ministry of Housing, Communities and Local Government",Homes England,OTHER PROFESSIONAL FEES,East And South East,PETER BRETT ASSOCIATES LLP,30/10/2019,9876,L,80131800,Real estate management services
"Ministry of Housing, Communities and Local Government",Homes England,DRAINS & SEWERS,East And South East,PETER BRETT ASSOCIATES LLP,30/10/2019,1175,L,80131800,Real estate management services
"Ministry of Housing, Communities and Local Government",Homes England,ENVIRONMENTAL IMPACT ASSESMENTS,East And South East,PETER BRETT ASSOCIATES LLP,30/10/2019,7000,L,80131800,Real estate management services
"Ministry of Housing, Communities and Local Government",Homes England,ENVIRONMENTAL IMPACT ASSESMENTS,East And South East,PETER BRETT ASSOCIATES LLP,30/10/2019,5400,L,80131800,Real estate management services
"Ministry of Housing, Communities and Local Government",Homes England,ENVIRONMENTAL IMPACT ASSESMENTS,East And South East,PETER BRETT ASSOCIATES LLP,30/10/2019,7780,L,80131800,Real estate management services
"Ministry of Housing, Communities and Local Government",Homes England,ENVIRONMENTAL IMPACT ASSESMENTS,East And South East,PETER BRETT ASSOCIATES LLP,30/10/2019,7820,L,80131800,Real estate management services
"Ministry of Housing, Communities and Local Government",Homes England,MASTERPLANNING FEES,South East,PETER BRETT ASSOCIATES LLP,30/10/2019,88257.89,L,80131800,Real estate management services
"Ministry of Housing, Communities and Local Government",Homes England,AGENCY STAFF,Executive Office,BADENOCH & CLARK,23/10/2019,3870.92,L,80111600,Temporary personnel services
"Ministry of Housing, Communities and Local Government",Homes England,AGENCY STAFF,Executive Office,BADENOCH & CLARK,23/10/2019,3628.99,L,80111600,Temporary personnel services
"Ministry of Housing, Communities and Local Government",Homes England,AGENCY STAFF,Executive Office,BADENOCH & CLARK,23/10/2019,2903.19,L,80111600,Temporary personnel services
"Ministry of Housing, Communities and Local Government",Homes England,AGENCY STAFF,Executive Office,BADENOCH & CLARK,23/10/2019,3870.92,L,80111600,Temporary personnel services
"Ministry of Housing, Communities and Local Government",Homes England,AGENCY STAFF,Executive Office,BADENOCH & CLARK,23/10/2019,3870.92,L,80111600,Temporary personnel services
"Ministry of Housing, Communities and Local Government",Homes England,HOME WORKERS,Finance & Corporate Services,BRITISH TELECOMMUNICATIONS PLC,03/10/2019,577.29,L,83111500,Local and long distance telephone communications
"Ministry of Housing, Communities and Local Government",Homes England,HOME WORKERS,Finance & Corporate Services,BRITISH TELECOMMUNICATIONS PLC,03/10/2019,896,L,83111500,Local and long distance telephone communications
"Ministry of Housing, Communities and Local Government",Homes England,TELEPHONES,Finance & Corporate Services,BRITISH TELECOMMUNICATIONS PLC,08/10/2019,342.91,L,83111500,Local and long distance telephone communications
"Ministry of Housing, Communities and Local Government",Homes England,HOME WORKERS,Finance & Corporate Services,BRITISH TELECOMMUNICATIONS PLC,28/10/2019,896,L,83111500,Local and long distance telephone communications
"Ministry of Housing, Communities and Local Government",Homes England,TELEPHONES,Finance & Corporate Services,BRITISH TELECOMMUNICATIONS PLC,30/10/2019,345.22,L,83111500,Local and long distance telephone communications
"Ministry of Housing, Communities and Local Government",Homes England,PROMOTIONAL EVENTS,Executive Office,BNETWORK,09/10/2019,16707.33,M,90111600,Meeting facilities
"Ministry of Housing, Communities and Local Government",Homes England,BUILDINGS-ELECTRICITY,North East And Yorkshire,BRITISH GAS BUSINESS,15/10/2019,273.77,L,83101800,Electric utilities
"Ministry of Housing, Communities and Local Government",Homes England,BUILDINGS-ELECTRICITY,South West,BRITISH GAS BUSINESS,21/10/2019,258.15,L,83101800,Electric utilities
"Ministry of Housing, Communities and Local Government",Homes England,BUILDINGS-VACANT RATES,Midlands,BIRMINGHAM CITY COUNCIL,24/10/2019,21241.29,G,80131500,Lease and rental of property or building
"Ministry of Housing, Communities and Local Government",Homes England,CONTRACT WORKS,South West,KNIGHTS BROWN CONSTRUCTION LIMITED,24/10/2019,182889.15,M,72141500,Land preparation services
"Ministry of Housing, Communities and Local Government",Homes England,ST Fund Loans Additions,Economic Assets Hub,BRAMJILL DEVELOPMENTS LIMITED,25/10/2019,250000,,,Loans
"Ministry of Housing, Communities and Local Government",Homes England,ST Fund Loans Additions,Economic Assets Hub,BOOTHAM DEVELOPMENTS LLP,11/10/2019,56706.19,,,Loans
"Ministry of Housing, Communities and Local Government",Homes England,OTHER PROFESSIONAL FEES,North West,BETWEEN DESIGN LIMITED,11/10/2019,627.93,S,82131600,Photographers and cinematographers
"Ministry of Housing, Communities and Local Government",Homes England,ESTATE GENERAL MAINTENANCE,Midlands,BENBOW BROS (TIMBER) LTD,01/10/2019,7250,S,72101500,Building maintenance and repair services
"Ministry of Housing, Communities and Local Government",Homes England,ESTATE GENERAL MAINTENANCE,Midlands,BENBOW BROS (TIMBER) LTD,21/10/2019,2975,S,72101500,Building maintenance and repair services
"Ministry of Housing, Communities and Local Government",Homes England,COST OF ACQUISITION,Programmes,BERWIN LEIGHTON PAISNER,21/10/2019,2616455,,,Acquisitions
"Ministry of Housing, Communities and Local Government",Homes England,RENT PAYABLE,Programmes,BASILDON RUGBY FOOTBALL CLUB,11/10/2019,2705,S,80131500,Lease and rental of property or building
"Ministry of Housing, Communities and Local Government",Homes England,RI - MONITORING SURVEYOR FEES,Economic Assets Hub,BNP PARIBAS REAL ESTATE,01/10/2019,650,L,80131800,Real estate management services
"Ministry of Housing, Communities and Local Government",Homes England,Professional Fees Loans Capitalised,Programmes,BNP PARIBAS REAL ESTATE,01/10/2019,500,L,80131800,Real estate management services
"Ministry of Housing, Communities and Local Government",Homes England,Professional Fees Loans Capitalised,Economic Assets Hub,BNP PARIBAS REAL ESTATE,02/10/2019,900,L,80131800,Real estate management services
"Ministry of Housing, Communities and Local Government",Homes England,MISC PROFESSIONAL FEES,Programmes,BNP PARIBAS REAL ESTATE,07/10/2019,30516,L,80131800,Real estate management services
"Ministry of Housing, Communities and Local Government",Homes England,MISC PROFESSIONAL FEES,Programmes,BNP PARIBAS REAL ESTATE,07/10/2019,33248,L,80131800,Real estate management services
"Ministry of Housing, Communities and Local Government",Homes England,RI - MONITORING SURVEYOR FEES,Programmes,BNP PARIBAS REAL ESTATE,09/10/2019,600,L,80131800,Real estate management services
"Ministry of Housing, Communities and Local Government",Homes England,Professional Fees Loans Capitalised,Economic Assets Hub,BNP PARIBAS REAL ESTATE,11/10/2019,3500,L,80131800,Real estate management services
"Ministry of Housing, Communities and Local Government",Homes England,RI - MONITORING SURVEYOR FEES,Economic Assets Hub,BNP PARIBAS REAL ESTATE,22/10/2019,600,L,80131800,Real estate management services
"Ministry of Housing, Communities and Local Government",Homes England,RI - MONITORING SURVEYOR FEES,Programmes,BNP PARIBAS REAL ESTATE,22/10/2019,600,L,80131800,Real estate management services
"Ministry of Housing, Communities and Local Government",Homes England,Professional Fees Loans Capitalised,Programmes,BNP PARIBAS REAL ESTATE,22/10/2019,600,L,80131800,Real estate management services
"Ministry of Housing, Communities and Local Government",Homes England,RI - MONITORING SURVEYOR FEES,Programmes,BNP PARIBAS REAL ESTATE,30/10/2019,700,L,80131800,Real estate management services
"Ministry of Housing, Communities and Local Government",Homes England,OPEN MARKET VALUATION FEE,East And South East,BNP PARIBAS REAL ESTATE,30/10/2019,4500,L,80131800,Real estate management services
"Ministry of Housing, Communities and Local Government",Homes England,OPEN MARKET VALUATION FEE,East And South East,BNP PARIBAS REAL ESTATE,31/10/2019,9500,L,80131800,Real estate management services
"Ministry of Housing, Communities and Local Government",Homes England,CONTRACT WORKS,North East And Yorkshire,BRITISH TELECOM - OPENREACH,04/10/2019,82091.59,L,81161700,Telecommunication Services�
"Ministry of Housing, Communities and Local Government",Homes England,SIGNS & NOTICEBOARDS,Programmes,G BURLEY & SONS LTD,18/10/2019,350.56,S,72101500,Building maintenance and repair services
"Ministry of Housing, Communities and Local Government",Homes England,SIGNS & NOTICEBOARDS,Programmes,G BURLEY & SONS LTD,18/10/2019,350.56,S,72101500,Building maintenance and repair services
"Ministry of Housing, Communities and Local Government",Homes England,SIGNS & NOTICEBOARDS,Programmes,G BURLEY & SONS LTD,18/10/2019,350.56,S,72101500,Building maintenance and repair services
"Ministry of Housing, Communities and Local Government",Homes England,ESTATE GENERAL MAINTENANCE,Programmes,G BURLEY & SONS LTD,18/10/2019,575,S,72101500,Building maintenance and repair services
"Ministry of Housing, Communities and Local Government",Homes England,ESTATE GENERAL MAINTENANCE,Programmes,G BURLEY & SONS LTD,18/10/2019,324.19,S,72101500,Building maintenance and repair services
"Ministry of Housing, Communities and Local Government",Homes England,MANAGEMENT COSTS,South West,BERRYS,02/10/2019,2612.5,S,80131800,Real estate management services
"Ministry of Housing, Communities and Local Government",Homes England,PROPERTY SERVICES,East And South East,BERRYS,07/10/2019,2140,S,80131800,Real estate management services
"Ministry of Housing, Communities and Local Government",Homes England,ESTATE AGENTS FEES,East And South East,BERRYS,22/10/2019,1076,S,80131800,Real estate management services
"Ministry of Housing, Communities and Local Government",Homes England,OTHER PROFESSIONAL FEES,North West,BERRYS,24/10/2019,750,S,80131800,Real estate management services
"Ministry of Housing, Communities and Local Government",Homes England,Software - Additions,Finance & Corporate Services,ADVANCED BUSINESS SOLUTIONS,08/10/2019,2210,M,81112200,Software maintenance and support
"Ministry of Housing, Communities and Local Government",Homes England,ENGINEERING CONSULTANTS,North West,CAMPBELL REITH,01/10/2019,7127.65,M,77101500,Environmental auditing
"Ministry of Housing, Communities and Local Government",Homes England,OTHER PROFESSIONAL FEES,Midlands,CAMPBELL REITH,02/10/2019,4950,M,77101500,Environmental auditing
"Ministry of Housing, Communities and Local Government",Homes England,MISC PROFESSIONAL FEES,South West,CAMPBELL REITH,07/10/2019,10500,M,77101500,Environmental auditing
"Ministry of Housing, Communities and Local Government",Homes England,MISC PROFESSIONAL FEES,South West,CAMPBELL REITH,07/10/2019,7500,M,77101500,Environmental auditing
"Ministry of Housing, Communities and Local Government",Homes England,ENGINEERING FEES,South West,CAMPBELL REITH,07/10/2019,4847.5,M,77101500,Environmental auditing
"Ministry of Housing, Communities and Local Government",Homes England,PLANNING APPLICATIONS,Programmes,CAMPBELL REITH,09/10/2019,3750,M,77101500,Environmental auditing
"Ministry of Housing, Communities and Local Government",Homes England,LEGAL FEES,South West,CAMPBELL REITH,11/10/2019,4000,M,77101500,Environmental auditing
"Ministry of Housing, Communities and Local Government",Homes England,LEGAL FEES,South West,CAMPBELL REITH,11/10/2019,5987.5,M,77101500,Environmental auditing
"Ministry of Housing, Communities and Local Government",Homes England,OTHER PROFESSIONAL FEES,North East And Yorkshire,CAMPBELL REITH,14/10/2019,67196.41,M,77101500,Environmental auditing
"Ministry of Housing, Communities and Local Government",Homes England,OTHER PROFESSIONAL FEES,Midlands,CAMPBELL REITH,14/10/2019,1500,M,77101500,Environmental auditing
"Ministry of Housing, Communities and Local Government",Homes England,PLANNING APPLICATIONS,North West,CAMPBELL REITH,14/10/2019,81723.13,M,77101500,Environmental auditing
"Ministry of Housing, Communities and Local Government",Homes England,ENGINEERING CONSULTANTS,East And South East,CAMPBELL REITH,14/10/2019,950,M,77101500,Environmental auditing
"Ministry of Housing, Communities and Local Government",Homes England,RI - MONITORING SURVEYOR FEES,Economic Assets Hub,CAMPBELL REITH,18/10/2019,1200,M,77101500,Environmental auditing
"Ministry of Housing, Communities and Local Government",Homes England,ENGINEERING FEES,South West,CAMPBELL REITH,23/10/2019,4352.25,M,77101500,Environmental auditing
"Ministry of Housing, Communities and Local Government",Homes England,ENGINEERING CONSULTANTS,East And South East,CAMPBELL REITH,23/10/2019,757.6,M,77101500,Environmental auditing
"Ministry of Housing, Communities and Local Government",Homes England,OTHER PROFESSIONAL FEES,East And South East,CAMPBELL REITH,23/10/2019,1450.95,M,77101500,Environmental auditing
"Ministry of Housing, Communities and Local Government",Homes England,ENGINEERING FEES,East And South East,CAMPBELL REITH,23/10/2019,2500,M,77101500,Environmental auditing
"Ministry of Housing, Communities and Local Government",Homes England,ENGINEERING FEES,Midlands,CAMPBELL REITH,25/10/2019,4480,M,77101500,Environmental auditing
"Ministry of Housing, Communities and Local Government",Homes England,ENVIRONMENTAL IMPACT ASSESMENTS,North West,CAMPBELL REITH,25/10/2019,923.06,M,77101500,Environmental auditing
"Ministry of Housing, Communities and Local Government",Homes England,ENGINEERING FEES,Midlands,CAMPBELL REITH,25/10/2019,12330,M,77101500,Environmental auditing
"Ministry of Housing, Communities and Local Government",Homes England,OPEN MARKET VALUATION FEE,East And South East,CARTER JONAS,02/10/2019,7500,L,80131800,Real estate management services
"Ministry of Housing, Communities and Local Government",Homes England,DISPOSAL FEES - PROPERTY AGENTS & ADVERTISING,East And South East,CARTER JONAS,02/10/2019,5000,L,80131800,Real estate management services
"Ministry of Housing, Communities and Local Government",Homes England,MISC PROFESSIONAL FEES,Programmes,CARTER JONAS,17/10/2019,13361.25,L,80131800,Real estate management services
"Ministry of Housing, Communities and Local Government",Homes England,MISC PROFESSIONAL FEES,Programmes,CARTER JONAS,17/10/2019,13236.25,L,80131800,Real estate management services
"Ministry of Housing, Communities and Local Government",Homes England,PROJECT MANAGEMENT,East And South East,CARTER JONAS,22/10/2019,6768.13,L,80131800,Real estate management services
"Ministry of Housing, Communities and Local Government",Homes England,PROJECT MANAGEMENT,East And South East,CARTER JONAS,22/10/2019,11139,L,80131800,Real estate management services
"Ministry of Housing, Communities and Local Government",Homes England,PROJECT MANAGEMENT,East And South East,CARTER JONAS,22/10/2019,12706.1,L,80131800,Real estate management services
"Ministry of Housing, Communities and Local Government",Homes England,OPEN MARKET VALUATION FEE,East And South East,CARTER JONAS,29/10/2019,5000,L,80131800,Real estate management services
"Ministry of Housing, Communities and Local Government",Homes England,OTHER PROFESSIONAL FEES,Programmes,CARTER JONAS,29/10/2019,3166.67,L,80131800,Real estate management services
"Ministry of Housing, Communities and Local Government",Homes England,OTHER PROFESSIONAL FEES,Programmes,CARTER JONAS,29/10/2019,3166.67,L,80131800,Real estate management services
"Ministry of Housing, Communities and Local Government",Homes England,OTHER PROFESSIONAL FEES,Programmes,CARTER JONAS,29/10/2019,3166.67,L,80131800,Real estate management services
"Ministry of Housing, Communities and Local Government",Homes England,OTHER PROFESSIONAL FEES,Programmes,CARTER JONAS,29/10/2019,3166.67,L,80131800,Real estate management services
"Ministry of Housing, Communities and Local Government",Homes England,OTHER PROFESSIONAL FEES,Programmes,CARTER JONAS,29/10/2019,3166.67,L,80131800,Real estate management services
"Ministry of Housing, Communities and Local Government",Homes England,OTHER PROFESSIONAL FEES,Programmes,CARTER JONAS,29/10/2019,3166.67,L,80131800,Real estate management services
"Ministry of Housing, Communities and Local Government",Homes England,OTHER PROFESSIONAL FEES,Programmes,CARTER JONAS,29/10/2019,500,L,80131800,Real estate management services
"Ministry of Housing, Communities and Local Government",Homes England,OPEN MARKET VALUATION FEE,South West,CARTER JONAS,30/10/2019,5250,L,80131800,Real estate management services
"Ministry of Housing, Communities and Local Government",Homes England,CONTRACT WORKS,Midlands,CADENT GAS LIMITED,29/10/2019,1066.56,S,72101500,Building maintenance and repair services
"Ministry of Housing, Communities and Local Government",Homes England,CONTRACT WORKS,Midlands,CADENT GAS LIMITED,29/10/2019,1111,S,72101500,Building maintenance and repair services
"Ministry of Housing, Communities and Local Government",Homes England,CONTRACT WORKS,Midlands,CADENT GAS LIMITED,30/10/2019,1111,S,72101500,Building maintenance and repair services
"Ministry of Housing, Communities and Local Government",Homes England,GAS,Finance & Corporate Services,CORONA ENERGY,14/10/2019,391.97,L,83101600,Oil and gas utilities
"Ministry of Housing, Communities and Local Government",Homes England,GAS,Finance & Corporate Services,CORONA ENERGY,14/10/2019,357.82,L,83101600,Oil and gas utilities
"Ministry of Housing, Communities and Local Government",Homes England,LT Fund Loans (Ps) Additions,Economic Assets Hub,CHAPEL RIVERSIDE DEVELOPMENTS LIMITED,14/10/2019,145837,,,Loans
"Ministry of Housing, Communities and Local Government",Homes England,ST Fund Loans Additions,Economic Assets Hub,CHAPEL RIVERSIDE DEVELOPMENTS LIMITED,14/10/2019,509041.99,,,Loans
"Ministry of Housing, Communities and Local Government",Homes England,BUILDINGS-ELECTRICITY,North East And Yorkshire,COMMERCIAL ENERGY ASSESSMENT NORTH EAST LTD,08/10/2019,250,S,77101500,Environmental auditing
"Ministry of Housing, Communities and Local Government",Homes England,PROPERTY MAINTENANCE,North East And Yorkshire,COMMERCIAL ENERGY ASSESSMENT NORTH EAST LTD,29/10/2019,450,S,77101500,Environmental auditing
"Ministry of Housing, Communities and Local Government",Homes England,ST Fund Loans Additions,Economic Assets Hub,CAMPBELL HOMES DEVELOPMENTS LIMITED,02/10/2019,50035,,,Loans
"Ministry of Housing, Communities and Local Government",Homes England,LAND REMEDIATION,Programmes,CAMBRIDGE ARCHAEOLOGY UNIT,07/10/2019,53286.6,L,80131800,Real estate management services
"Ministry of Housing, Communities and Local Government",Homes England,ST Fund Loans Additions,Economic Assets Hub,C & S HOMES LLP,03/10/2019,53516.97,,,Loans
"Ministry of Housing, Communities and Local Government",Homes England,Professional Fees Loans Capitalised,Economic Assets Hub,COLLIERS INTERNATIONAL PROPERTY CONSULTANTS,02/10/2019,3750,S,80131800,Real estate management services
"Ministry of Housing, Communities and Local Government",Homes England,LAND REMEDIATION,South West,COGNITION LAND & WATER,21/10/2019,231276.64,M,72141500,Land preparation services
"Ministry of Housing, Communities and Local Government",Homes England,LEGAL FEES,Programmes,CLARKE WILLMOTT LLP,04/10/2019,2114.26,M,80121600,Business law services
"Ministry of Housing, Communities and Local Government",Homes England,LEGAL FEES,Programmes,CLARKE WILLMOTT LLP,11/10/2019,6948,M,80121600,Business law services
"Ministry of Housing, Communities and Local Government",Homes England,Homebuy Agents Fees,Programmes,CLARKE WILLMOTT LLP,15/10/2019,9860,M,80121600,Business law services
"Ministry of Housing, Communities and Local Government",Homes England,Homebuy Agents Fees,Programmes,CLARKE WILLMOTT LLP,16/10/2019,4598.5,M,80121600,Business law services
"Ministry of Housing, Communities and Local Government",Homes England,LEGAL FEES,South West,CLARKE WILLMOTT LLP,23/10/2019,3078.04,M,80121600,Business law services
"Ministry of Housing, Communities and Local Government",Homes England,LEGAL FEES,South West,CLARKE WILLMOTT LLP,23/10/2019,6512,M,80121600,Business law services
"Ministry of Housing, Communities and Local Government",Homes England,Homebuy Agents Fees,Programmes,CLARKE WILLMOTT LLP,30/10/2019,7120,M,80121600,Business law services
"Ministry of Housing, Communities and Local Government",Homes England,Homebuy Agents Fees,Programmes,CLARKE WILLMOTT LLP,30/10/2019,4510,M,80121600,Business law services
"Ministry of Housing, Communities and Local Government",Homes England,CLEANING,Finance & Corporate Services,CHURCHILL CLEANING SERVICES LTD,04/10/2019,3342.41,S,76111504,Window or window blind cleaning services
"Ministry of Housing, Communities and Local Government",Homes England,PENSION SCHEME FEES,Finance & Corporate Services,CITY OF WESTMINSTER SUPERANNUATION FUND,17/10/2019,28623.44,L,94101600,Professional associations
"Ministry of Housing, Communities and Local Government",Homes England,PENSION SCHEME FEES,Finance & Corporate Services,CITY OF WESTMINSTER SUPERANNUATION FUND,17/10/2019,5314.28,S,72141500,Land preparation services
"Ministry of Housing, Communities and Local Government",Homes England,REVENUE GRANTS TO LOCAL AUTHORITIES,Programmes,CENTRAL BEDFORDSHIRE COUNCIL,11/10/2019,160000,G,,Grants
"Ministry of Housing, Communities and Local Government",Homes England,ST Fund Loans Additions,Economic Assets Hub,CC HOMES LTD,03/10/2019,11938,,,Loans
"Ministry of Housing, Communities and Local Government",Homes England,ST Fund Loans Additions,Economic Assets Hub,CC HOMES LTD,23/10/2019,22656,,,Loans
"Ministry of Housing, Communities and Local Government",Homes England,CONTRACT WORKS,Midlands,CITY DEMOLITION CONTRACTORS (BIRMINGHAM) LTD,17/10/2019,9750,L,72101500,Building maintenance and repair services
"Ministry of Housing, Communities and Local Government",Homes England,CONTRACT WORKS,Midlands,CITY DEMOLITION CONTRACTORS (BIRMINGHAM) LTD,17/10/2019,9500,L,72101500,Building maintenance and repair services
"Ministry of Housing, Communities and Local Government",Homes England,MANAGEMENT COSTS,South West,C.M.A. (NEMESIS) LTD,01/10/2019,294,S,72102100,Pest control
"Ministry of Housing, Communities and Local Government",Homes England,MANAGEMENT COSTS,South West,C.M.A. (NEMESIS) LTD,10/10/2019,5000,S,72102100,Pest control
"Ministry of Housing, Communities and Local Government",Homes England,PROPERTY MAINTENANCE,South West,C.M.A. (NEMESIS) LTD,10/10/2019,750,S,72102100,Pest control
"Ministry of Housing, Communities and Local Government",Homes England,MANAGEMENT COSTS,South West,C.M.A. (NEMESIS) LTD,10/10/2019,2660,S,72102100,Pest control
"Ministry of Housing, Communities and Local Government",Homes England,GROUNDS ITINERANT PREVENTION,South West,C.M.A. (NEMESIS) LTD,10/10/2019,5050,S,72102100,Pest control
"Ministry of Housing, Communities and Local Government",Homes England,BUILDINGS-CLEANING,South West,C.M.A. (NEMESIS) LTD,10/10/2019,5632,S,72102100,Pest control
"Ministry of Housing, Communities and Local Government",Homes England,MANAGEMENT COSTS,South West,C.M.A. (NEMESIS) LTD,15/10/2019,294,S,72102100,Pest control
"Ministry of Housing, Communities and Local Government",Homes England,MANAGEMENT COSTS,South West,C.M.A. (NEMESIS) LTD,16/10/2019,285,S,72102100,Pest control
"Ministry of Housing, Communities and Local Government",Homes England,LANDSCAPE MAINT-BUILT ESTATE,East And South East,CLAPHAMS LANDSCAPE SERVICES LTD,08/10/2019,444.61,S,72101500,Building maintenance and repair services
"Ministry of Housing, Communities and Local Government",Homes England,MANAGEMENT COSTS,South West,CLAPHAMS LANDSCAPE SERVICES LTD,10/10/2019,650,S,72101500,Building maintenance and repair services
"Ministry of Housing, Communities and Local Government",Homes England,LANDSCAPE MAINT-BUILT ESTATE,South West,COUNTRYWIDE GROUNDS MAINTENANCE LTD,01/10/2019,273.33,L,72101500,Building maintenance and repair services
"Ministry of Housing, Communities and Local Government",Homes England,CONTRACT WORKS,South West,CONCEPT BUILDING SERVICES  (SOUTHERN) LTD,08/10/2019,1885.35,M,72101500,Building maintenance and repair services
"Ministry of Housing, Communities and Local Government",Homes England,DRAINS & SEWERS,Midlands,CHRIS BREEZE LTD,24/10/2019,1325,S,76122300,Recycling services
"Ministry of Housing, Communities and Local Government",Homes England,FENCE MAINTENANCE,East And South East,K D CHILDS STONEWORK DEVELOPMENTS,09/10/2019,4500,S,72101500,Building maintenance and repair services
"Ministry of Housing, Communities and Local Government",Homes England,ESTATE GENERAL MAINTENANCE,East And South East,K D CHILDS STONEWORK DEVELOPMENTS,18/10/2019,4850,S,72101500,Building maintenance and repair services
"Ministry of Housing, Communities and Local Government",Homes England,PROPERTY MAINTENANCE,Programmes,C-ELECT ASSOCIATES LIMITED,02/10/2019,812,S,72101500,Building maintenance and repair services
"Ministry of Housing, Communities and Local Government",Homes England,BUILDINGS-ELECTRICITY,South West,C-ELECT ASSOCIATES LIMITED,11/10/2019,650,S,72101500,Building maintenance and repair services
"Ministry of Housing, Communities and Local Government",Homes England,ESTATE GENERAL MAINTENANCE,East And South East,C-ELECT ASSOCIATES LIMITED,11/10/2019,700,S,72101500,Building maintenance and repair services
"Ministry of Housing, Communities and Local Government",Homes England,PROPERTY MAINTENANCE,Programmes,C-ELECT ASSOCIATES LIMITED,16/10/2019,275,S,72101500,Building maintenance and repair services
"Ministry of Housing, Communities and Local Government",Homes England,PROPERTY MAINTENANCE,Programmes,C-ELECT ASSOCIATES LIMITED,16/10/2019,275,S,72101500,Building maintenance and repair services
"Ministry of Housing, Communities and Local Government",Homes England,PROPERTY MAINTENANCE,Programmes,C-ELECT ASSOCIATES LIMITED,16/10/2019,475,S,72101500,Building maintenance and repair services
"Ministry of Housing, Communities and Local Government",Homes England,PROPERTY MAINTENANCE,Programmes,C-ELECT ASSOCIATES LIMITED,16/10/2019,475,S,72101500,Building maintenance and repair services
"Ministry of Housing, Communities and Local Government",Homes England,PROPERTY MAINTENANCE,Programmes,C-ELECT ASSOCIATES LIMITED,16/10/2019,500,S,72101500,Building maintenance and repair services
"Ministry of Housing, Communities and Local Government",Homes England,PROPERTY MAINTENANCE,Programmes,C-ELECT ASSOCIATES LIMITED,16/10/2019,1500,S,72101500,Building maintenance and repair services
"Ministry of Housing, Communities and Local Government",Homes England,ESTATE GENERAL MAINTENANCE,Programmes,CONTINENTAL LANDSCAPES - GREENHAND,01/10/2019,3079,L,72101500,Building maintenance and repair services
"Ministry of Housing, Communities and Local Government",Homes England,ESTATE GENERAL MAINTENANCE,Programmes,CONTINENTAL LANDSCAPES - GREENHAND,01/10/2019,3079,L,72101500,Building maintenance and repair services
"Ministry of Housing, Communities and Local Government",Homes England,ESTATE GENERAL MAINTENANCE,Programmes,CONTINENTAL LANDSCAPES - GREENHAND,01/10/2019,3079,L,72101500,Building maintenance and repair services
"Ministry of Housing, Communities and Local Government",Homes England,BUILDINGS-VACANT RATES,North West,CARLISLE CITY COUNCIL,30/10/2019,2321.2,G,80131500,Lease and rental of property or building
"Ministry of Housing, Communities and Local Government",Homes England,BUILDINGS-VACANT RATES,North West,CARLISLE CITY COUNCIL,30/10/2019,2802.6,G,80131500,Lease and rental of property or building
"Ministry of Housing, Communities and Local Government",Homes England,BUILDINGS-WATER,South West,CASTLE WATER LIMITED,10/10/2019,1177.32,M,83101500,Water and sewer utilities
"Ministry of Housing, Communities and Local Government",Homes England,BUILDINGS-VACANT RATES,South West,CB RICHARD ELLIS,08/10/2019,1687,L,80131800,Real estate management services
"Ministry of Housing, Communities and Local Government",Homes England,RI - MONITORING SURVEYOR FEES,Economic Assets Hub,CB RICHARD ELLIS,10/10/2019,1711.3,L,80131800,Real estate management services
"Ministry of Housing, Communities and Local Government",Homes England,RI - MONITORING SURVEYOR FEES,Economic Assets Hub,CB RICHARD ELLIS,10/10/2019,1650,L,80131800,Real estate management services
"Ministry of Housing, Communities and Local Government",Homes England,PROPERTY SERVICES,South West,CB RICHARD ELLIS,10/10/2019,500,L,80131800,Real estate management services
"Ministry of Housing, Communities and Local Government",Homes England,MISC PROFESSIONAL FEES,Programmes,CB RICHARD ELLIS,15/10/2019,36000,L,80131800,Real estate management services
"Ministry of Housing, Communities and Local Government",Homes England,MISC PROFESSIONAL FEES,Programmes,CB RICHARD ELLIS,25/10/2019,9500,L,80131800,Real estate management services
"Ministry of Housing, Communities and Local Government",Homes England,ST Fund Loans Additions,Economic Assets Hub,COLN AT THE KNOLL LTD,03/10/2019,91027,,,Loans
"Ministry of Housing, Communities and Local Government",Homes England,ST Fund Loans Additions,Economic Assets Hub,COLN AT THE KNOLL LTD,11/10/2019,345883,,,Loans
"Ministry of Housing, Communities and Local Government",Homes England,ST Fund Loans Additions,Economic Assets Hub,COLN AT THE KNOLL LTD,30/10/2019,210266,,,Loans
"Ministry of Housing, Communities and Local Government",Homes England,OTHER PROFESSIONAL FEES,Programmes,CURTINS,08/10/2019,1750,L,81102200,Transport Engineering
"Ministry of Housing, Communities and Local Government",Homes England,OTHER PROFESSIONAL FEES,Programmes,CURTINS,08/10/2019,3000,L,81102200,Transport Engineering
"Ministry of Housing, Communities and Local Government",Homes England,MASTERPLANNING FEES,South West,CURTINS,17/10/2019,11038.5,L,81102200,Transport Engineering
"Ministry of Housing, Communities and Local Government",Homes England,LAND RENTS,South West,THE CROWN ESTATE,16/10/2019,12827.5,G,80131500,Lease and rental of property or building
"Ministry of Housing, Communities and Local Government",Homes England,PROPERTY MAINTENANCE,East And South East,CHANNEL ENGINEERING LTD,02/10/2019,265,S,72101500,Building maintenance and repair services
"Ministry of Housing, Communities and Local Government",Homes England,ESTATE GENERAL MAINTENANCE,East And South East,CHANNEL ENGINEERING LTD,09/10/2019,255,S,72101500,Building maintenance and repair services
"Ministry of Housing, Communities and Local Government",Homes England,PROPERTY MAINTENANCE,East And South East,CHANNEL ENGINEERING LTD,09/10/2019,1119,S,72101500,Building maintenance and repair services
"Ministry of Housing, Communities and Local Government",Homes England,ROADS & CAR PARKS,East And South East,CHANNEL ENGINEERING LTD,09/10/2019,868,S,72101500,Building maintenance and repair services
"Ministry of Housing, Communities and Local Government",Homes England,PROPERTY MAINTENANCE,East And South East,CHANNEL ENGINEERING LTD,16/10/2019,1364.6,S,72101500,Building maintenance and repair services
"Ministry of Housing, Communities and Local Government",Homes England,PROPERTY MAINTENANCE,East And South East,CHANNEL ENGINEERING LTD,16/10/2019,293,S,72101500,Building maintenance and repair services
"Ministry of Housing, Communities and Local Government",Homes England,PROPERTY MAINTENANCE,East And South East,CHANNEL ENGINEERING LTD,24/10/2019,2807,S,72101500,Building maintenance and repair services
"Ministry of Housing, Communities and Local Government",Homes England,ESTATE GENERAL MAINTENANCE,Programmes,CARTWRIGHT LANDSCAPES,09/10/2019,674.89,S,72101500,Building maintenance and repair services
"Ministry of Housing, Communities and Local Government",Homes England,ESTATE GENERAL MAINTENANCE,Programmes,CARTWRIGHT LANDSCAPES,18/10/2019,488.05,S,72101500,Building maintenance and repair services
"Ministry of Housing, Communities and Local Government",Homes England,ESTATE GENERAL MAINTENANCE,Programmes,CARTWRIGHT LANDSCAPES,24/10/2019,274.9,S,72101500,Building maintenance and repair services
"Ministry of Housing, Communities and Local Government",Homes England,ESTATE GENERAL MAINTENANCE,Programmes,CARTWRIGHT LANDSCAPES,24/10/2019,354.03,S,72101500,Building maintenance and repair services
"Ministry of Housing, Communities and Local Government",Homes England,ESTATE GENERAL MAINTENANCE,Programmes,ENGIE FM LIMITED,30/10/2019,749.8,L,72102900,Facility maintenance and repair services
"Ministry of Housing, Communities and Local Government",Homes England,PLANNING APPLICATIONS,North East And Yorkshire,WYG ENVIRONMENT PLANNING TRANSPORT LTD,28/10/2019,3189,L,81101500,Civil Engineering
"Ministry of Housing, Communities and Local Government",Homes England,PACKAGE MAINTENANCE & SUBSCRIPTIONS,Finance & Corporate Services,GROUP BUSINESS SOFTWARE (UK) LTD,02/10/2019,8000,L,81111600,Computer programmer
"Ministry of Housing, Communities and Local Government",Homes England,MISC PROFESSIONAL FEES,South West,DRIVERS JONAS DELOITTE,04/10/2019,8000,L,80131800,Real estate management services
"Ministry of Housing, Communities and Local Government",Homes England,MISC PROFESSIONAL FEES,Programmes,DRIVERS JONAS DELOITTE,10/10/2019,133617,L,80131800,Real estate management services
"Ministry of Housing, Communities and Local Government",Homes England,MISC PROFESSIONAL FEES,Programmes,DRIVERS JONAS DELOITTE,10/10/2019,16026.56,L,80131800,Real estate management services
"Ministry of Housing, Communities and Local Government",Homes England,MISC PROFESSIONAL FEES,Programmes,DRIVERS JONAS DELOITTE,15/10/2019,14137.5,L,80131800,Real estate management services
"Ministry of Housing, Communities and Local Government",Homes England,MISC PROFESSIONAL FEES,Programmes,DRIVERS JONAS DELOITTE,15/10/2019,76200.3,L,80131800,Real estate management services
"Ministry of Housing, Communities and Local Government",Homes England,MISC PROFESSIONAL FEES,Programmes,DRIVERS JONAS DELOITTE,18/10/2019,13406.25,L,80131800,Real estate management services
"Ministry of Housing, Communities and Local Government",Homes England,MISC PROFESSIONAL FEES,Programmes,DRIVERS JONAS DELOITTE,18/10/2019,12187.5,L,80131800,Real estate management services
"Ministry of Housing, Communities and Local Government",Homes England,MISC PROFESSIONAL FEES,Programmes,DRIVERS JONAS DELOITTE,24/10/2019,138478.4,L,80131800,Real estate management services
"Ministry of Housing, Communities and Local Government",Homes England,PLANNING APPLICATIONS,East And South East,DOVER DISTRICT COUNCIL,30/10/2019,2300,G,80131500,Lease and rental of property or building
"Ministry of Housing, Communities and Local Government",Homes England,MISC PROFESSIONAL FEES (ADMIN ONLY),Executive Office,DELOITTE & TOUCHE,15/10/2019,17274.9,L,84111700,Corporate Finance
"Ministry of Housing, Communities and Local Government",Homes England,PROPERTY SERVICES,East And South East,CUSHMAN & WAKEFIELD DEBENHAM TIE LEUNG,01/10/2019,1500,L,80131800,Real estate management services
"Ministry of Housing, Communities and Local Government",Homes England,MANAGEMENT COSTS,North East And Yorkshire,CUSHMAN & WAKEFIELD DEBENHAM TIE LEUNG,01/10/2019,1875,L,80131800,Real estate management services
"Ministry of Housing, Communities and Local Government",Homes England,PROPERTY SERVICES,South West,CUSHMAN & WAKEFIELD DEBENHAM TIE LEUNG,01/10/2019,625,L,80131800,Real estate management services
"Ministry of Housing, Communities and Local Government",Homes England,PROPERTY SERVICES,South West,CUSHMAN & WAKEFIELD DEBENHAM TIE LEUNG,01/10/2019,1749.99,L,80131800,Real estate management services
"Ministry of Housing, Communities and Local Government",Homes England,PROPERTY SERVICES,East And South East,CUSHMAN & WAKEFIELD DEBENHAM TIE LEUNG,01/10/2019,1200,L,80131800,Real estate management services
"Ministry of Housing, Communities and Local Government",Homes England,PROPERTY SERVICES,East And South East,CUSHMAN & WAKEFIELD DEBENHAM TIE LEUNG,01/10/2019,1250,L,80131800,Real estate management services
"Ministry of Housing, Communities and Local Government",Homes England,PROPERTY SERVICES,South West,CUSHMAN & WAKEFIELD DEBENHAM TIE LEUNG,01/10/2019,4210.94,L,80131800,Real estate management services
"Ministry of Housing, Communities and Local Government",Homes England,MANAGEMENT COSTS,Programmes,CUSHMAN & WAKEFIELD DEBENHAM TIE LEUNG,01/10/2019,1920,L,80131800,Real estate management services
"Ministry of Housing, Communities and Local Government",Homes England,PROPERTY SERVICES,Programmes,CUSHMAN & WAKEFIELD DEBENHAM TIE LEUNG,01/10/2019,837.5,L,80131800,Real estate management services
"Ministry of Housing, Communities and Local Government",Homes England,PROPERTY SERVICES,South West,CUSHMAN & WAKEFIELD DEBENHAM TIE LEUNG,01/10/2019,800.01,L,80131800,Real estate management services
"Ministry of Housing, Communities and Local Government",Homes England,PROPERTY SERVICES,South West,CUSHMAN & WAKEFIELD DEBENHAM TIE LEUNG,01/10/2019,1000,L,80131800,Real estate management services
"Ministry of Housing, Communities and Local Government",Homes England,PROPERTY SERVICES,South West,CUSHMAN & WAKEFIELD DEBENHAM TIE LEUNG,01/10/2019,3900,L,80131800,Real estate management services
"Ministry of Housing, Communities and Local Government",Homes England,PROPERTY SERVICES,South West,CUSHMAN & WAKEFIELD DEBENHAM TIE LEUNG,01/10/2019,687.5,L,80131800,Real estate management services
"Ministry of Housing, Communities and Local Government",Homes England,PROPERTY SERVICES,South West,CUSHMAN & WAKEFIELD DEBENHAM TIE LEUNG,01/10/2019,1937.52,L,80131800,Real estate management services
"Ministry of Housing, Communities and Local Government",Homes England,PROPERTY SERVICES,Programmes,CUSHMAN & WAKEFIELD DEBENHAM TIE LEUNG,01/10/2019,791.67,L,80131800,Real estate management services
"Ministry of Housing, Communities and Local Government",Homes England,Professional Fees Loans Capitalised,North East And Yorkshire,CUSHMAN & WAKEFIELD DEBENHAM TIE LEUNG,01/10/2019,750,L,80131800,Real estate management services
"Ministry of Housing, Communities and Local Government",Homes England,PROPERTY SERVICES,Programmes,CUSHMAN & WAKEFIELD DEBENHAM TIE LEUNG,01/10/2019,6000,L,80131800,Real estate management services
"Ministry of Housing, Communities and Local Government",Homes England,RI - MONITORING SURVEYOR FEES,Economic Assets Hub,CUSHMAN & WAKEFIELD DEBENHAM TIE LEUNG,02/10/2019,650,L,80131800,Real estate management services
"Ministry of Housing, Communities and Local Government",Homes England,PROPERTY SERVICES,South East,CUSHMAN & WAKEFIELD DEBENHAM TIE LEUNG,02/10/2019,1300,L,80131800,Real estate management services
"Ministry of Housing, Communities and Local Government",Homes England,PROPERTY SERVICES,South West,CUSHMAN & WAKEFIELD DEBENHAM TIE LEUNG,02/10/2019,2237.5,L,80131800,Real estate management services
"Ministry of Housing, Communities and Local Government",Homes England,PROPERTY SERVICES,South West,CUSHMAN & WAKEFIELD DEBENHAM TIE LEUNG,02/10/2019,1000,L,80131800,Real estate management services
"Ministry of Housing, Communities and Local Government",Homes England,PROPERTY SERVICES,East And South East,CUSHMAN & WAKEFIELD DEBENHAM TIE LEUNG,02/10/2019,1000,L,80131800,Real estate management services
"Ministry of Housing, Communities and Local Government",Homes England,PROPERTY SERVICES,East And South East,CUSHMAN & WAKEFIELD DEBENHAM TIE LEUNG,02/10/2019,1374.99,L,80131800,Real estate management services
"Ministry of Housing, Communities and Local Government",Homes England,PROPERTY SERVICES,East And South East,CUSHMAN & WAKEFIELD DEBENHAM TIE LEUNG,02/10/2019,2537.49,L,80131800,Real estate management services
"Ministry of Housing, Communities and Local Government",Homes England,PROPERTY SERVICES,South West,CUSHMAN & WAKEFIELD DEBENHAM TIE LEUNG,02/10/2019,750,L,80131800,Real estate management services
"Ministry of Housing, Communities and Local Government",Homes England,RI - MONITORING SURVEYOR FEES,Economic Assets Hub,CUSHMAN & WAKEFIELD DEBENHAM TIE LEUNG,02/10/2019,700,L,80131800,Real estate management services
"Ministry of Housing, Communities and Local Government",Homes England,RI - MONITORING SURVEYOR FEES,Economic Assets Hub,CUSHMAN & WAKEFIELD DEBENHAM TIE LEUNG,02/10/2019,750,L,80131800,Real estate management services
"Ministry of Housing, Communities and Local Government",Homes England,RI - MONITORING SURVEYOR FEES,Programmes,CUSHMAN & WAKEFIELD DEBENHAM TIE LEUNG,02/10/2019,700,L,80131800,Real estate management services
"Ministry of Housing, Communities and Local Government",Homes England,Professional Fees Loans Capitalised,Economic Assets Hub,CUSHMAN & WAKEFIELD DEBENHAM TIE LEUNG,02/10/2019,1400,L,80131800,Real estate management services
"Ministry of Housing, Communities and Local Government",Homes England,RI - MONITORING SURVEYOR FEES,Economic Assets Hub,CUSHMAN & WAKEFIELD DEBENHAM TIE LEUNG,02/10/2019,700,L,80131800,Real estate management services
"Ministry of Housing, Communities and Local Government",Homes England,RI - MONITORING SURVEYOR FEES,Economic Assets Hub,CUSHMAN & WAKEFIELD DEBENHAM TIE LEUNG,02/10/2019,700,L,80131800,Real estate management services
"Ministry of Housing, Communities and Local Government",Homes England,RI - MONITORING SURVEYOR FEES,Economic Assets Hub,CUSHMAN & WAKEFIELD DEBENHAM TIE LEUNG,02/10/2019,800,L,80131800,Real estate management services
"Ministry of Housing, Communities and Local Government",Homes England,RI - MONITORING SURVEYOR FEES,Economic Assets Hub,CUSHMAN & WAKEFIELD DEBENHAM TIE LEUNG,02/10/2019,750,L,80131800,Real estate management services
"Ministry of Housing, Communities and Local Government",Homes England,RI - MONITORING SURVEYOR FEES,Programmes,CUSHMAN & WAKEFIELD DEBENHAM TIE LEUNG,02/10/2019,750,L,80131800,Real estate management services
"Ministry of Housing, Communities and Local Government",Homes England,RI - MONITORING SURVEYOR FEES,Economic Assets Hub,CUSHMAN & WAKEFIELD DEBENHAM TIE LEUNG,02/10/2019,700,L,80131800,Real estate management services
"Ministry of Housing, Communities and Local Government",Homes England,RI - MONITORING SURVEYOR FEES,Economic Assets Hub,CUSHMAN & WAKEFIELD DEBENHAM TIE LEUNG,02/10/2019,800,L,80131800,Real estate management services
"Ministry of Housing, Communities and Local Government",Homes England,RI - MONITORING SURVEYOR FEES,Economic Assets Hub,CUSHMAN & WAKEFIELD DEBENHAM TIE LEUNG,02/10/2019,700,L,80131800,Real estate management services
"Ministry of Housing, Communities and Local Government",Homes England,Professional Fees Loans Capitalised,Economic Assets Hub,CUSHMAN & WAKEFIELD DEBENHAM TIE LEUNG,02/10/2019,700,L,80131800,Real estate management services
"Ministry of Housing, Communities and Local Government",Homes England,RI - MONITORING SURVEYOR FEES,Programmes,CUSHMAN & WAKEFIELD DEBENHAM TIE LEUNG,02/10/2019,700,L,80131800,Real estate management services
"Ministry of Housing, Communities and Local Government",Homes England,DISPOSAL FEES - PROPERTY AGENTS & ADVERTISING,North West,CUSHMAN & WAKEFIELD DEBENHAM TIE LEUNG,02/10/2019,1500,L,80131800,Real estate management services
"Ministry of Housing, Communities and Local Government",Homes England,PROPERTY SERVICES,South West,CUSHMAN & WAKEFIELD DEBENHAM TIE LEUNG,03/10/2019,687.5,L,80131800,Real estate management services
"Ministry of Housing, Communities and Local Government",Homes England,RI - MONITORING SURVEYOR FEES,Programmes,CUSHMAN & WAKEFIELD DEBENHAM TIE LEUNG,04/10/2019,750,L,80131800,Real estate management services
"Ministry of Housing, Communities and Local Government",Homes England,RI - MONITORING SURVEYOR FEES,Programmes,CUSHMAN & WAKEFIELD DEBENHAM TIE LEUNG,04/10/2019,750,L,80131800,Real estate management services
"Ministry of Housing, Communities and Local Government",Homes England,RI - MONITORING SURVEYOR FEES,Economic Assets Hub,CUSHMAN & WAKEFIELD DEBENHAM TIE LEUNG,04/10/2019,800,L,80131800,Real estate management services
"Ministry of Housing, Communities and Local Government",Homes England,RI - MONITORING SURVEYOR FEES,Economic Assets Hub,CUSHMAN & WAKEFIELD DEBENHAM TIE LEUNG,04/10/2019,800,L,80131800,Real estate management services
"Ministry of Housing, Communities and Local Government",Homes England,RI - MONITORING SURVEYOR FEES,Economic Assets Hub,CUSHMAN & WAKEFIELD DEBENHAM TIE LEUNG,04/10/2019,700,L,80131800,Real estate management services
"Ministry of Housing, Communities and Local Government",Homes England,RI - MONITORING SURVEYOR FEES,Economic Assets Hub,CUSHMAN & WAKEFIELD DEBENHAM TIE LEUNG,04/10/2019,2000,L,80131800,Real estate management services
"Ministry of Housing, Communities and Local Government",Homes England,MISC PROFESSIONAL FEES,East And South East,CUSHMAN & WAKEFIELD DEBENHAM TIE LEUNG,04/10/2019,7500,L,80131800,Real estate management services
"Ministry of Housing, Communities and Local Government",Homes England,Professional Fees Loans Capitalised,Economic Assets Hub,CUSHMAN & WAKEFIELD DEBENHAM TIE LEUNG,04/10/2019,2500,L,80131800,Real estate management services
"Ministry of Housing, Communities and Local Government",Homes England,RI - MONITORING SURVEYOR FEES,Economic Assets Hub,CUSHMAN & WAKEFIELD DEBENHAM TIE LEUNG,07/10/2019,700,L,80131800,Real estate management services
"Ministry of Housing, Communities and Local Government",Homes England,RI - MONITORING SURVEYOR FEES,Programmes,CUSHMAN & WAKEFIELD DEBENHAM TIE LEUNG,07/10/2019,700,L,80131800,Real estate management services
"Ministry of Housing, Communities and Local Government",Homes England,RI - MONITORING SURVEYOR FEES,Economic Assets Hub,CUSHMAN & WAKEFIELD DEBENHAM TIE LEUNG,07/10/2019,700,L,80131800,Real estate management services
"Ministry of Housing, Communities and Local Government",Homes England,RI - MONITORING SURVEYOR FEES,Economic Assets Hub,CUSHMAN & WAKEFIELD DEBENHAM TIE LEUNG,07/10/2019,700,L,80131800,Real estate management services
"Ministry of Housing, Communities and Local Government",Homes England,MISC PROFESSIONAL FEES,East And South East,CUSHMAN & WAKEFIELD DEBENHAM TIE LEUNG,08/10/2019,7500,L,80131800,Real estate management services
"Ministry of Housing, Communities and Local Government",Homes England,MISC PROFESSIONAL FEES,Midlands,CUSHMAN & WAKEFIELD DEBENHAM TIE LEUNG,09/10/2019,1036,L,80131800,Real estate management services
"Ministry of Housing, Communities and Local Government",Homes England,RI - MONITORING SURVEYOR FEES,Economic Assets Hub,CUSHMAN & WAKEFIELD DEBENHAM TIE LEUNG,09/10/2019,700,L,80131800,Real estate management services
"Ministry of Housing, Communities and Local Government",Homes England,RI - MONITORING SURVEYOR FEES,Programmes,CUSHMAN & WAKEFIELD DEBENHAM TIE LEUNG,09/10/2019,700,L,80131800,Real estate management services
"Ministry of Housing, Communities and Local Government",Homes England,PROPERTY SERVICES,North West,CUSHMAN & WAKEFIELD DEBENHAM TIE LEUNG,09/10/2019,5000,L,80131800,Real estate management services
"Ministry of Housing, Communities and Local Government",Homes England,PROPERTY SERVICES,Programmes,CUSHMAN & WAKEFIELD DEBENHAM TIE LEUNG,09/10/2019,535,L,80131800,Real estate management services
"Ministry of Housing, Communities and Local Government",Homes England,RI - MONITORING SURVEYOR FEES,Economic Assets Hub,CUSHMAN & WAKEFIELD DEBENHAM TIE LEUNG,09/10/2019,700,L,80131800,Real estate management services
"Ministry of Housing, Communities and Local Government",Homes England,RI - MONITORING SURVEYOR FEES,Economic Assets Hub,CUSHMAN & WAKEFIELD DEBENHAM TIE LEUNG,10/10/2019,700,L,80131800,Real estate management services
"Ministry of Housing, Communities and Local Government",Homes England,MISC PROFESSIONAL FEES,Programmes,CUSHMAN & WAKEFIELD DEBENHAM TIE LEUNG,10/10/2019,4250,L,80131800,Real estate management services
"Ministry of Housing, Communities and Local Government",Homes England,ECONOMIC CONSULTANCY PANEL,Programmes,CUSHMAN & WAKEFIELD DEBENHAM TIE LEUNG,11/10/2019,1812.5,L,80131800,Real estate management services
"Ministry of Housing, Communities and Local Government",Homes England,DISPOSAL FEES - PROPERTY AGENTS & ADVERTISING,North West,CUSHMAN & WAKEFIELD DEBENHAM TIE LEUNG,11/10/2019,9900,L,80131800,Real estate management services
"Ministry of Housing, Communities and Local Government",Homes England,MASTERPLANNING FEES,Midlands,CUSHMAN & WAKEFIELD DEBENHAM TIE LEUNG,15/10/2019,4674,L,80131800,Real estate management services
"Ministry of Housing, Communities and Local Government",Homes England,PLANNING APPLICATIONS,Midlands,CUSHMAN & WAKEFIELD DEBENHAM TIE LEUNG,18/10/2019,11196,L,80131800,Real estate management services
"Ministry of Housing, Communities and Local Government",Homes England,OTHER PROFESSIONAL FEES,Programmes,CUSHMAN & WAKEFIELD DEBENHAM TIE LEUNG,18/10/2019,635,L,80131800,Real estate management services
"Ministry of Housing, Communities and Local Government",Homes England,RI - MONITORING SURVEYOR FEES,Economic Assets Hub,CUSHMAN & WAKEFIELD DEBENHAM TIE LEUNG,22/10/2019,700,L,80131800,Real estate management services
"Ministry of Housing, Communities and Local Government",Homes England,PROPERTY SERVICES,Programmes,CUSHMAN & WAKEFIELD DEBENHAM TIE LEUNG,22/10/2019,2000,L,80131800,Real estate management services
"Ministry of Housing, Communities and Local Government",Homes England,DISPOSAL FEES - PROPERTY AGENTS & ADVERTISING,North West,CUSHMAN & WAKEFIELD DEBENHAM TIE LEUNG,31/10/2019,5500,L,80131800,Real estate management services
"Ministry of Housing, Communities and Local Government",Homes England,DISPOSAL FEES - PROPERTY AGENTS & ADVERTISING,North West,CUSHMAN & WAKEFIELD DEBENHAM TIE LEUNG,31/10/2019,1302,L,80131800,Real estate management services
"Ministry of Housing, Communities and Local Government",Homes England,LANDSCAPING & PLANTS,Finance & Corporate Services,DEEDMAN TROPICAL PLANT HIRE COMPANY,01/10/2019,265,S,72102900,Facility maintenance and repair services
"Ministry of Housing, Communities and Local Government",Homes England,PROGRAMME RELATED EXPENSES,Programmes,DESIGN FOR HOMES,04/10/2019,20000,M,86101800,In service training and manpower development
"Ministry of Housing, Communities and Local Government",Homes England,RENT PAYABLE,Midlands,DERBY CITY COUNCIL,11/10/2019,775,G,80131500,Lease and rental of property or building
"Ministry of Housing, Communities and Local Government",Homes England,RENT PAYABLE,Midlands,DERBY CITY COUNCIL,11/10/2019,362.5,G,80131500,Lease and rental of property or building
"Ministry of Housing, Communities and Local Government",Homes England,RENT PAYABLE,Midlands,DERBY CITY COUNCIL,11/10/2019,2875,G,80131500,Lease and rental of property or building
"Ministry of Housing, Communities and Local Government",Homes England,RENT PAYABLE,Midlands,DERBY CITY COUNCIL,11/10/2019,812.5,G,80131500,Lease and rental of property or building
"Ministry of Housing, Communities and Local Government",Homes England,LEGAL FEES,East And South East,DWF LLP,02/10/2019,655.59,L,80121600,Business law services
"Ministry of Housing, Communities and Local Government",Homes England,LEGAL FEES,North East And Yorkshire,DWF LLP,04/10/2019,883.5,L,80121600,Business law services
"Ministry of Housing, Communities and Local Government",Homes England,DISPOSAL FEES - LEGAL,Midlands,DWF LLP,07/10/2019,1420.05,L,80121600,Business law services
"Ministry of Housing, Communities and Local Government",Homes England,DISPOSAL FEES - LEGAL,North East And Yorkshire,DWF LLP,07/10/2019,4980,L,80121600,Business law services
"Ministry of Housing, Communities and Local Government",Homes England,LEGAL FEES,North East And Yorkshire,DWF LLP,07/10/2019,2345,L,80121600,Business law services
"Ministry of Housing, Communities and Local Government",Homes England,DISPOSAL FEES - LEGAL,North East And Yorkshire,DWF LLP,14/10/2019,500,L,80121600,Business law services
"Ministry of Housing, Communities and Local Government",Homes England,LEGAL FEES,North East And Yorkshire,DWF LLP,14/10/2019,1000,L,80121600,Business law services
"Ministry of Housing, Communities and Local Government",Homes England,LEGAL FEES,North East And Yorkshire,DWF LLP,15/10/2019,1345,L,80121600,Business law services
"Ministry of Housing, Communities and Local Government",Homes England,DISPOSAL FEES - LEGAL,North West,DWF LLP,15/10/2019,2794.5,L,80121600,Business law services
"Ministry of Housing, Communities and Local Government",Homes England,LEGAL FEES,North East And Yorkshire,DWF LLP,18/10/2019,2640,L,80121600,Business law services
"Ministry of Housing, Communities and Local Government",Homes England,LEGAL FEES,North East And Yorkshire,DWF LLP,18/10/2019,1221.5,L,80121600,Business law services
"Ministry of Housing, Communities and Local Government",Homes England,LEGAL FEES,Programmes,DWF LLP,18/10/2019,969,L,80121600,Business law services
"Ministry of Housing, Communities and Local Government",Homes England,LEGAL FEES,North East And Yorkshire,DWF LLP,18/10/2019,250,L,80121600,Business law services
"Ministry of Housing, Communities and Local Government",Homes England,LEGAL FEES,North East And Yorkshire,DWF LLP,18/10/2019,833,L,80121600,Business law services
"Ministry of Housing, Communities and Local Government",Homes England,LEGAL FEES,Midlands,DWF LLP,21/10/2019,592.65,L,80121600,Business law services
"Ministry of Housing, Communities and Local Government",Homes England,LEGAL FEES,North East And Yorkshire,DWF LLP,23/10/2019,550,L,80121600,Business law services
"Ministry of Housing, Communities and Local Government",Homes England,LEGAL FEES,Midlands,DWF LLP,28/10/2019,5640.5,L,80121600,Business law services
"Ministry of Housing, Communities and Local Government",Homes England,LEGAL FEES,Programmes,DWF LLP,30/10/2019,950,L,80121600,Business law services
"Ministry of Housing, Communities and Local Government",Homes England,DISPOSAL FEES - LEGAL,North East And Yorkshire,DWF LLP,31/10/2019,419.4,L,80121600,Business law services
"Ministry of Housing, Communities and Local Government",Homes England,TAXIS,Finance & Corporate Services,DEAN TAXI LIMITED,02/10/2019,875.6,S,78111800,Passenger road transportation
"Ministry of Housing, Communities and Local Government",Homes England,Fix & Fit - Additions,Finance & Corporate Services,DMA SIGNS LIMITED,02/10/2019,5513.79,S,80141604,Branding of product naming services
"Ministry of Housing, Communities and Local Government",Homes England,Fix & Fit - Additions,Finance & Corporate Services,DMA SIGNS LIMITED,02/10/2019,1750,S,80141604,Branding of product naming services
"Ministry of Housing, Communities and Local Government",Homes England,Fix & Fit - Additions,Finance & Corporate Services,DMA SIGNS LIMITED,10/10/2019,1865,S,80141604,Branding of product naming services
"Ministry of Housing, Communities and Local Government",Homes England,Fix & Fit - Additions,Finance & Corporate Services,DMA SIGNS LIMITED,18/10/2019,1460,S,80141604,Branding of product naming services
"Ministry of Housing, Communities and Local Government",Homes England,CONTRACT WORKS,South West,DELTA CIVIL ENGINEERING CO. LTD,23/10/2019,115141.9,S,81101500,Civil engineering
"Ministry of Housing, Communities and Local Government",Homes England,BUILDINGS-VACANT RATES,North East And Yorkshire,DURHAM COUNTY COUNCIL,10/10/2019,8568,G,80131500,Lease and rental of property or building
"Ministry of Housing, Communities and Local Government",Homes England,COST OF ACQUISITION,East And South East,D'OYLEYS FARM,29/10/2019,2000,S,80131800,Real estate management services
"Ministry of Housing, Communities and Local Government",Homes England,PLANNING APPLICATIONS,East And South East,EVERSHEDS (CLIENT ACCOUNT),23/10/2019,500,L,80121600,Business law services
"Ministry of Housing, Communities and Local Government",Homes England,PLANNING APPLICATIONS,East And South East,EVERSHEDS (CLIENT ACCOUNT),23/10/2019,1375.91,L,80121600,Business law services
"Ministry of Housing, Communities and Local Government",Homes England,ENGINEERING CONSULTANTS,South East,WOOD ENVIRONMENT & INFRASTRUCTURE SOLUTIONS,01/10/2019,11200,L,80131800,Real estate management services
"Ministry of Housing, Communities and Local Government",Homes England,OTHER PROFESSIONAL FEES,East And South East,WOOD ENVIRONMENT & INFRASTRUCTURE SOLUTIONS,01/10/2019,6980,L,80131800,Real estate management services
"Ministry of Housing, Communities and Local Government",Homes England,ENVIRONMENTAL IMPACT ASSESMENTS,South West,WOOD ENVIRONMENT & INFRASTRUCTURE SOLUTIONS,01/10/2019,25734.39,L,80131800,Real estate management services
"Ministry of Housing, Communities and Local Government",Homes England,MISC PROFESSIONAL FEES,East And South East,WOOD ENVIRONMENT & INFRASTRUCTURE SOLUTIONS,07/10/2019,1860,L,80131800,Real estate management services
"Ministry of Housing, Communities and Local Government",Homes England,MASTERPLANNING FEES,East And South East,WOOD ENVIRONMENT & INFRASTRUCTURE SOLUTIONS,07/10/2019,8000,L,80131800,Real estate management services
"Ministry of Housing, Communities and Local Government",Homes England,MISC PROFESSIONAL FEES,Midlands,WOOD ENVIRONMENT & INFRASTRUCTURE SOLUTIONS,08/10/2019,1160,L,80131800,Real estate management services
"Ministry of Housing, Communities and Local Government",Homes England,DEVELOPMENT MANAGEMENT,Midlands,WOOD ENVIRONMENT & INFRASTRUCTURE SOLUTIONS,08/10/2019,1965,L,80131800,Real estate management services
"Ministry of Housing, Communities and Local Government",Homes England,OTHER PROFESSIONAL FEES,Midlands,WOOD ENVIRONMENT & INFRASTRUCTURE SOLUTIONS,08/10/2019,523.67,L,80131800,Real estate management services
"Ministry of Housing, Communities and Local Government",Homes England,MASTERPLANNING FEES,Midlands,WOOD ENVIRONMENT & INFRASTRUCTURE SOLUTIONS,08/10/2019,6500,L,80131800,Real estate management services
"Ministry of Housing, Communities and Local Government",Homes England,OTHER PROFESSIONAL FEES,East And South East,WOOD ENVIRONMENT & INFRASTRUCTURE SOLUTIONS,08/10/2019,1802.52,L,80131800,Real estate management services
"Ministry of Housing, Communities and Local Government",Homes England,PLANNING APPLICATIONS,Midlands,WOOD ENVIRONMENT & INFRASTRUCTURE SOLUTIONS,10/10/2019,11004,L,80131800,Real estate management services
"Ministry of Housing, Communities and Local Government",Homes England,PLANNING APPLICATIONS,Midlands,WOOD ENVIRONMENT & INFRASTRUCTURE SOLUTIONS,10/10/2019,2201.49,L,80131800,Real estate management services
"Ministry of Housing, Communities and Local Government",Homes England,ENGINEERING FEES,Midlands,WOOD ENVIRONMENT & INFRASTRUCTURE SOLUTIONS,10/10/2019,4465.63,L,80131800,Real estate management services
"Ministry of Housing, Communities and Local Government",Homes England,PLANNING APPLICATIONS,Midlands,WOOD ENVIRONMENT & INFRASTRUCTURE SOLUTIONS,25/10/2019,768.99,L,80131800,Real estate management services
"Ministry of Housing, Communities and Local Government",Homes England,ENGINEERING FEES,East And South East,WOOD ENVIRONMENT & INFRASTRUCTURE SOLUTIONS,25/10/2019,723.75,L,80131800,Real estate management services
"Ministry of Housing, Communities and Local Government",Homes England,PLANNING APPLICATIONS,Midlands,WOOD ENVIRONMENT & INFRASTRUCTURE SOLUTIONS,25/10/2019,570,L,80131800,Real estate management services
"Ministry of Housing, Communities and Local Government",Homes England,ENGINEERING FEES,East And South East,WOOD ENVIRONMENT & INFRASTRUCTURE SOLUTIONS,31/10/2019,1366.44,L,80131800,Real estate management services
"Ministry of Housing, Communities and Local Government",Homes England,ENGINEERING FEES,East And South East,WOOD ENVIRONMENT & INFRASTRUCTURE SOLUTIONS,31/10/2019,1275.36,L,80131800,Real estate management services
"Ministry of Housing, Communities and Local Government",Homes England,OTHER PROFESSIONAL FEES,East And South East,WOOD ENVIRONMENT & INFRASTRUCTURE SOLUTIONS,31/10/2019,3027.87,L,80131800,Real estate management services
"Ministry of Housing, Communities and Local Government",Homes England,ST Fund Loans Additions,Economic Assets Hub,EAST WICK AND SWEETWATER PROJECTS (PHASE 1) L,11/10/2019,4246816.39,,,Loans
"Ministry of Housing, Communities and Local Government",Homes England,PLANNING APPLICATIONS,South West,EAST DEVON DISTRICT COUNCIL,10/10/2019,1000,G,80131500,Lease and rental of property or building
"Ministry of Housing, Communities and Local Government",Homes England,COURSES & CONFERENCES,North East And Yorkshire,ETC.VENUES,02/10/2019,4763,M,90111600,Meeting facilities
"Ministry of Housing, Communities and Local Government",Homes England,OTHER PROFESSIONAL FEES,North West,EGNIOL ENVIRONMENTAL LIMITED,08/10/2019,3950,S,81101500,Civil Engineering
"Ministry of Housing, Communities and Local Government",Homes England,ENGINEERING FEES,East And South East,EGNIOL ENVIRONMENTAL LIMITED,09/10/2019,1650,S,81101500,Civil Engineering
"Ministry of Housing, Communities and Local Government",Homes England,ENGINEERING FEES,Midlands,EGNIOL ENVIRONMENTAL LIMITED,09/10/2019,1800,S,81101500,Civil Engineering
"Ministry of Housing, Communities and Local Government",Homes England,PEOPLE PLAN / INSTANT RECOGNITION,Finance & Corporate Services,EDENRED (UK GROUP) LTD,10/10/2019,675,L,14111803,Vouchers
"Ministry of Housing, Communities and Local Government",Homes England,Computers - Additions,Finance & Corporate Services,EE LTD,03/10/2019,15750,L,83101600,Mobile communications services
"Ministry of Housing, Communities and Local Government",Homes England,TELEPHONES,Finance & Corporate Services,EE LTD,11/10/2019,968.55,L,83101600,Mobile communications services
"Ministry of Housing, Communities and Local Government",Homes England,TELEPHONES,Finance & Corporate Services,EE LTD,11/10/2019,16940.47,L,83101600,Mobile communications services
"Ministry of Housing, Communities and Local Government",Homes England,LEGAL FEES,South East,EVERSHEDS CLIENT ACCOUNT,09/10/2019,10085,L,80121600,Business law services
"Ministry of Housing, Communities and Local Government",Homes England,LEGAL FEES,East And South East,EVERSHEDS CLIENT ACCOUNT,10/10/2019,14000,L,80121600,Business law services
"Ministry of Housing, Communities and Local Government",Homes England,LEGAL FEES,North West,EVERSHEDS CLIENT ACCOUNT,14/10/2019,2050.55,L,80121600,Business law services
"Ministry of Housing, Communities and Local Government",Homes England,LEGAL FEES,North West,EVERSHEDS CLIENT ACCOUNT,14/10/2019,5000,L,80121600,Business law services
"Ministry of Housing, Communities and Local Government",Homes England,LEGAL FEES,North West,EVERSHEDS CLIENT ACCOUNT,21/10/2019,1372.64,L,80121600,Business law services
"Ministry of Housing, Communities and Local Government",Homes England,LEGAL FEES,Programmes,EVERSHEDS CLIENT ACCOUNT,23/10/2019,505.88,L,80121600,Business law services
"Ministry of Housing, Communities and Local Government",Homes England,LEGAL FEES,Programmes,EVERSHEDS CLIENT ACCOUNT,28/10/2019,300,L,80121600,Business law services
"Ministry of Housing, Communities and Local Government",Homes England,LEGAL FEES,South East,EVERSHEDS CLIENT ACCOUNT,29/10/2019,4860,L,80121600,Business law services
"Ministry of Housing, Communities and Local Government",Homes England,ESTATE GENERAL MAINTENANCE,Programmes,EA FORMBY (NW) LIMITED,16/10/2019,1015.8,S,72101500,Building maintenance and repair services
"Ministry of Housing, Communities and Local Government",Homes England,ST Fund Loans Additions,Economic Assets Hub,EDEN PROJECTS AND DEVELOPMENTS LTD,28/10/2019,53014.28,,,Loans
"Ministry of Housing, Communities and Local Government",Homes England,CONTRACT WORKS,North West,ERIC WRIGHT CIVIL ENGINEERING LIMITED,25/10/2019,15787.24,S,811001500,Civil Engineering
"Ministry of Housing, Communities and Local Government",Homes England,PROPERTY SERVICES,East And South East,ELEMENT MATERIALS TECHNOLOGY ENVIRONMENTAL UK,11/10/2019,1911.93,L,77101500,Environmental auditing
"Ministry of Housing, Communities and Local Government",Homes England,MISC PROFESSIONAL FEES (ADMIN ONLY),Finance & Corporate Services,ELEMENT MATERIALS TECHNOLOGY ENVIRONMENTAL UK,14/10/2019,740,L,77101500,Environmental auditing
"Ministry of Housing, Communities and Local Government",Homes England,BUILDINGS-WATER,East And South East,THE ENGLISH HERITAGE TRUST,24/10/2019,1817.43,G,83101500,Water and sewer utilities
"Ministry of Housing, Communities and Local Government",Homes England,AGENCY STAFF,Programmes,EDEN BROWN BUILT ENVIRONMENT,04/10/2019,721.7,L,80111600,Temporary personnel services
"Ministry of Housing, Communities and Local Government",Homes England,AGENCY STAFF,Programmes,EDEN BROWN BUILT ENVIRONMENT,08/10/2019,721.7,L,80111600,Temporary personnel services
"Ministry of Housing, Communities and Local Government",Homes England,AGENCY STAFF,Programmes,EDEN BROWN BUILT ENVIRONMENT,11/10/2019,711.39,L,80111600,Temporary personnel services
"Ministry of Housing, Communities and Local Government",Homes England,AGENCY STAFF,Programmes,EDEN BROWN BUILT ENVIRONMENT,17/10/2019,680.46,L,80111600,Temporary personnel services
"Ministry of Housing, Communities and Local Government",Homes England,AGENCY STAFF,Programmes,EDEN BROWN BUILT ENVIRONMENT,25/10/2019,721.7,L,80111600,Temporary personnel services
"Ministry of Housing, Communities and Local Government",Homes England,GROUNDS ITINERANT PREVENTION,North West,ENFORCEMENT BAILIFFS LTD T/A QUALITY BAILIFFS,18/10/2019,300,S,84101704,Debt collection services
"Ministry of Housing, Communities and Local Government",Homes England,GROUNDS ITINERANT PREVENTION,North West,ENFORCEMENT BAILIFFS LTD T/A QUALITY BAILIFFS,18/10/2019,650,S,84101704,Debt collection services
"Ministry of Housing, Communities and Local Government",Homes England,ESTATE GENERAL MAINTENANCE,East And South East,ENVIRONMENTAL DESIGN,03/10/2019,363,S,72101500,Building maintenance and repair services
"Ministry of Housing, Communities and Local Government",Homes England,ESTATE GENERAL MAINTENANCE,East And South East,ENVIRONMENTAL DESIGN,03/10/2019,423,S,72101500,Building maintenance and repair services
"Ministry of Housing, Communities and Local Government",Homes England,ESTATE GENERAL MAINTENANCE,East And South East,ENVIRONMENTAL DESIGN,03/10/2019,455,S,72101500,Building maintenance and repair services
"Ministry of Housing, Communities and Local Government",Homes England,ESTATE GENERAL MAINTENANCE,East And South East,ENVIRONMENTAL DESIGN,03/10/2019,472,S,72101500,Building maintenance and repair services
"Ministry of Housing, Communities and Local Government",Homes England,ESTATE GENERAL MAINTENANCE,Programmes,ENVIRONMENTAL DESIGN,03/10/2019,606,S,72101500,Building maintenance and repair services
"Ministry of Housing, Communities and Local Government",Homes England,ESTATE GENERAL MAINTENANCE,Programmes,ENVIRONMENTAL DESIGN,03/10/2019,682,S,72101500,Building maintenance and repair services
"Ministry of Housing, Communities and Local Government",Homes England,RI - MONITORING SURVEYOR FEES,Economic Assets Hub,EDDISONS COMMERCIAL LIMITED,07/10/2019,700,M,80131800,Real estate management services
"Ministry of Housing, Communities and Local Government",Homes England,Professional Fees Loans Capitalised,Economic Assets Hub,EDDISONS COMMERCIAL LIMITED,07/10/2019,1600,M,80131800,Real estate management services
"Ministry of Housing, Communities and Local Government",Homes England,PROPERTY SERVICES,North East And Yorkshire,EDDISONS COMMERCIAL LIMITED,08/10/2019,5930,M,80131800,Real estate management services
"Ministry of Housing, Communities and Local Government",Homes England,Professional Fees Loans Capitalised,Economic Assets Hub,EDDISONS COMMERCIAL LIMITED,16/10/2019,2250,M,80131800,Real estate management services
"Ministry of Housing, Communities and Local Government",Homes England,MISC PROFESSIONAL FEES,Programmes,EDDISONS COMMERCIAL LIMITED,17/10/2019,25300,M,80131800,Real estate management services
"Ministry of Housing, Communities and Local Government",Homes England,Professional Fees Loans Capitalised,Economic Assets Hub,EDDISONS COMMERCIAL LIMITED,18/10/2019,2250,M,80131800,Real estate management services
"Ministry of Housing, Communities and Local Government",Homes England,DISPOSAL FEES - PROPERTY AGENTS & ADVERTISING,Midlands,EDDISONS COMMERCIAL LIMITED,25/10/2019,350,M,80131800,Real estate management services
"Ministry of Housing, Communities and Local Government",Homes England,OTHER PROFESSIONAL FEES,Programmes,EAST HAMPSHIRE DISTRICT COUNCIL,01/10/2019,37765,G,80131800,Real estate management services
"Ministry of Housing, Communities and Local Government",Homes England,OTHER PROFESSIONAL FEES,Programmes,EAST HAMPSHIRE DISTRICT COUNCIL,24/10/2019,40265,G,80131800,Real estate management services
"Ministry of Housing, Communities and Local Government",Homes England,OTHER PROFESSIONAL FEES,Programmes,AECOM LIMITED,01/10/2019,45000,L,72101500,Building maintenance and repair services
"Ministry of Housing, Communities and Local Government",Homes England,ROADS & CAR PARKS,North East And Yorkshire,AECOM LIMITED,01/10/2019,3502.5,L,72101500,Building maintenance and repair services
"Ministry of Housing, Communities and Local Government",Homes England,ENGINEERING FEES,North East And Yorkshire,AECOM LIMITED,01/10/2019,3765,L,72101500,Building maintenance and repair services
"Ministry of Housing, Communities and Local Government",Homes England,ENGINEERING CONSULTANTS,North East And Yorkshire,AECOM LIMITED,01/10/2019,5811,L,72101500,Building maintenance and repair services
"Ministry of Housing, Communities and Local Government",Homes England,ENGINEERING CONSULTANTS,North East And Yorkshire,AECOM LIMITED,01/10/2019,1159,L,72101500,Building maintenance and repair services
"Ministry of Housing, Communities and Local Government",Homes England,ENGINEERING CONSULTANTS,North East And Yorkshire,AECOM LIMITED,01/10/2019,7637.51,L,72101500,Building maintenance and repair services
"Ministry of Housing, Communities and Local Government",Homes England,RI - MONITORING SURVEYOR FEES,Programmes,AECOM LIMITED,02/10/2019,6434.74,L,72101500,Building maintenance and repair services
"Ministry of Housing, Communities and Local Government",Homes England,OTHER PROFESSIONAL FEES,Programmes,AECOM LIMITED,04/10/2019,1231,L,72101500,Building maintenance and repair services
"Ministry of Housing, Communities and Local Government",Homes England,PROJECT MANAGEMENT,South West,AECOM LIMITED,07/10/2019,6000,L,72101500,Building maintenance and repair services
"Ministry of Housing, Communities and Local Government",Homes England,RI - MONITORING SURVEYOR FEES,Programmes,AECOM LIMITED,08/10/2019,4542,L,72101500,Building maintenance and repair services
"Ministry of Housing, Communities and Local Government",Homes England,Professional Fees Loans Capitalised,Programmes,AECOM LIMITED,10/10/2019,1550,L,72101500,Building maintenance and repair services
"Ministry of Housing, Communities and Local Government",Homes England,ENGINEERING FEES,North West,AECOM LIMITED,15/10/2019,2937,L,72101500,Building maintenance and repair services
"Ministry of Housing, Communities and Local Government",Homes England,PROPERTY SERVICES,East And South East,AECOM LIMITED,15/10/2019,412.06,L,72101500,Building maintenance and repair services
"Ministry of Housing, Communities and Local Government",Homes England,PROJECT MANAGEMENT,South West,AECOM LIMITED,17/10/2019,43493,L,72101500,Building maintenance and repair services
"Ministry of Housing, Communities and Local Government",Homes England,ENGINEERING CONSULTANTS,Programmes,AECOM LIMITED,23/10/2019,2602.75,L,72101500,Building maintenance and repair services
"Ministry of Housing, Communities and Local Government",Homes England,PROJECT SPECIFIC FEES & PRELIM EXPENDITURE,South West,AECOM LIMITED,24/10/2019,16844.47,L,72101500,Building maintenance and repair services
"Ministry of Housing, Communities and Local Government",Homes England,PLANNING FEES,Programmes,AECOM LIMITED,43763,33595.35,L,72101500,Building maintenance and repair services
"Ministry of Housing, Communities and Local Government",Homes England,QUANTITY SURVEYORS FEES,North East And Yorkshire,AECOM LIMITED,28/10/2019,2000,L,72101500,Building maintenance and repair services
"Ministry of Housing, Communities and Local Government",Homes England,ENGINEERING FEES,North East And Yorkshire,AECOM LIMITED,29/10/2019,6325,L,72101500,Building maintenance and repair services
"Ministry of Housing, Communities and Local Government",Homes England,DISPOSAL FEES - PROPERTY AGENTS & ADVERTISING,East And South East,SAVILLS UK LIMITED,01/10/2019,1200,L,80131800,Real estate management services
"Ministry of Housing, Communities and Local Government",Homes England,Professional Fees Loans Capitalised,Economic Assets Hub,SAVILLS UK LIMITED,04/10/2019,5000,L,80131800,Real estate management services
"Ministry of Housing, Communities and Local Government",Homes England,MISC PROFESSIONAL FEES,Programmes,SAVILLS UK LIMITED,04/10/2019,39120,L,80131800,Real estate management services
"Ministry of Housing, Communities and Local Government",Homes England,MISC PROFESSIONAL FEES,Programmes,SAVILLS UK LIMITED,04/10/2019,3000,L,80131800,Real estate management services
"Ministry of Housing, Communities and Local Government",Homes England,MISC PROFESSIONAL FEES,Programmes,SAVILLS UK LIMITED,07/10/2019,39120,L,80131800,Real estate management services
"Ministry of Housing, Communities and Local Government",Homes England,RI - SITE VALUATION FEES,Economic Assets Hub,SAVILLS UK LIMITED,10/10/2019,20000,L,80131800,Real estate management services
"Ministry of Housing, Communities and Local Government",Homes England,RI - SITE VALUATION FEES,Economic Assets Hub,SAVILLS UK LIMITED,14/10/2019,2500,L,80131800,Real estate management services
"Ministry of Housing, Communities and Local Government",Homes England,DISPOSAL FEES - PROPERTY AGENTS & ADVERTISING,South West,SAVILLS UK LIMITED,21/10/2019,16500,L,80131800,Real estate management services
"Ministry of Housing, Communities and Local Government",Homes England,OPEN MARKET VALUATION FEE,Midlands,SAVILLS UK LIMITED,21/10/2019,1000,L,80131800,Real estate management services
"Ministry of Housing, Communities and Local Government",Homes England,MISC PROFESSIONAL FEES,Programmes,SAVILLS UK LIMITED,21/10/2019,40000,L,80131800,Real estate management services
"Ministry of Housing, Communities and Local Government",Homes England,DISPOSAL FEES - PROPERTY AGENTS & ADVERTISING,Programmes,SAVILLS UK LIMITED,23/10/2019,10000,L,80131800,Real estate management services
"Ministry of Housing, Communities and Local Government",Homes England,OTHER PROFESSIONAL FEES,North East And Yorkshire,SAVILLS UK LIMITED,23/10/2019,300,L,80131800,Real estate management services
"Ministry of Housing, Communities and Local Government",Homes England,PROJECT SPECIFIC FEES & PRELIM EXPENDITURE,North East And Yorkshire,SAVILLS UK LIMITED,29/10/2019,24750,L,80131800,Real estate management services
"Ministry of Housing, Communities and Local Government",Homes England,OPEN MARKET VALUATION FEE,East And South East,SAVILLS UK LIMITED,31/10/2019,2500,L,80131800,Real estate management services
"Ministry of Housing, Communities and Local Government",Homes England,ROADS & CAR PARKS,South West,R FOX T/A SOUTHCOAST MAINTENANCE,10/10/2019,4262,S,72101500,Building maintenance and repair services
"Ministry of Housing, Communities and Local Government",Homes England,MANAGEMENT COSTS,South West,R FOX T/A SOUTHCOAST MAINTENANCE,15/10/2019,3500,S,72101500,Building maintenance and repair services
"Ministry of Housing, Communities and Local Government",Homes England,ESTATE GENERAL MAINTENANCE,South West,R FOX T/A SOUTHCOAST MAINTENANCE,15/10/2019,1100,S,72101500,Building maintenance and repair services
"Ministry of Housing, Communities and Local Government",Homes England,MANAGEMENT COSTS,South West,R FOX T/A SOUTHCOAST MAINTENANCE,16/10/2019,408,S,72101500,Building maintenance and repair services
"Ministry of Housing, Communities and Local Government",Homes England,MANAGEMENT COSTS,South West,R FOX T/A SOUTHCOAST MAINTENANCE,16/10/2019,514,S,72101500,Building maintenance and repair services
"Ministry of Housing, Communities and Local Government",Homes England,MANAGEMENT COSTS,South West,R FOX T/A SOUTHCOAST MAINTENANCE,16/10/2019,922,S,72101500,Building maintenance and repair services
"Ministry of Housing, Communities and Local Government",Homes England,MANAGEMENT COSTS,South West,R FOX T/A SOUTHCOAST MAINTENANCE,16/10/2019,1040,S,72101500,Building maintenance and repair services
"Ministry of Housing, Communities and Local Government",Homes England,PROPERTY MAINTENANCE,Programmes,FIRE SUPPRESSION LIMITED,28/10/2019,1981,S,72102900,Facility maintenance and repair services
"Ministry of Housing, Communities and Local Government",Homes England,SECURITY (Incl Fire Prevention),Finance & Corporate Services,FALCON SECURITY,01/10/2019,9132.48,M,92121500,Guard services
"Ministry of Housing, Communities and Local Government",Homes England,SECURITY,Programmes,FALCON SECURITY,02/10/2019,15923.04,M,92121500,Guard services
"Ministry of Housing, Communities and Local Government",Homes England,SECURITY,North East And Yorkshire,FALCON SECURITY,15/10/2019,16724.5,M,92121500,Guard services
"Ministry of Housing, Communities and Local Government",Homes England,SECURITY,Midlands,FALCON SECURITY,21/10/2019,7546,M,92121500,Guard services
"Ministry of Housing, Communities and Local Government",Homes England,ST Fund Loans Additions,Economic Assets Hub,FOXGLOVE INVESTMENTS (DEVELOPMENTS) LIMITED,10/10/2019,77217,,,Loans
"Ministry of Housing, Communities and Local Government",Homes England,PROPERTY MAINTENANCE,Programmes,FIRST NATIONAL SERVICES LTD,11/10/2019,272.03,S,72102900,Facility maintenance and repair services
"Ministry of Housing, Communities and Local Government",Homes England,PROPERTY MAINTENANCE,Midlands,FIRST NATIONAL SERVICES LTD,11/10/2019,4127.57,S,72102900,Facility maintenance and repair services
"Ministry of Housing, Communities and Local Government",Homes England,ESTATE GENERAL MAINTENANCE,South West,FALCON PEST CONTROL,15/10/2019,450,S,72102100,Pest control
"Ministry of Housing, Communities and Local Government",Homes England,PROPERTY MAINTENANCE,Midlands,FIRST CHOICE CLEANING & MAINTENANCE LTD,21/10/2019,885,S,72153501,Building exterior cleaning service  
"Ministry of Housing, Communities and Local Government",Homes England,SUBS TO OTHER BODIES ,Programmes,THE FINANCIAL CONDUCT AUTHORITY,07/10/2019,460,L,94101500,Business associations
"Ministry of Housing, Communities and Local Government",Homes England,BUILDINGS-ELECTRICITY,South West,GOOD ENERGY LTD,17/10/2019,269.96,M,83101800,Electric utilities
"Ministry of Housing, Communities and Local Government",Homes England,MISC PROFESSIONAL FEES,East And South East,GVA GRIMLEY T/A AVISON YOUNG,01/10/2019,500,L,80131800,Real estate management services
"Ministry of Housing, Communities and Local Government",Homes England,MISC PROFESSIONAL FEES,East And South East,GVA GRIMLEY T/A AVISON YOUNG,01/10/2019,2362.5,L,80131800,Real estate management services
"Ministry of Housing, Communities and Local Government",Homes England,RI - MONITORING SURVEYOR FEES,Economic Assets Hub,GVA GRIMLEY T/A AVISON YOUNG,01/10/2019,750,L,80131800,Real estate management services
"Ministry of Housing, Communities and Local Government",Homes England,RI - MONITORING SURVEYOR FEES,Economic Assets Hub,GVA GRIMLEY T/A AVISON YOUNG,01/10/2019,800,L,80131800,Real estate management services
"Ministry of Housing, Communities and Local Government",Homes England,Professional Fees Loans Capitalised,Economic Assets Hub,GVA GRIMLEY T/A AVISON YOUNG,01/10/2019,750,L,80131800,Real estate management services
"Ministry of Housing, Communities and Local Government",Homes England,MISC PROFESSIONAL FEES,North West,GVA GRIMLEY T/A AVISON YOUNG,01/10/2019,2750,L,80131800,Real estate management services
"Ministry of Housing, Communities and Local Government",Homes England,MISC PROFESSIONAL FEES,North East And Yorkshire,GVA GRIMLEY T/A AVISON YOUNG,02/10/2019,1200,L,80131800,Real estate management services
"Ministry of Housing, Communities and Local Government",Homes England,RI - SITE VALUATION FEES,Economic Assets Hub,GVA GRIMLEY T/A AVISON YOUNG,04/10/2019,4500,L,80131800,Real estate management services
"Ministry of Housing, Communities and Local Government",Homes England,DISPOSAL FEES - PROPERTY AGENTS & ADVERTISING,North West,GVA GRIMLEY T/A AVISON YOUNG,07/10/2019,750,L,80131800,Real estate management services
"Ministry of Housing, Communities and Local Government",Homes England,RI - MONITORING SURVEYOR FEES,Economic Assets Hub,GVA GRIMLEY T/A AVISON YOUNG,07/10/2019,945,L,80131800,Real estate management services
"Ministry of Housing, Communities and Local Government",Homes England,OPEN MARKET VALUATION FEE,Programmes,GVA GRIMLEY T/A AVISON YOUNG,08/10/2019,2950,L,80131800,Real estate management services
"Ministry of Housing, Communities and Local Government",Homes England,RI - MONITORING SURVEYOR FEES,Economic Assets Hub,GVA GRIMLEY T/A AVISON YOUNG,08/10/2019,750,L,80131800,Real estate management services
"Ministry of Housing, Communities and Local Government",Homes England,DISPOSAL FEES - PROPERTY AGENTS & ADVERTISING,South West,GVA GRIMLEY T/A AVISON YOUNG,09/10/2019,2495,L,80131800,Real estate management services
"Ministry of Housing, Communities and Local Government",Homes England,RI - MONITORING SURVEYOR FEES,Economic Assets Hub,GVA GRIMLEY T/A AVISON YOUNG,09/10/2019,725,L,80131800,Real estate management services
"Ministry of Housing, Communities and Local Government",Homes England,RI - MONITORING SURVEYOR FEES,Economic Assets Hub,GVA GRIMLEY T/A AVISON YOUNG,09/10/2019,750,L,80131800,Real estate management services
"Ministry of Housing, Communities and Local Government",Homes England,RI - MONITORING SURVEYOR FEES,Economic Assets Hub,GVA GRIMLEY T/A AVISON YOUNG,09/10/2019,725,L,80131800,Real estate management services
"Ministry of Housing, Communities and Local Government",Homes England,RI - MONITORING SURVEYOR FEES,Economic Assets Hub,GVA GRIMLEY T/A AVISON YOUNG,11/10/2019,1542.4,L,80131800,Real estate management services
"Ministry of Housing, Communities and Local Government",Homes England,DISPOSAL FEES - PROPERTY AGENTS & ADVERTISING,Midlands,GVA GRIMLEY T/A AVISON YOUNG,15/10/2019,1500,L,80131800,Real estate management services
"Ministry of Housing, Communities and Local Government",Homes England,MISC PROFESSIONAL FEES (ADMIN ONLY),Finance & Corporate Services,GVA GRIMLEY T/A AVISON YOUNG,16/10/2019,1000,L,80131800,Real estate management services
"Ministry of Housing, Communities and Local Government",Homes England,ESTATE AGENTS FEES,North East And Yorkshire,GVA GRIMLEY T/A AVISON YOUNG,18/10/2019,250,L,80131800,Real estate management services
"Ministry of Housing, Communities and Local Government",Homes England,PROPERTY SERVICES,North East And Yorkshire,GVA GRIMLEY T/A AVISON YOUNG,18/10/2019,2500,L,80131800,Real estate management services
"Ministry of Housing, Communities and Local Government",Homes England,MASTERPLANNING FEES,North West,GVA GRIMLEY T/A AVISON YOUNG,18/10/2019,1010.93,L,80131800,Real estate management services
"Ministry of Housing, Communities and Local Government",Homes England,OTHER PROFESSIONAL FEES,Programmes,GVA GRIMLEY T/A AVISON YOUNG,22/10/2019,10000,L,80131800,Real estate management services
"Ministry of Housing, Communities and Local Government",Homes England,MISC PROFESSIONAL FEES,Programmes,GVA GRIMLEY T/A AVISON YOUNG,22/10/2019,750,L,80131800,Real estate management services
"Ministry of Housing, Communities and Local Government",Homes England,RI - MONITORING SURVEYOR FEES,Programmes,GVA GRIMLEY T/A AVISON YOUNG,23/10/2019,918.25,L,80131800,Real estate management services
"Ministry of Housing, Communities and Local Government",Homes England,RI - MONITORING SURVEYOR FEES,Economic Assets Hub,GVA GRIMLEY T/A AVISON YOUNG,23/10/2019,800,L,80131800,Real estate management services
"Ministry of Housing, Communities and Local Government",Homes England,RI - MONITORING SURVEYOR FEES,Economic Assets Hub,GVA GRIMLEY T/A AVISON YOUNG,23/10/2019,750,L,80131800,Real estate management services
"Ministry of Housing, Communities and Local Government",Homes England,RI - MONITORING SURVEYOR FEES,Economic Assets Hub,GVA GRIMLEY T/A AVISON YOUNG,23/10/2019,900,L,80131800,Real estate management services
"Ministry of Housing, Communities and Local Government",Homes England,RI - MONITORING SURVEYOR FEES,Economic Assets Hub,GVA GRIMLEY T/A AVISON YOUNG,25/10/2019,800,L,80131800,Real estate management services
"Ministry of Housing, Communities and Local Government",Homes England,RI - MONITORING SURVEYOR FEES,Economic Assets Hub,GVA GRIMLEY T/A AVISON YOUNG,25/10/2019,800,L,80131800,Real estate management services
"Ministry of Housing, Communities and Local Government",Homes England,RI - MONITORING SURVEYOR FEES,Economic Assets Hub,GVA GRIMLEY T/A AVISON YOUNG,25/10/2019,800,L,80131800,Real estate management services
"Ministry of Housing, Communities and Local Government",Homes England,RI - MONITORING SURVEYOR FEES,Economic Assets Hub,GVA GRIMLEY T/A AVISON YOUNG,29/10/2019,1600,L,80131800,Real estate management services
"Ministry of Housing, Communities and Local Government",Homes England,RI - MONITORING SURVEYOR FEES,Economic Assets Hub,GVA GRIMLEY T/A AVISON YOUNG,29/10/2019,750,L,80131800,Real estate management services
"Ministry of Housing, Communities and Local Government",Homes England,COURSES & CONFERENCES,Finance & Corporate Services,GARTNER UK LIMITED,01/10/2019,2045,L,94101500,Business associations
"Ministry of Housing, Communities and Local Government",Homes England,COURSES & CONFERENCES,Executive Office,GETSMARTER ONLINE LIMITED,14/10/2019,1750,L,86101800,In service training and manpower development
"Ministry of Housing, Communities and Local Government",Homes England,COURSES & CONFERENCES,East And South East,GETSMARTER ONLINE LIMITED,14/10/2019,1750,L,86101800,In service training and manpower development
"Ministry of Housing, Communities and Local Government",Homes England,MISC PROFESSIONAL FEES,Programmes,W T GUNSON,15/10/2019,1237.5,S,80131800,Real estate management services
"Ministry of Housing, Communities and Local Government",Homes England,MISC PROFESSIONAL FEES,Programmes,W T GUNSON,15/10/2019,412.5,S,80131800,Real estate management services
"Ministry of Housing, Communities and Local Government",Homes England,ST Fund Loans Additions,Economic Assets Hub,GLASSHOUSES123 LIMITED,11/10/2019,87400,,,Loans
"Ministry of Housing, Communities and Local Government",Homes England,ST Fund Loans Additions,Economic Assets Hub,GBR DEVELOPMENTS LLP,17/10/2019,124180.88,,,Loans
"Ministry of Housing, Communities and Local Government",Homes England,PROPERTY SERVICES,South West,GERALD EVE LLP,08/10/2019,9999,L,80131800,Real estate management services
"Ministry of Housing, Communities and Local Government",Homes England,OPEN MARKET VALUATION FEE,South West,GERALD EVE LLP,09/10/2019,9887.14,L,80131800,Real estate management services
"Ministry of Housing, Communities and Local Government",Homes England,SECURITY,South West,GUARDING UK LTD,15/10/2019,932.5,L,92121500,Guard services
"Ministry of Housing, Communities and Local Government",Homes England,SECURITY,South West,GUARDING UK LTD,15/10/2019,932.5,L,92121500,Guard services
"Ministry of Housing, Communities and Local Government",Homes England,CONTRACT WORKS,South West,GALLIFORDTRY PARTNERSHIPS,10/10/2019,29326.5,L,72141500,Land preparation services
"Ministry of Housing, Communities and Local Government",Homes England,SERVICE CHARGE,North West,GVA (PMA321),07/10/2019,838.68,L,80131500,Lease and rental of property or building
"Ministry of Housing, Communities and Local Government",Homes England,SERVICE CHARGE,North West,GVA (PMA321),07/10/2019,2520,L,80131500,Lease and rental of property or building
"Ministry of Housing, Communities and Local Government",Homes England,SERVICE CHARGE,North West,GVA (PMA321),07/10/2019,2520,L,80131500,Lease and rental of property or building
"Ministry of Housing, Communities and Local Government",Homes England,SERVICE CHARGE,North West,GVA (PMA321),07/10/2019,697,L,80131500,Lease and rental of property or building
"Ministry of Housing, Communities and Local Government",Homes England,SERVICE CHARGES,Finance & Corporate Services,GOVERNMENT PROPERTY AGENCY,14/10/2019,611571.85,G,80131500,Lease and rental of property or building
"Ministry of Housing, Communities and Local Government",Homes England,BUILDINGS-GAS,East And South East,GFA GASTECH LTD,28/10/2019,9810,S,72101500,Building maintenance and repair services
"Ministry of Housing, Communities and Local Government",Homes England,COURSES & CONFERENCES,Programmes,PARTNERSHIP MEDIA GROUP LTD T/A GOVNET COMMUN,28/10/2019,495,M,86101800,In service training and manpower development
"Ministry of Housing, Communities and Local Government",Homes England,AGENCY STAFF,Programmes,HAYS ACCOUNTANCY & FINANCE,10/10/2019,5266.8,L,80111600,Temporary personnel services
"Ministry of Housing, Communities and Local Government",Homes England,AGENCY STAFF,Programmes,HAYS ACCOUNTANCY & FINANCE,10/10/2019,6583.5,L,80111600,Temporary personnel services
"Ministry of Housing, Communities and Local Government",Homes England,AGENCY STAFF,Programmes,HAYS ACCOUNTANCY & FINANCE,10/10/2019,6583.5,L,80111600,Temporary personnel services
"Ministry of Housing, Communities and Local Government",Homes England,AGENCY STAFF,Programmes,HAYS ACCOUNTANCY & FINANCE,10/10/2019,6583.5,L,80111600,Temporary personnel services
"Ministry of Housing, Communities and Local Government",Homes England,AGENCY STAFF,Programmes,HAYS ACCOUNTANCY & FINANCE,10/10/2019,6583.5,L,80111600,Temporary personnel services
"Ministry of Housing, Communities and Local Government",Homes England,AGENCY STAFF,Programmes,HAYS ACCOUNTANCY & FINANCE,10/10/2019,6583.5,L,80111600,Temporary personnel services
"Ministry of Housing, Communities and Local Government",Homes England,AGENCY STAFF,South West,HAYS ACCOUNTANCY & FINANCE,17/10/2019,2819.74,L,80111600,Temporary personnel services
"Ministry of Housing, Communities and Local Government",Homes England,AGENCY STAFF,Programmes,HAYS ACCOUNTANCY & FINANCE,17/10/2019,6583.5,L,80111600,Temporary personnel services
"Ministry of Housing, Communities and Local Government",Homes England,AGENCY STAFF,Programmes,HAYS ACCOUNTANCY & FINANCE,18/10/2019,14818.13,L,80111600,Temporary personnel services
"Ministry of Housing, Communities and Local Government",Homes England,AGENCY STAFF,Programmes,HAYS ACCOUNTANCY & FINANCE,28/10/2019,6583.5,L,80111600,Temporary personnel services
"Ministry of Housing, Communities and Local Government",Homes England,RI - MONITORING SURVEYOR FEES,Economic Assets Hub,ARCADIS CONSULTING (UK) LIMITED,01/10/2019,1250,L,811001500,Civil Engineering
"Ministry of Housing, Communities and Local Government",Homes England,RI - MONITORING SURVEYOR FEES,Economic Assets Hub,ARCADIS CONSULTING (UK) LIMITED,01/10/2019,1250,L,811001500,Civil Engineering
"Ministry of Housing, Communities and Local Government",Homes England,OTHER PROFESSIONAL FEES,South West,ARCADIS CONSULTING (UK) LIMITED,01/10/2019,12000,L,811001500,Civil Engineering
"Ministry of Housing, Communities and Local Government",Homes England,PLANNING APPLICATIONS,South West,ARCADIS CONSULTING (UK) LIMITED,07/10/2019,3708,L,811001500,Civil Engineering
"Ministry of Housing, Communities and Local Government",Homes England,AGENCY STAFF,Finance & Corporate Services,ARCADIS CONSULTING (UK) LIMITED,09/10/2019,13473.36,L,811001500,Civil Engineering
"Ministry of Housing, Communities and Local Government",Homes England,OTHER PROFESSIONAL FEES,Programmes,ARCADIS CONSULTING (UK) LIMITED,28/10/2019,70960.38,L,811001500,Civil Engineering
"Ministry of Housing, Communities and Local Government",Homes England,FURNITURE & EQUIPMENT-MAINTENANCE,Finance & Corporate Services,HSS HIRE SERVICE GROUP PLC,09/10/2019,1200,L,72102900,Facility maintenance and repair services
"Ministry of Housing, Communities and Local Government",Homes England,FURNITURE & EQUIPMENT-MAINTENANCE,Finance & Corporate Services,HSS HIRE SERVICE GROUP PLC,24/10/2019,1034.28,L,72102900,Facility maintenance and repair services
"Ministry of Housing, Communities and Local Government",Homes England,PROPERTY SERVICES,South West,HARTNELL TAYLOR COOK LLP,07/10/2019,1000,M,80131800,Real estate management services
"Ministry of Housing, Communities and Local Government",Homes England,PROPERTY SERVICES,South West,HARTNELL TAYLOR COOK LLP,07/10/2019,1000,M,80131800,Real estate management services
"Ministry of Housing, Communities and Local Government",Homes England,PROPERTY SERVICES,South West,HARTNELL TAYLOR COOK LLP,09/10/2019,875,M,80131800,Real estate management services
"Ministry of Housing, Communities and Local Government",Homes England,PROPERTY SERVICES,South West,HARTNELL TAYLOR COOK LLP,10/10/2019,2039.18,M,80131800,Real estate management services
"Ministry of Housing, Communities and Local Government",Homes England,PROPERTY SERVICES,South West,HARTNELL TAYLOR COOK LLP,11/10/2019,925,M,80131800,Real estate management services
"Ministry of Housing, Communities and Local Government",Homes England,PROPERTY SERVICES,#N/A,HARTNELL TAYLOR COOK LLP,11/10/2019,1437.5,M,80131800,Real estate management services
"Ministry of Housing, Communities and Local Government",Homes England,PROPERTY SERVICES,South West,HARTNELL TAYLOR COOK LLP,11/10/2019,575,M,80131800,Real estate management services
"Ministry of Housing, Communities and Local Government",Homes England,PROPERTY SERVICES,South West,HARTNELL TAYLOR COOK LLP,11/10/2019,935,M,80131800,Real estate management services
"Ministry of Housing, Communities and Local Government",Homes England,PROPERTY SERVICES,South West,HARTNELL TAYLOR COOK LLP,11/10/2019,1830,M,80131800,Real estate management services
"Ministry of Housing, Communities and Local Government",Homes England,PROPERTY SERVICES,South West,HARTNELL TAYLOR COOK LLP,11/10/2019,1829,M,80131800,Real estate management services
"Ministry of Housing, Communities and Local Government",Homes England,PROPERTY SERVICES,South West,HARTNELL TAYLOR COOK LLP,11/10/2019,935.25,M,80131800,Real estate management services
"Ministry of Housing, Communities and Local Government",Homes England,PROPERTY SERVICES,South West,HARTNELL TAYLOR COOK LLP,11/10/2019,687.5,M,80131800,Real estate management services
"Ministry of Housing, Communities and Local Government",Homes England,PROPERTY SERVICES,South West,HARTNELL TAYLOR COOK LLP,11/10/2019,875,M,80131800,Real estate management services
"Ministry of Housing, Communities and Local Government",Homes England,PROPERTY SERVICES,South West,HARTNELL TAYLOR COOK LLP,11/10/2019,950,M,80131800,Real estate management services
"Ministry of Housing, Communities and Local Government",Homes England,PROPERTY SERVICES,South West,HARTNELL TAYLOR COOK LLP,11/10/2019,912.5,M,80131800,Real estate management services
"Ministry of Housing, Communities and Local Government",Homes England,PROPERTY SERVICES,Midlands,HARTNELL TAYLOR COOK LLP,11/10/2019,1250,M,80131800,Real estate management services
"Ministry of Housing, Communities and Local Government",Homes England,PROPERTY SERVICES,South West,HARTNELL TAYLOR COOK LLP,11/10/2019,575,M,80131800,Real estate management services
"Ministry of Housing, Communities and Local Government",Homes England,PROPERTY SERVICES,South West,HARTNELL TAYLOR COOK LLP,16/10/2019,2000,M,80131800,Real estate management services
"Ministry of Housing, Communities and Local Government",Homes England,PROPERTY SERVICES,South West,HARTNELL TAYLOR COOK LLP,16/10/2019,1000,M,80131800,Real estate management services
"Ministry of Housing, Communities and Local Government",Homes England,HEALTH & SAFETY SURVEYS,Programmes,HARTNELL TAYLOR COOK LLP,18/10/2019,1850,M,80131800,Real estate management services
"Ministry of Housing, Communities and Local Government",Homes England,LANDSCAPE ARCHITECT FEES,South West,HARTNELL TAYLOR COOK LLP,18/10/2019,1030,M,80131800,Real estate management services
"Ministry of Housing, Communities and Local Government",Homes England,LANDSCAPE ARCHITECT,South West,HARTNELL TAYLOR COOK LLP,18/10/2019,1050,M,80131800,Real estate management services
"Ministry of Housing, Communities and Local Government",Homes England,MISC PROFESSIONAL FEES,South West,HARTNELL TAYLOR COOK LLP,18/10/2019,500,M,80131800,Real estate management services
"Ministry of Housing, Communities and Local Government",Homes England,LANDSCAPE ARCHITECT,South West,HARTNELL TAYLOR COOK LLP,18/10/2019,430,M,80131800,Real estate management services
"Ministry of Housing, Communities and Local Government",Homes England,PROPERTY SERVICES,South West,HARTNELL TAYLOR COOK LLP,21/10/2019,4675,M,80131800,Real estate management services
"Ministry of Housing, Communities and Local Government",Homes England,PROPERTY SERVICES,South West,HARTNELL TAYLOR COOK LLP,22/10/2019,450,M,80131800,Real estate management services
"Ministry of Housing, Communities and Local Government",Homes England,PROPERTY SERVICES,South West,HARTNELL TAYLOR COOK LLP,22/10/2019,1000,M,80131800,Real estate management services
"Ministry of Housing, Communities and Local Government",Homes England,PROPERTY SERVICES,South West,HARTNELL TAYLOR COOK LLP,22/10/2019,1500,M,80131800,Real estate management services
"Ministry of Housing, Communities and Local Government",Homes England,PROPERTY SERVICES,South West,HARTNELL TAYLOR COOK LLP,22/10/2019,900,M,80131800,Real estate management services
"Ministry of Housing, Communities and Local Government",Homes England,PROPERTY SERVICES,South West,HARTNELL TAYLOR COOK LLP,22/10/2019,3000,M,80131800,Real estate management services
"Ministry of Housing, Communities and Local Government",Homes England,PROPERTY SERVICES,South West,HARTNELL TAYLOR COOK LLP,22/10/2019,825,M,80131800,Real estate management services
"Ministry of Housing, Communities and Local Government",Homes England,PROPERTY SERVICES,South West,HARTNELL TAYLOR COOK LLP,22/10/2019,875,M,80131800,Real estate management services
"Ministry of Housing, Communities and Local Government",Homes England,PROPERTY SERVICES,South West,HARTNELL TAYLOR COOK LLP,22/10/2019,875,M,80131800,Real estate management services
"Ministry of Housing, Communities and Local Government",Homes England,PROPERTY SERVICES,South West,HARTNELL TAYLOR COOK LLP,22/10/2019,1175,M,80131800,Real estate management services
"Ministry of Housing, Communities and Local Government",Homes England,PROPERTY SERVICES,South West,HARTNELL TAYLOR COOK LLP,22/10/2019,2315.5,M,80131800,Real estate management services
"Ministry of Housing, Communities and Local Government",Homes England,PROPERTY SERVICES,South West,HARTNELL TAYLOR COOK LLP,22/10/2019,1375,M,80131800,Real estate management services
"Ministry of Housing, Communities and Local Government",Homes England,PROPERTY SERVICES,South West,HARTNELL TAYLOR COOK LLP,22/10/2019,2312.5,M,80131800,Real estate management services
"Ministry of Housing, Communities and Local Government",Homes England,PROPERTY SERVICES,South West,HARTNELL TAYLOR COOK LLP,22/10/2019,625,M,80131800,Real estate management services
"Ministry of Housing, Communities and Local Government",Homes England,PROPERTY SERVICES,South West,HARTNELL TAYLOR COOK LLP,22/10/2019,2625,M,80131800,Real estate management services
"Ministry of Housing, Communities and Local Government",Homes England,PROPERTY SERVICES,South West,HARTNELL TAYLOR COOK LLP,22/10/2019,1250,M,80131800,Real estate management services
"Ministry of Housing, Communities and Local Government",Homes England,PROPERTY SERVICES,South West,HARTNELL TAYLOR COOK LLP,22/10/2019,2300,M,80131800,Real estate management services
"Ministry of Housing, Communities and Local Government",Homes England,PROPERTY SERVICES,South West,HARTNELL TAYLOR COOK LLP,22/10/2019,2620,M,80131800,Real estate management services
"Ministry of Housing, Communities and Local Government",Homes England,PROPERTY SERVICES,South West,HARTNELL TAYLOR COOK LLP,23/10/2019,925,M,80131800,Real estate management services
"Ministry of Housing, Communities and Local Government",Homes England,PROPERTY SERVICES,South West,HARTNELL TAYLOR COOK LLP,23/10/2019,1437.5,M,80131800,Real estate management services
"Ministry of Housing, Communities and Local Government",Homes England,PROPERTY SERVICES,South West,HARTNELL TAYLOR COOK LLP,43761,575,M,80131800,Real estate management services
"Ministry of Housing, Communities and Local Government",Homes England,PROPERTY SERVICES,South West,HARTNELL TAYLOR COOK LLP,43761,935,M,80131800,Real estate management services
"Ministry of Housing, Communities and Local Government",Homes England,PROPERTY SERVICES,South West,HARTNELL TAYLOR COOK LLP,23/10/2019,1830,M,80131800,Real estate management services
"Ministry of Housing, Communities and Local Government",Homes England,PROPERTY SERVICES,South West,HARTNELL TAYLOR COOK LLP,23/10/2019,1829,M,80131800,Real estate management services
"Ministry of Housing, Communities and Local Government",Homes England,PROPERTY SERVICES,South West,HARTNELL TAYLOR COOK LLP,23/10/2019,687.5,M,80131800,Real estate management services
"Ministry of Housing, Communities and Local Government",Homes England,PROPERTY SERVICES,South West,HARTNELL TAYLOR COOK LLP,23/10/2019,875,M,80131800,Real estate management services
"Ministry of Housing, Communities and Local Government",Homes England,PROPERTY SERVICES,South West,HARTNELL TAYLOR COOK LLP,23/10/2019,950,M,80131800,Real estate management services
"Ministry of Housing, Communities and Local Government",Homes England,PROPERTY SERVICES,South West,HARTNELL TAYLOR COOK LLP,23/10/2019,912.5,M,80131800,Real estate management services
"Ministry of Housing, Communities and Local Government",Homes England,PROPERTY SERVICES,South West,HARTNELL TAYLOR COOK LLP,23/10/2019,575,M,80131800,Real estate management services
"Ministry of Housing, Communities and Local Government",Homes England,PROPERTY SERVICES,South West,HARTNELL TAYLOR COOK LLP,43762,935.25,M,80131800,Real estate management services
"Ministry of Housing, Communities and Local Government",Homes England,COURSES & CONFERENCES,South West,HQN LIMITED,02/10/2019,275,S,86101800,In service training and manpower development
"Ministry of Housing, Communities and Local Government",Homes England,ST Fund Loans Additions,Economic Assets Hub,HOLROYD HOMES (YORKSHIRE) LTD,22/10/2019,146799.76,,,Loans
"Ministry of Housing, Communities and Local Government",Homes England,PROPERTY MAINTENANCE,North East And Yorkshire,HYDROSURE LIMITED,24/10/2019,980,S,72101500,Building maintenance and repair services
"Ministry of Housing, Communities and Local Government",Homes England,MISC PROFESSIONAL FEES,Programmes,HOUSING GROWTH PARTNERSHIP LIMITED,07/10/2019,35508,,,Loans
"Ministry of Housing, Communities and Local Government",Homes England,ST Fund Loans Additions,Economic Assets Hub,HAYFIELD HOMES (FARINGDON ROAD) LIMITED,24/10/2019,268858,,,Loans
"Ministry of Housing, Communities and Local Government",Homes England,LT Fund Loans (Ps) Additions,Economic Assets Hub,HILL MARSHALL LLP,43760,1089312.71,,,Loans
"Ministry of Housing, Communities and Local Government",Homes England,BESPOKE DEVELOPMENT SUPPORT,Finance & Corporate Services,HABLE EDUCATION LTD,43749,22654,S,86101800,In service training and manpower development
"Ministry of Housing, Communities and Local Government",Homes England,BESPOKE DEVELOPMENT SUPPORT,Finance & Corporate Services,HABLE EDUCATION LTD,43752,4240,S,86101800,In service training and manpower development
"Ministry of Housing, Communities and Local Government",Homes England,LT Fund Loans (Ps) Additions,Economic Assets Hub,HENLEY CAMLAND EBBSFLEET 801 LIMITED,28/10/2019,3201237,,,Loans
"Ministry of Housing, Communities and Local Government",Homes England,LT Fund Loans (Ps) Additions,Economic Assets Hub,HANWOOD PARK LLP,16/10/2019,518571.64,,,Loans
"Ministry of Housing, Communities and Local Government",Homes England,GROUNDS ITINERANT PREVENTION,Midlands,T HODGSON PLANT HIRE,02/10/2019,685,S,72102900,Facility maintenance and repair services
"Ministry of Housing, Communities and Local Government",Homes England,PROPERTY MAINTENANCE,#N/A,T HODGSON PLANT HIRE,43740,328,S,72102900,Facility maintenance and repair services
"Ministry of Housing, Communities and Local Government",Homes England,PROPERTY MAINTENANCE,#N/A,T HODGSON PLANT HIRE,02/10/2019,720,S,72102900,Facility maintenance and repair services
"Ministry of Housing, Communities and Local Government",Homes England,PROPERTY MAINTENANCE,#N/A,T HODGSON PLANT HIRE,02/10/2019,560,S,72102900,Facility maintenance and repair services
"Ministry of Housing, Communities and Local Government",Homes England,FENCE MAINTENANCE,#N/A,T HODGSON PLANT HIRE,11/10/2019,979,S,72102900,Facility maintenance and repair services
"Ministry of Housing, Communities and Local Government",Homes England,PROPERTY MAINTENANCE,Midlands,T HODGSON PLANT HIRE,11/10/2019,420,S,72102900,Facility maintenance and repair services
"Ministry of Housing, Communities and Local Government",Homes England,AGENCY STAFF,Finance & Corporate Services,HALES GROUP LTD,29/10/2019,425.46,M,80111600,Temporary personnel services
"Ministry of Housing, Communities and Local Government",Homes England,Homebuy Agents Fees,Programmes,HEWITSONS SOLICITORS,03/10/2019,2018,M,80121600,Business law services
"Ministry of Housing, Communities and Local Government",Homes England,Homebuy Agents Fees,Programmes,HEWITSONS SOLICITORS,07/10/2019,5000,M,80121600,Business law services
"Ministry of Housing, Communities and Local Government",Homes England,LEGAL FEES,North East And Yorkshire,HEWITSONS SOLICITORS,07/10/2019,1259.54,M,80121600,Business law services
"Ministry of Housing, Communities and Local Government",Homes England,DISPOSAL FEES - LEGAL,North West,HEWITSONS SOLICITORS,07/10/2019,380,M,80121600,Business law services
"Ministry of Housing, Communities and Local Government",Homes England,DISPOSAL FEES - LEGAL,#N/A,HEWITSONS SOLICITORS,07/10/2019,285,M,80121600,Business law services
"Ministry of Housing, Communities and Local Government",Homes England,DISPOSAL FEES - LEGAL,#N/A,HEWITSONS SOLICITORS,07/10/2019,950,M,80121600,Business law services
"Ministry of Housing, Communities and Local Government",Homes England,DISPOSAL FEES - LEGAL,South West,HEWITSONS SOLICITORS,07/10/2019,380,M,80121600,Business law services
"Ministry of Housing, Communities and Local Government",Homes England,DISPOSAL FEES - LEGAL,East And South East,HEWITSONS SOLICITORS,07/10/2019,380,M,80121600,Business law services
"Ministry of Housing, Communities and Local Government",Homes England,DISPOSAL FEES - LEGAL,Midlands,HEWITSONS SOLICITORS,07/10/2019,570,M,80121600,Business law services
"Ministry of Housing, Communities and Local Government",Homes England,DISPOSAL FEES - LEGAL,Midlands,HEWITSONS SOLICITORS,07/10/2019,1900,M,80121600,Business law services
"Ministry of Housing, Communities and Local Government",Homes England,LEGAL FEES,East And South East,HEWITSONS SOLICITORS,07/10/2019,665,M,80121600,Business law services
"Ministry of Housing, Communities and Local Government",Homes England,LEGAL FEES,East And South East,HEWITSONS SOLICITORS,07/10/2019,600,M,80121600,Business law services
"Ministry of Housing, Communities and Local Government",Homes England,DISPOSAL FEES - LEGAL,East And South East,HEWITSONS SOLICITORS,43745,2925,M,80121600,Business law services
"Ministry of Housing, Communities and Local Government",Homes England,DISPOSAL FEES - LEGAL,East And South East,HEWITSONS SOLICITORS,43745,665,M,80121600,Business law services
"Ministry of Housing, Communities and Local Government",Homes England,LEGAL FEES,Programmes,HEWITSONS SOLICITORS,43745,250,M,80121600,Business law services
"Ministry of Housing, Communities and Local Government",Homes England,LEGAL FEES,East And South East,HEWITSONS SOLICITORS,43746,819,M,80121600,Business law services
"Ministry of Housing, Communities and Local Government",Homes England,DISPOSAL FEES - LEGAL,North West,HEWITSONS SOLICITORS,43746,570,M,80121600,Business law services
"Ministry of Housing, Communities and Local Government",Homes England,MISC PROFESSIONAL FEES,East And South East,HEWITSONS SOLICITORS,43746,760,M,80121600,Business law services
"Ministry of Housing, Communities and Local Government",Homes England,LEGAL FEES,North West,HEWITSONS SOLICITORS,43746,1960,M,80121600,Business law services
"Ministry of Housing, Communities and Local Government",Homes England,LEGAL FEES,Economic Assets Hub,HEWITSONS SOLICITORS,09/10/2019,250,M,80121600,Business law services
"Ministry of Housing, Communities and Local Government",Homes England,LEGAL FEES,North West,HEWITSONS SOLICITORS,09/10/2019,285,M,80121600,Business law services
"Ministry of Housing, Communities and Local Government",Homes England,DISPOSAL FEES - LEGAL,Midlands,HEWITSONS SOLICITORS,09/10/2019,380,M,80121600,Business law services
"Ministry of Housing, Communities and Local Government",Homes England,DISPOSAL FEES - LEGAL,North East And Yorkshire,HEWITSONS SOLICITORS,10/10/2019,475,M,80121600,Business law services
"Ministry of Housing, Communities and Local Government",Homes England,LEGAL FEES,East And South East,HEWITSONS SOLICITORS,10/10/2019,475,M,80121600,Business law services
"Ministry of Housing, Communities and Local Government",Homes England,Homebuy Agents Fees,#N/A,HEWITSONS SOLICITORS,11/10/2019,2982,M,80121600,Business law services
"Ministry of Housing, Communities and Local Government",Homes England,LEGAL FEES,North West,HEWITSONS SOLICITORS,14/10/2019,665,M,80121600,Business law services
"Ministry of Housing, Communities and Local Government",Homes England,DISPOSAL FEES - LEGAL,North East And Yorkshire,HEWITSONS SOLICITORS,14/10/2019,380,M,80121600,Business law services
"Ministry of Housing, Communities and Local Government",Homes England,LEGAL FEES,Economic Assets Hub,HEWITSONS SOLICITORS,15/10/2019,750,M,80121600,Business law services
"Ministry of Housing, Communities and Local Government",Homes England,LEGAL FEES,North East And Yorkshire,HEWITSONS SOLICITORS,15/10/2019,1290,M,80121600,Business law services
"Ministry of Housing, Communities and Local Government",Homes England,LEGAL FEES,North East And Yorkshire,HEWITSONS SOLICITORS,15/10/2019,2000,M,80121600,Business law services
"Ministry of Housing, Communities and Local Government",Homes England,LEGAL FEES,Programmes,HEWITSONS SOLICITORS,17/10/2019,333.28,M,80121600,Business law services
"Ministry of Housing, Communities and Local Government",Homes England,DISPOSAL FEES - LEGAL,Midlands,HEWITSONS SOLICITORS,17/10/2019,665,M,80121600,Business law services
"Ministry of Housing, Communities and Local Government",Homes England,LEGAL FEES,North East And Yorkshire,HEWITSONS SOLICITORS,18/10/2019,950,M,80121600,Business law services
"Ministry of Housing, Communities and Local Government",Homes England,Homebuy Agents Fees,Programmes,HEWITSONS SOLICITORS,21/10/2019,4567,M,80121600,Business law services
"Ministry of Housing, Communities and Local Government",Homes England,DISPOSAL FEES - LEGAL,South West,HEWITSONS SOLICITORS,21/10/2019,285,M,80121600,Business law services
"Ministry of Housing, Communities and Local Government",Homes England,DISPOSAL FEES - LEGAL,South West,HEWITSONS SOLICITORS,21/10/2019,950,M,80121600,Business law services
"Ministry of Housing, Communities and Local Government",Homes England,LEGAL FEES,Economic Assets Hub,HEWITSONS SOLICITORS,22/10/2019,500,M,80121600,Business law services
"Ministry of Housing, Communities and Local Government",Homes England,Professional Fees Equity Capitalised,Economic Assets Hub,HEWITSONS SOLICITORS,24/10/2019,13521.93,M,80121600,Business law services
"Ministry of Housing, Communities and Local Government",Homes England,DISPOSAL FEES - LEGAL,East And South East,HEWITSONS SOLICITORS,24/10/2019,500,M,80121600,Business law services
"Ministry of Housing, Communities and Local Government",Homes England,LEGAL FEES,East And South East,HEWITSONS SOLICITORS,43762,4000,M,80121600,Business law services
"Ministry of Housing, Communities and Local Government",Homes England,LEGAL FEES,East And South East,HEWITSONS SOLICITORS,25/10/2019,648.5,M,80121600,Business law services
"Ministry of Housing, Communities and Local Government",Homes England,LEGAL FEES,North East And Yorkshire,HEWITSONS SOLICITORS,29/10/2019,2765.67,M,80121600,Business law services
"Ministry of Housing, Communities and Local Government",Homes England,Homebuy Agents Fees,Programmes,HEWITSONS SOLICITORS,30/10/2019,5558,M,80121600,Business law services
"Ministry of Housing, Communities and Local Government",Homes England,LEGAL FEES,East And South East,HEWITSONS SOLICITORS,30/10/2019,2340,M,80121600,Business law services
"Ministry of Housing, Communities and Local Government",Homes England,LEGAL FEES,East And South East,HEWITSONS SOLICITORS,31/10/2019,1540.5,M,80121600,Business law services
"Ministry of Housing, Communities and Local Government",Homes England,CAPITAL GRANTS TO RPs (NOT LA),South West,CITY OF EXETER YMCA,,100500,,,Grasnt
"Ministry of Housing, Communities and Local Government",Homes England,CAPITAL GRANTS TO RPs (NOT LA),South West,CITY OF EXETER YMCA,,100500,,,Grants
"Ministry of Housing, Communities and Local Government",Homes England,CAPITAL GRANTS TO RPs (NOT LA),South West,CITY OF EXETER YMCA,,33500,,,Grants
"Ministry of Housing, Communities and Local Government",Homes England,CAPITAL GRANTS TO RPs (NOT LA),South West,CITY OF EXETER YMCA,,33500,,,Grants
"Ministry of Housing, Communities and Local Government",Homes England,PROPERTY SERVICES,#N/A,GL HEARN LIMITED,08/10/2019,2923.2,S,80131800,Real estate management services
"Ministry of Housing, Communities and Local Government",Homes England,AGENCY STAFF,#N/A,GL HEARN LIMITED,22/10/2019,19118.82,S,80131800,Real estate management services
"Ministry of Housing, Communities and Local Government",Homes England,AGENCY STAFF,#N/A,GL HEARN LIMITED,22/10/2019,14550,S,80131800,Real estate management services
"Ministry of Housing, Communities and Local Government",Homes England,MISC PROFESSIONAL FEES (ADMIN ONLY),#N/A,KORN FERRY (UK)LIMITED,24/10/2019,88800,L,86101800,In service training and manpower development
"Ministry of Housing, Communities and Local Government",Homes England,ST Fund Loans Additions,#N/A,HIGHBROOK HOMES (KIRKSTONE) LTD,18/10/2019,141175.01,,,Loans
"Ministry of Housing, Communities and Local Government",Homes England,POSTAGE/COURIERS,#N/A,HIGHWAYS ENGLAND COMPANY LTD,22/10/2019,4738.46,G,80131500,Lease and rental of property or building
"Ministry of Housing, Communities and Local Government",Homes England,CONTRACT WORKS,#N/A,HUGHES & SALVIDGE LIMITED,21/10/2019,5773.55,M,72141500,Land preparation services
"Ministry of Housing, Communities and Local Government",Homes England,CONTRACT WORKS,#N/A,HUGHES & SALVIDGE LIMITED,23/10/2019,46720.12,M,72141500,Land preparation services
"Ministry of Housing, Communities and Local Government",Homes England,CAPITAL GRANTS TO LOCAL AUTHORITIES,#N/A,HAVANT BOROUGH COUNCIL,15/10/2019,26734.06,G,,Grants
"Ministry of Housing, Communities and Local Government",Homes England,CAPITAL GRANTS TO LOCAL AUTHORITIES,#N/A,HAVANT BOROUGH COUNCIL,21/10/2019,46117.27,G,,Grants
"Ministry of Housing, Communities and Local Government",Homes England,POSTAGE/COURIERS,#N/A,HMRC SHIPLEY,03/10/2019,24120,G,76111500,General building and office cleaining and maintenance services
"Ministry of Housing, Communities and Local Government",Homes England,PSA SETTLEMENT,#N/A,HMRC SHIPLEY,18/10/2019,19491.73,G,76111500,General building and office cleaining and maintenance services
"Ministry of Housing, Communities and Local Government",Homes England,CAR LEASING - HIRE CHARGES,#N/A,HM REVENUE & CUSTOMS,08/10/2019,1706.56,G,25101500,Passenger motor vehicles
"Ministry of Housing, Communities and Local Government",Homes England,LANDSCAPING & PLANTS,#N/A,INDUSTRIAL LANDSCAPES LIMITED,02/10/2019,293.85,S,72101500,Building maintenance and repair services
"Ministry of Housing, Communities and Local Government",Homes England,CLEANING,#N/A,INDEPTH MANAGED SERVICES,31/10/2019,1362.86,L,76111500,General building and office cleaining and maintenance services
"Ministry of Housing, Communities and Local Government",Homes England,CLEANING,#N/A,INDEPTH MANAGED SERVICES,31/10/2019,2954.08,L,76111500,General building and office cleaining and maintenance services
"Ministry of Housing, Communities and Local Government",Homes England,CLEANING,#N/A,INDEPTH MANAGED SERVICES,31/10/2019,1226.62,L,76111500,General building and office cleaining and maintenance services
"Ministry of Housing, Communities and Local Government",Homes England,CLEANING,#N/A,INDEPTH MANAGED SERVICES,31/10/2019,2975.58,L,76111500,General building and office cleaining and maintenance services
"Ministry of Housing, Communities and Local Government",Homes England,CONTRACT WORKS,#N/A,INTEGRATED UTILITY SERVICES,29/10/2019,77357.9,L,72101500,Building maintenance and repair services
"Ministry of Housing, Communities and Local Government",Homes England,MASTERPLANNING FEES,#N/A,CULTURAL INDUSTRIES QUARTER AGENCY,04/10/2019,2950,M,80131800,Real estate management services
"Ministry of Housing, Communities and Local Government",Homes England,RI - MONITORING SURVEYOR FEES,#N/A,JONES LANG LASALLE,01/10/2019,950,L,80131800,Real estate management services
"Ministry of Housing, Communities and Local Government",Homes England,OPEN MARKET VALUATION FEE,#N/A,JONES LANG LASALLE,02/10/2019,9500,L,80131800,Real estate management services
"Ministry of Housing, Communities and Local Government",Homes England,DISPOSAL FEES - PROPERTY AGENTS & ADVERTISING,#N/A,JONES LANG LASALLE,07/10/2019,4000,L,80131800,Real estate management services
"Ministry of Housing, Communities and Local Government",Homes England,RI - MONITORING SURVEYOR FEES,#N/A,JONES LANG LASALLE,09/10/2019,950,L,80131800,Real estate management services
"Ministry of Housing, Communities and Local Government",Homes England,PLANNING FEES,#N/A,JONES LANG LASALLE,21/10/2019,3636.5,L,80131800,Real estate management services
"Ministry of Housing, Communities and Local Government",Homes England,ESTATE GENERAL MAINTENANCE,#N/A,GARNESS JONES LIMITED,21/10/2019,1500,S,80131800,Real estate management services
"Ministry of Housing, Communities and Local Government",Homes England,CATERING,#N/A,JONES BROS 1877 LTD,02/10/2019,295,S,50131700,Milk and butter products
"Ministry of Housing, Communities and Local Government",Homes England,POSTAGE/COURIERS,#N/A,JCP LIGHT HAULAGE,10/10/2019,305,S,78102200,Postal and small parcel and courier services
"Ministry of Housing, Communities and Local Government",Homes England,TEAM MEETINGS,#N/A,JURYS HOTEL MANAGEMENT (UK) LIMITED,21/10/2019,845.83,L,90111600,Meeting facilities
"Ministry of Housing, Communities and Local Government",Homes England,DISPOSAL FEES - PROPERTY AGENTS & ADVERTISING,#N/A,KEPPIE MASSIE,29/10/2019,2523.4,S,80131800,Real estate management services
"Ministry of Housing, Communities and Local Government",Homes England,DISPOSAL FEES - PROPERTY AGENTS & ADVERTISING,#N/A,KEPPIE MASSIE,29/10/2019,1809,S,80131800,Real estate management services
"Ministry of Housing, Communities and Local Government",Homes England,ESTATE GENERAL MAINTENANCE,#N/A,KMS COMMERCIAL PROPERTY MAINTENANCE LTD,16/10/2019,1442.5,M,72101500,Building maintenance and repair services
"Ministry of Housing, Communities and Local Government",Homes England,ESTATE GENERAL MAINTENANCE,#N/A,KMS COMMERCIAL PROPERTY MAINTENANCE LTD,16/10/2019,1739.15,M,72101500,Building maintenance and repair services
"Ministry of Housing, Communities and Local Government",Homes England,ESTATE GENERAL MAINTENANCE,#N/A,KMS COMMERCIAL PROPERTY MAINTENANCE LTD,29/10/2019,1184.74,M,72101500,Building maintenance and repair services
"Ministry of Housing, Communities and Local Government",Homes England,ESTATE GENERAL MAINTENANCE,#N/A,KERNOW TREE SURGERY,15/10/2019,380.53,S,72101500,Building maintenance and repair services
"Ministry of Housing, Communities and Local Government",Homes England,OTHER PROFESSIONAL FEES,#N/A,KERNOW TREE SURGERY,15/10/2019,264.58,S,72101500,Building maintenance and repair services
"Ministry of Housing, Communities and Local Government",Homes England,COURSES & CONFERENCES,#N/A,CSL - KPMG LLP,11/10/2019,946,L,86101800,In service training and manpower development
"Ministry of Housing, Communities and Local Government",Homes England,ST Fund Loans Additions,#N/A,KC PROPERTY SERVICES LTD,11/10/2019,51562,,,Loans
"Ministry of Housing, Communities and Local Government",Homes England,ST Fund Loans Additions,#N/A,KINGSWOOD HOMES (UK) LTD,25/10/2019,47483,,,Loans
"Ministry of Housing, Communities and Local Government",Homes England,CONTRACT WORKS,#N/A,KIER LIVING - CENTRAL,09/10/2019,700000,L,72101500,Building maintenance and repair services
"Ministry of Housing, Communities and Local Government",Homes England,FENCE MAINTENANCE,#N/A,KINGS LANDSCAPES,17/10/2019,560,S,72101500,Building maintenance and repair services
"Ministry of Housing, Communities and Local Government",Homes England,ESTATE GENERAL MAINTENANCE,#N/A,KINGS LANDSCAPES,18/10/2019,360,S,72101500,Building maintenance and repair services
"Ministry of Housing, Communities and Local Government",Homes England,CAPITAL GRANTS TO LOCAL AUTHORITIES,#N/A,KINGSTON UPON HULL CITY COUNCIL,09/10/2019,362355,G,,Grants
"Ministry of Housing, Communities and Local Government",Homes England,RI - MONITORING SURVEYOR FEES,#N/A,LAMBERT SMITH HAMPTON,01/10/2019,950,L,80131800,Real estate management services
"Ministry of Housing, Communities and Local Government",Homes England,RI - MONITORING SURVEYOR FEES,#N/A,LAMBERT SMITH HAMPTON,01/10/2019,850,L,80131800,Real estate management services
"Ministry of Housing, Communities and Local Government",Homes England,MISC PROFESSIONAL FEES,#N/A,LAMBERT SMITH HAMPTON,01/10/2019,950,L,80131800,Real estate management services
"Ministry of Housing, Communities and Local Government",Homes England,RI - MONITORING SURVEYOR FEES,#N/A,LAMBERT SMITH HAMPTON,01/10/2019,2025,L,80131800,Real estate management services
"Ministry of Housing, Communities and Local Government",Homes England,RI - MONITORING SURVEYOR FEES,#N/A,LAMBERT SMITH HAMPTON,01/10/2019,750,L,80131800,Real estate management services
"Ministry of Housing, Communities and Local Government",Homes England,RI - MONITORING SURVEYOR FEES,#N/A,LAMBERT SMITH HAMPTON,02/10/2019,650,L,80131800,Real estate management services
"Ministry of Housing, Communities and Local Government",Homes England,RI - MONITORING SURVEYOR FEES,#N/A,LAMBERT SMITH HAMPTON,02/10/2019,650,L,80131800,Real estate management services
"Ministry of Housing, Communities and Local Government",Homes England,MISC PROFESSIONAL FEES,#N/A,LAMBERT SMITH HAMPTON,02/10/2019,650,L,80131800,Real estate management services
"Ministry of Housing, Communities and Local Government",Homes England,RI - MONITORING SURVEYOR FEES,#N/A,LAMBERT SMITH HAMPTON,02/10/2019,650,L,80131800,Real estate management services
"Ministry of Housing, Communities and Local Government",Homes England,Professional Fees Loans Capitalised,#N/A,LAMBERT SMITH HAMPTON,03/10/2019,4500,L,80131800,Real estate management services
"Ministry of Housing, Communities and Local Government",Homes England,RI - MONITORING SURVEYOR FEES,#N/A,LAMBERT SMITH HAMPTON,07/10/2019,600,L,80131800,Real estate management services
"Ministry of Housing, Communities and Local Government",Homes England,RI - MONITORING SURVEYOR FEES,#N/A,LAMBERT SMITH HAMPTON,09/10/2019,1100,L,80131800,Real estate management services
"Ministry of Housing, Communities and Local Government",Homes England,RI - MONITORING SURVEYOR FEES,#N/A,LAMBERT SMITH HAMPTON,09/10/2019,1100,L,80131800,Real estate management services
"Ministry of Housing, Communities and Local Government",Homes England,RI - MONITORING SURVEYOR FEES,#N/A,LAMBERT SMITH HAMPTON,11/10/2019,900,L,80131800,Real estate management services
"Ministry of Housing, Communities and Local Government",Homes England,RI - MONITORING SURVEYOR FEES,#N/A,LAMBERT SMITH HAMPTON,15/10/2019,650,L,80131800,Real estate management services
"Ministry of Housing, Communities and Local Government",Homes England,PROPERTY SERVICES,#N/A,LAMBERT SMITH HAMPTON,22/10/2019,2500,L,80131800,Real estate management services
"Ministry of Housing, Communities and Local Government",Homes England,Professional Fees Loans Capitalised,#N/A,LAMBERT SMITH HAMPTON,22/10/2019,4000,L,80131800,Real estate management services
"Ministry of Housing, Communities and Local Government",Homes England,PROPERTY SERVICES,#N/A,LAMBERT SMITH HAMPTON,24/10/2019,1250,L,80131800,Real estate management services
"Ministry of Housing, Communities and Local Government",Homes England,OPEN MARKET VALUATION FEE,#N/A,LAMBERT SMITH HAMPTON,28/10/2019,9450,L,80131800,Real estate management services
"Ministry of Housing, Communities and Local Government",Homes England,RI - MONITORING SURVEYOR FEES,#N/A,LAMBERT SMITH HAMPTON,31/10/2019,950,L,80131800,Real estate management services
"Ministry of Housing, Communities and Local Government",Homes England,MISC PROFESSIONAL FEES,#N/A,LAMBERT SMITH HAMPTON,31/10/2019,950,L,80131800,Real estate management services
"Ministry of Housing, Communities and Local Government",Homes England,RI - MONITORING SURVEYOR FEES,#N/A,LAMBERT SMITH HAMPTON,31/10/2019,850,L,80131800,Real estate management services
"Ministry of Housing, Communities and Local Government",Homes England,CAPITAL GRANTS TO RPs (NOT LA),East & South East,HASTOE HOUSING ASSOCIATION LIMITED,,156000,,,Grants
"Ministry of Housing, Communities and Local Government",Homes England,CAPITAL GRANTS TO RPs (NOT LA),East & South East,HASTOE HOUSING ASSOCIATION LIMITED,,43750,,,Grants
"Ministry of Housing, Communities and Local Government",Homes England,CAPITAL GRANTS TO RPs (NOT LA),East & South East,HASTOE HOUSING ASSOCIATION LIMITED,,24000,,,Grants
"Ministry of Housing, Communities and Local Government",Homes England,CAPITAL GRANTS TO RPs (NOT LA),East & South East,ORWELL HOUSING ASSOCIATION LIMITED,29/10/2019,90000,,,Grants
"Ministry of Housing, Communities and Local Government",Homes England,CAPITAL GRANTS TO RPs (NOT LA),East & South East,ORWELL HOUSING ASSOCIATION LIMITED,,9000,,,Grants
"Ministry of Housing, Communities and Local Government",Homes England,CAPITAL GRANTS TO RPs (NOT LA),East & South East,ORWELL HOUSING ASSOCIATION LIMITED,,29662,,,Grants
"Ministry of Housing, Communities and Local Government",Homes England,CAPITAL GRANTS TO RPs (NOT LA),North West,THE RIVERSIDE GROUP,10/10/2019,9000,,,Grants
"Ministry of Housing, Communities and Local Government",Homes England,CAPITAL GRANTS TO RPs (NOT LA),North West,THE RIVERSIDE GROUP,23/10/2019,140000,,,Grants
"Ministry of Housing, Communities and Local Government",Homes England,CAPITAL GRANTS TO RPs (NOT LA),North West,THE RIVERSIDE GROUP,24/10/2019,234000,,,Grants
"Ministry of Housing, Communities and Local Government",Homes England,CAPITAL GRANTS TO RPs (NOT LA),North West,THE RIVERSIDE GROUP,01/11/2019,9000,,,Grants
"Ministry of Housing, Communities and Local Government",Homes England,CAPITAL GRANTS TO RPs (NOT LA),North West,THE RIVERSIDE GROUP,01/11/2019,9000,,,Grants
"Ministry of Housing, Communities and Local Government",Homes England,CAPITAL GRANTS TO RPs (NOT LA),North West,THE RIVERSIDE GROUP,01/11/2019,9000,,,Grants
"Ministry of Housing, Communities and Local Government",Homes England,CAPITAL GRANTS TO RPs (NOT LA),North West,THE RIVERSIDE GROUP,,43200,,,Grants
"Ministry of Housing, Communities and Local Government",Homes England,CAPITAL GRANTS TO RPs (NOT LA),North West,THE RIVERSIDE GROUP,,9000,,,Grants
"Ministry of Housing, Communities and Local Government",Homes England,CAPITAL GRANTS TO RPs (NOT LA),South West,HOUSING & CARE 21,21/10/2019,112000,,,Grants
"Ministry of Housing, Communities and Local Government",Homes England,CAPITAL GRANTS TO RPs (NOT LA),South West,HOUSING & CARE 21,21/10/2019,224000,,,Grants
"Ministry of Housing, Communities and Local Government",Homes England,CAPITAL GRANTS TO RPs (NOT LA),South West,HOUSING & CARE 21,21/10/2019,203000,,,Grants
"Ministry of Housing, Communities and Local Government",Homes England,CAPITAL GRANTS TO RPs (NOT LA),"North East, Yorkshire & the Humber",HOUSING & CARE 21,,700000,,,Grants
"Ministry of Housing, Communities and Local Government",Homes England,CAPITAL GRANTS TO RPs (NOT LA),"North East, Yorkshire & the Humber",HOUSING & CARE 21,,630000,,,Grants
"Ministry of Housing, Communities and Local Government",Homes England,CAPITAL GRANTS TO RPs (NOT LA),North West,IRWELL VALLEY HOUSING ASSOCIATION LTD,30/10/2019,36000,,,Grants
"Ministry of Housing, Communities and Local Government",Homes England,CAPITAL GRANTS TO RPs (NOT LA),"North East, Yorkshire & the Humber",SOUTH YORKSHIRE HOUSING ASSOC LTD,17/10/2019,9000,,,Grants
"Ministry of Housing, Communities and Local Government",Homes England,CAPITAL GRANTS TO RPs (NOT LA),"North East, Yorkshire & the Humber",SOUTH YORKSHIRE HOUSING ASSOC LTD,17/10/2019,9000,,,Grants
"Ministry of Housing, Communities and Local Government",Homes England,REVENUE GRANTS TO RPs,Midlands,STONEWATER (2) LTD,08/10/2019,70400,L,,Grants
"Ministry of Housing, Communities and Local Government",Homes England,REVENUE GRANTS TO RPs,Midlands,STONEWATER (2) LTD,15/10/2019,82900,L,,Grants
"Ministry of Housing, Communities and Local Government",Homes England,REVENUE GRANTS TO RPs,Midlands,STONEWATER (2) LTD,18/10/2019,82900,L,,Grants
"Ministry of Housing, Communities and Local Government",Homes England,CAPITAL GRANTS TO RPs (NOT LA),East & South East,STONEWATER (2) LTD,29/10/2019,10000,L,,Grants
"Ministry of Housing, Communities and Local Government",Homes England,REVENUE GRANTS TO RPs,Midlands,SANCTUARY HOUSING ASSOCIATION,08/10/2019,73250,L,,Grants
"Ministry of Housing, Communities and Local Government",Homes England,CAPITAL GRANTS TO RPs (NOT LA),South West,SANCTUARY HOUSING ASSOCIATION,18/10/2019,229168,L,,Grants
"Ministry of Housing, Communities and Local Government",Homes England,CAPITAL GRANTS TO RPs (NOT LA),East & South East,SANCTUARY HOUSING ASSOCIATION,18/10/2019,1204000,L,,Grants
"Ministry of Housing, Communities and Local Government",Homes England,CAPITAL GRANTS TO RPs (NOT LA),East & South East,SANCTUARY HOUSING ASSOCIATION,43756,62763,L,,Grants
"Ministry of Housing, Communities and Local Government",Homes England,CAPITAL GRANTS TO RPs (NOT LA),South West,SANCTUARY HOUSING ASSOCIATION,22/10/2019,556546,L,,Grants
"Ministry of Housing, Communities and Local Government",Homes England,CAPITAL GRANTS TO RPs (NOT LA),South West,SANCTUARY HOUSING ASSOCIATION,29/10/2019,11000,L,,Grants
"Ministry of Housing, Communities and Local Government",Homes England,CAPITAL GRANTS TO RPs (NOT LA),East & South East,SANCTUARY HOUSING ASSOCIATION,31/10/2019,75000,L,,Grants
"Ministry of Housing, Communities and Local Government",Homes England,CAPITAL GRANTS TO RPs (NOT LA),Midlands,SANCTUARY HOUSING ASSOCIATION,31/10/2019,9000,L,,Grants
"Ministry of Housing, Communities and Local Government",Homes England,CAPITAL GRANTS TO RPs (NOT LA),"North East, Yorkshire & the Humber",SANCTUARY HOUSING ASSOCIATION,01/11/2019,240000,L,,Grants
"Ministry of Housing, Communities and Local Government",Homes England,REVENUE GRANTS TO RPs,Midlands,STONEWATER (3) LTD,08/10/2019,46200,L,,Grants
"Ministry of Housing, Communities and Local Government",Homes England,REVENUE GRANTS TO RPs,Midlands,STONEWATER (3) LTD,23/10/2019,78500,L,,Grants
"Ministry of Housing, Communities and Local Government",Homes England,REVENUE GRANTS TO RPs,Midlands,STONEWATER (3) LTD,23/10/2019,82900,L,,Grants
"Ministry of Housing, Communities and Local Government",Homes England,CAPITAL GRANTS TO RPs (NOT LA),South West,KNIGHTSTONE HOUSING ASSOCIATION LIMITED,,105000,,,Grants
"Ministry of Housing, Communities and Local Government",Homes England,CAPITAL GRANTS TO RPs (NOT LA),South West,KNIGHTSTONE HOUSING ASSOCIATION LIMITED,,67083,,,Grants
"Ministry of Housing, Communities and Local Government",Homes England,CAPITAL GRANTS TO RPs (NOT LA),South West,KNIGHTSTONE HOUSING ASSOCIATION LIMITED,,387000,,,Grants
"Ministry of Housing, Communities and Local Government",Homes England,CAPITAL GRANTS TO RPs (NOT LA),South West,KNIGHTSTONE HOUSING ASSOCIATION LIMITED,,140000,,,Grants
"Ministry of Housing, Communities and Local Government",Homes England,ST Fund Loans Additions,#N/A,L M W DEVELOPMENT SOLUTIONS LIMITED,03/10/2019,153956.27,,,Loans
"Ministry of Housing, Communities and Local Government",Homes England,ST Fund Loans Additions,#N/A,L M W DEVELOPMENT SOLUTIONS LIMITED,31/10/2019,89827.84,,,Loans
"Ministry of Housing, Communities and Local Government",Homes England,OPEN MARKET VALUATION FEE,#N/A,THOMAS LISTER LTD,01/10/2019,950,S,80131800,Real estate management services
"Ministry of Housing, Communities and Local Government",Homes England,OPEN MARKET VALUATION FEE,Midlands,THOMAS LISTER LTD,04/10/2019,1000,S,80131800,Real estate management services
"Ministry of Housing, Communities and Local Government",Homes England,OPEN MARKET VALUATION FEE,Programmes,THOMAS LISTER LTD,08/10/2019,3000,S,80131800,Real estate management services
"Ministry of Housing, Communities and Local Government",Homes England,MISC PROFESSIONAL FEES,North West,THOMAS LISTER LTD,18/10/2019,4253.7,S,80131800,Real estate management services
"Ministry of Housing, Communities and Local Government",Homes England,OPEN MARKET VALUATION FEE,East And South East,THOMAS LISTER LTD,23/10/2019,1500,S,80131800,Real estate management services
"Ministry of Housing, Communities and Local Government",Homes England,PROPERTY SERVICES,North West,THOMAS LISTER LTD,23/10/2019,1000,S,80131800,Real estate management services
"Ministry of Housing, Communities and Local Government",Homes England,DISPOSAL FEES - LEGAL,Midlands,THOMAS LISTER LTD,24/10/2019,6900,S,80131800,Real estate management services
"Ministry of Housing, Communities and Local Government",Homes England,REVENUE GRANTS TO RPs,Midlands,PLACES FOR PEOPLE,08/10/2019,43800,L,,Grants
"Ministry of Housing, Communities and Local Government",Homes England,Help To Buy Additions,East & South East,PLACES FOR PEOPLE,10/10/2019,69000,L,,Grants
"Ministry of Housing, Communities and Local Government",Homes England,Help To Buy Additions,East & South East,PLACES FOR PEOPLE,10/10/2019,59500,L,,Grants
"Ministry of Housing, Communities and Local Government",Homes England,Help To Buy Additions,East & South East,PLACES FOR PEOPLE,10/10/2019,59500,L,,Grants
"Ministry of Housing, Communities and Local Government",Homes England,Help To Buy Additions,East & South East,PLACES FOR PEOPLE,21/10/2019,59500,L,,Grants
"Ministry of Housing, Communities and Local Government",Homes England,REVENUE GRANTS TO RPs,Midlands,PLACES FOR PEOPLE,31/10/2019,82900,L,,Grants
"Ministry of Housing, Communities and Local Government",Homes England,Help To Buy Additions,South West,PLACES FOR PEOPLE,,32000,L,,Grants
"Ministry of Housing, Communities and Local Government",Homes England,Help To Buy Additions,South West,PLACES FOR PEOPLE,,30400,L,,Grants
"Ministry of Housing, Communities and Local Government",Homes England,REVENUE GRANTS TO RPs,Midlands,PLACES FOR PEOPLE,,68500,L,,Grants
"Ministry of Housing, Communities and Local Government",Homes England,REVENUE GRANTS TO RPs,Midlands,PLACES FOR PEOPLE,,53800,L,,Grants
"Ministry of Housing, Communities and Local Government",Homes England,Help To Buy Additions,South West,PLACES FOR PEOPLE,,30000,L,,Grants
"Ministry of Housing, Communities and Local Government",Homes England,Help To Buy Additions,East & South East,PLACES FOR PEOPLE,,59500,L,,Grants
"Ministry of Housing, Communities and Local Government",Homes England,Help To Buy Additions,South West,PLACES FOR PEOPLE,,59900,L,,Grants
"Ministry of Housing, Communities and Local Government",Homes England,Homebuy Agents Fees,South West,SWAYTHLING HOUSING SOCIETY LIMITED,02/10/2019,361,L,,Grants
"Ministry of Housing, Communities and Local Government",Homes England,Homebuy Agents Fees,South West,SWAYTHLING HOUSING SOCIETY LIMITED,02/10/2019,361,L,,Grants
"Ministry of Housing, Communities and Local Government",Homes England,Homebuy Agents Fees,South West,SWAYTHLING HOUSING SOCIETY LIMITED,02/10/2019,361,L,,Grants
"Ministry of Housing, Communities and Local Government",Homes England,Homebuy Agents Fees,South West,SWAYTHLING HOUSING SOCIETY LIMITED,02/10/2019,361,L,,Grants
"Ministry of Housing, Communities and Local Government",Homes England,Homebuy Agents Fees,South West,SWAYTHLING HOUSING SOCIETY LIMITED,02/10/2019,361,L,,Grants
"Ministry of Housing, Communities and Local Government",Homes England,Homebuy Agents Fees,South West,SWAYTHLING HOUSING SOCIETY LIMITED,02/10/2019,361,L,,Grants
"Ministry of Housing, Communities and Local Government",Homes England,Homebuy Agents Fees,South West,SWAYTHLING HOUSING SOCIETY LIMITED,43741,361,L,,Grants
"Ministry of Housing, Communities and Local Government",Homes England,Homebuy Agents Fees,South West,SWAYTHLING HOUSING SOCIETY LIMITED,03/10/2019,361,L,,Grants
"Ministry of Housing, Communities and Local Government",Homes England,Homebuy Agents Fees,South West,SWAYTHLING HOUSING SOCIETY LIMITED,03/10/2019,361,L,,Grants
"Ministry of Housing, Communities and Local Government",Homes England,Homebuy Agents Fees,South West,SWAYTHLING HOUSING SOCIETY LIMITED,03/10/2019,361,L,,Grants
"Ministry of Housing, Communities and Local Government",Homes England,Homebuy Agents Fees,South West,SWAYTHLING HOUSING SOCIETY LIMITED,03/10/2019,361,L,,Grants
"Ministry of Housing, Communities and Local Government",Homes England,Homebuy Agents Fees,South West,SWAYTHLING HOUSING SOCIETY LIMITED,03/10/2019,361,L,,Grants
"Ministry of Housing, Communities and Local Government",Homes England,Homebuy Agents Fees,South West,SWAYTHLING HOUSING SOCIETY LIMITED,03/10/2019,361,L,,Grants
"Ministry of Housing, Communities and Local Government",Homes England,Homebuy Agents Fees,South West,SWAYTHLING HOUSING SOCIETY LIMITED,04/10/2019,361,L,,Grants
"Ministry of Housing, Communities and Local Government",Homes England,Homebuy Agents Fees,South West,SWAYTHLING HOUSING SOCIETY LIMITED,04/10/2019,361,L,,Grants
"Ministry of Housing, Communities and Local Government",Homes England,Homebuy Agents Fees,South West,SWAYTHLING HOUSING SOCIETY LIMITED,04/10/2019,361,L,,Grants
"Ministry of Housing, Communities and Local Government",Homes England,Homebuy Agents Fees,South West,SWAYTHLING HOUSING SOCIETY LIMITED,04/10/2019,361,L,,Grants
"Ministry of Housing, Communities and Local Government",Homes England,Homebuy Agents Fees,South West,SWAYTHLING HOUSING SOCIETY LIMITED,04/10/2019,361,L,,Grants
"Ministry of Housing, Communities and Local Government",Homes England,CAPITAL GRANTS TO RPs (NOT LA),South West,SWAYTHLING HOUSING SOCIETY LIMITED,10/10/2019,200000,L,,Grants
"Ministry of Housing, Communities and Local Government",Homes England,Homebuy Agents Fees,South West,SWAYTHLING HOUSING SOCIETY LIMITED,04/10/2019,361,L,,Grants
"Ministry of Housing, Communities and Local Government",Homes England,Homebuy Agents Fees,South West,SWAYTHLING HOUSING SOCIETY LIMITED,43742,361,L,,Grants
"Ministry of Housing, Communities and Local Government",Homes England,Homebuy Agents Fees,South West,SWAYTHLING HOUSING SOCIETY LIMITED,43742,361,L,,Grants
"Ministry of Housing, Communities and Local Government",Homes England,Homebuy Agents Fees,South West,SWAYTHLING HOUSING SOCIETY LIMITED,43745,361,L,,Grants
"Ministry of Housing, Communities and Local Government",Homes England,Homebuy Agents Fees,South West,SWAYTHLING HOUSING SOCIETY LIMITED,07/10/2019,361,L,,Grants
"Ministry of Housing, Communities and Local Government",Homes England,Homebuy Agents Fees,South West,SWAYTHLING HOUSING SOCIETY LIMITED,07/10/2019,361,L,,Grants
"Ministry of Housing, Communities and Local Government",Homes England,Homebuy Agents Fees,South West,SWAYTHLING HOUSING SOCIETY LIMITED,07/10/2019,361,L,,Grants
"Ministry of Housing, Communities and Local Government",Homes England,Homebuy Agents Fees,South West,SWAYTHLING HOUSING SOCIETY LIMITED,07/10/2019,361,L,,Grants
"Ministry of Housing, Communities and Local Government",Homes England,Homebuy Agents Fees,South West,SWAYTHLING HOUSING SOCIETY LIMITED,07/10/2019,361,L,,Grants
"Ministry of Housing, Communities and Local Government",Homes England,Homebuy Agents Fees,South West,SWAYTHLING HOUSING SOCIETY LIMITED,08/10/2019,361,L,,Grants
"Ministry of Housing, Communities and Local Government",Homes England,Homebuy Agents Fees,South West,SWAYTHLING HOUSING SOCIETY LIMITED,08/10/2019,361,L,,Grants
"Ministry of Housing, Communities and Local Government",Homes England,Homebuy Agents Fees,South West,SWAYTHLING HOUSING SOCIETY LIMITED,08/10/2019,361,L,,Grants
"Ministry of Housing, Communities and Local Government",Homes England,Homebuy Agents Fees,South West,SWAYTHLING HOUSING SOCIETY LIMITED,08/10/2019,361,L,,Grants
"Ministry of Housing, Communities and Local Government",Homes England,Homebuy Agents Fees,South West,SWAYTHLING HOUSING SOCIETY LIMITED,43746,361,L,,Grants
"Ministry of Housing, Communities and Local Government",Homes England,Homebuy Agents Fees,South West,SWAYTHLING HOUSING SOCIETY LIMITED,43746,361,L,,Grants
"Ministry of Housing, Communities and Local Government",Homes England,Homebuy Agents Fees,South West,SWAYTHLING HOUSING SOCIETY LIMITED,43746,361,L,,Grants
"Ministry of Housing, Communities and Local Government",Homes England,Homebuy Agents Fees,South West,SWAYTHLING HOUSING SOCIETY LIMITED,08/10/2019,361,L,,Grants
"Ministry of Housing, Communities and Local Government",Homes England,Homebuy Agents Fees,South West,SWAYTHLING HOUSING SOCIETY LIMITED,09/10/2019,361,L,,Grants
"Ministry of Housing, Communities and Local Government",Homes England,Homebuy Agents Fees,South West,SWAYTHLING HOUSING SOCIETY LIMITED,09/10/2019,361,L,,Grants
"Ministry of Housing, Communities and Local Government",Homes England,Homebuy Agents Fees,South West,SWAYTHLING HOUSING SOCIETY LIMITED,09/10/2019,361,L,,Grants
"Ministry of Housing, Communities and Local Government",Homes England,Homebuy Agents Fees,South West,SWAYTHLING HOUSING SOCIETY LIMITED,09/10/2019,361,L,,Grants
"Ministry of Housing, Communities and Local Government",Homes England,Homebuy Agents Fees,South West,SWAYTHLING HOUSING SOCIETY LIMITED,09/10/2019,361,L,,Grants
"Ministry of Housing, Communities and Local Government",Homes England,Homebuy Agents Fees,South West,SWAYTHLING HOUSING SOCIETY LIMITED,09/10/2019,361,L,,Grants
"Ministry of Housing, Communities and Local Government",Homes England,Homebuy Agents Fees,South West,SWAYTHLING HOUSING SOCIETY LIMITED,10/10/2019,361,L,,Grants
"Ministry of Housing, Communities and Local Government",Homes England,Homebuy Agents Fees,South West,SWAYTHLING HOUSING SOCIETY LIMITED,10/10/2019,361,L,,Grants
"Ministry of Housing, Communities and Local Government",Homes England,Homebuy Agents Fees,South West,SWAYTHLING HOUSING SOCIETY LIMITED,10/10/2019,361,L,,Grants
"Ministry of Housing, Communities and Local Government",Homes England,Homebuy Agents Fees,South West,SWAYTHLING HOUSING SOCIETY LIMITED,10/10/2019,361,L,,Grants
"Ministry of Housing, Communities and Local Government",Homes England,Homebuy Agents Fees,South West,SWAYTHLING HOUSING SOCIETY LIMITED,10/10/2019,361,L,,Grants
"Ministry of Housing, Communities and Local Government",Homes England,Homebuy Agents Fees,South West,SWAYTHLING HOUSING SOCIETY LIMITED,10/10/2019,361,L,,Grants
"Ministry of Housing, Communities and Local Government",Homes England,Homebuy Agents Fees,South West,SWAYTHLING HOUSING SOCIETY LIMITED,43748,361,L,,Grants
"Ministry of Housing, Communities and Local Government",Homes England,Homebuy Agents Fees,South West,SWAYTHLING HOUSING SOCIETY LIMITED,10/10/2019,361,L,,Grants
"Ministry of Housing, Communities and Local Government",Homes England,Homebuy Agents Fees,South West,SWAYTHLING HOUSING SOCIETY LIMITED,10/10/2019,361,L,,Grants
"Ministry of Housing, Communities and Local Government",Homes England,Homebuy Agents Fees,South West,SWAYTHLING HOUSING SOCIETY LIMITED,10/10/2019,361,L,,Grants
"Ministry of Housing, Communities and Local Government",Homes England,Homebuy Agents Fees,South West,SWAYTHLING HOUSING SOCIETY LIMITED,43748,361,L,,Grants
"Ministry of Housing, Communities and Local Government",Homes England,Homebuy Agents Fees,South West,SWAYTHLING HOUSING SOCIETY LIMITED,43748,361,L,,Grants
"Ministry of Housing, Communities and Local Government",Homes England,Homebuy Agents Fees,South West,SWAYTHLING HOUSING SOCIETY LIMITED,10/10/2019,361,L,,Grants
